{"text_format":"1","workbook":"xlsx","n_sheets":11,"sheets":["FICHA","REGLAS","DPTO","PROV","ENTIDAD","GRS","TIPOGOB","Evaluación2019","LISTA","TOTAL","ANEXO 1 GL"],"not_rendered":{"charts":0,"images":6,"macros":1,"external_links":1,"defined_names":15,"comments":0,"pivot_tables":0},"unopened":[],"bounds":{"document_bytes":16777216,"sheet_cells":100000,"rows_first":2000,"rows_last":500,"rows_between":2000,"halvings":0,"cell_chars":16384,"cell_head_chars":4096},"cells_cut":0,"cells_raw":0,"read":"whole","date_system":"1900"}

{"sheet":"FICHA","index":0,"n_rows":32,"n_cols":26,"rows_kept":32,"cut":false,"hidden":false,"merged":[[24,1,24,4],[30,1,30,4],[8,4,9,4],[0,1,0,4],[1,1,1,3],[23,1,23,4],[6,2,6,4]]}
[null,"ANEXO N° 2 : CUMPLIMIENTO DE LOS COMPROMISOS DE AJUSTE FISCAL 2022"]
[]
[null,"DEPARTAMENTO"]
[null,"PROVINCIA"]
[null,"ENTIDAD",null,null,null,null,null,null,null,null,null,null,null,null,null,null,null,null,null,null,null,null,null,null,null," "]
[]
[null,"RESUMEN DE EVALUACIÓN",{"$f":"CONCATENATE(\"VERSIÓN  :    \",IFERROR(VLOOKUP(Z5,REGLAS!$A$3:$AD$106,2,FALSE),\" \"))","v":"VERSIÓN  :     "},null,null,null,null,null,null,null,null,null,null,null,null,null,null,null,null,null,null,null,null,null,null,{"$f":"IFERROR(VLOOKUP(Z5,REGLAS!$A$3:$AD$106,2,FALSE),\" \")","v":" "}]
[null,"R1: Regla Fiscal de Saldo de Deuda Total  :",{"$f":"IFERROR( VLOOKUP(Z5,REGLAS!$A$3:$AD$106,29,FALSE), \" \")","v":" "},null,"Evaluación"]
[null,"R2: Regla Fiscal de Ahorro en cuenta corriente  :",{"$f":"IFERROR( VLOOKUP(Z5,REGLAS!$A$3:$AD$106,30,FALSE), \" \")","v":" "},null,{"$f":"IFERROR( VLOOKUP(Z5,REGLAS!$A$3:$AD$106,28,FALSE), \" \")","v":" "}]
[null,"Logro 9/ :",{"$f":"IFERROR( VLOOKUP(Z5,REGLAS!$A$3:$AD$106,27,FALSE)/100, \" \")","v":" "}]
[]
[null,"COMPROMISOS DE AJUSTE FISCAL - CAF","META","RESULTADO","CUMPLIMIENTO",null,null,null,null,null,null,null,null,0,0,0]
[null,"(CF 1 )1/ Incremento de ingresos de recaudación propia",{"$f":"IFERROR( VLOOKUP(Z5,REGLAS!$A$3:$AD$106,3,FALSE)/100, \" \")","v":" "},{"$f":"IFERROR( VLOOKUP(Z5,REGLAS!$A$3:$AD$106,4,FALSE)/100, \" \")","v":" "},{"$f":"IFERROR( VLOOKUP(Z5,REGLAS!$A$3:$AD$106,5,FALSE), \" \")","v":" "}]
[null,"(CF 2)2/ Incremento del procentaje de ingresos por arbitrios de limpieza, parques y jardines y serenazgo que financia el gasto en los mismos rubros",{"$f":"IFERROR( VLOOKUP(Z5,REGLAS!$A$3:$AD$106,6,FALSE)/100, \" \")","v":" "},{"$f":"IFERROR( VLOOKUP(Z5,REGLAS!$A$3:$AD$106,7,FALSE)/100, \" \")","v":" "},{"$f":"IFERROR( VLOOKUP(Z5,REGLAS!$A$3:$AD$106,8,FALSE), \" \")","v":" "}]
[null,"(CF 3)3/ Límite del gasto en personal respecto al ingreso corriente",{"$f":"IFERROR( VLOOKUP(Z5,REGLAS!$A$3:$AD$106,9,FALSE)/100, \" \")","v":" "},{"$f":"IFERROR( VLOOKUP(Z5,REGLAS!$A$3:$AD$106,10,FALSE)/100, \" \")","v":" "},{"$f":"IFERROR( VLOOKUP(Z5,REGLAS!$A$3:$AD$106,11,FALSE), \" \")","v":" "}]
[null,"(CF 4)4/ Disminución del saldo de pasivos corrientes respecto al año fiscal anterior ",{"$f":"IFERROR( VLOOKUP(Z5,REGLAS!$A$3:$AD$106,12,FALSE)/100, \" \")","v":" "},{"$f":"IFERROR(IF(MID(Z5,1,6)=\"070101\",\"Omiso\",VLOOKUP(Z5,REGLAS!$A$3:$AD$106,13,FALSE)/100), \" \")","v":" "},{"$f":"IFERROR( VLOOKUP(Z5,REGLAS!$A$3:$AD$106,14,FALSE), \" \")","v":" "}]
[null,"(CF 5) 5/Evaluación y corrección de errores de registro de pasivos ",{"$f":"IFERROR( VLOOKUP(Z5,REGLAS!$A$3:$AD$106,15,FALSE), \" \")","v":" "},{"$f":"IFERROR( VLOOKUP(Z5,REGLAS!$A$3:$AD$106,16,FALSE), \" \")","v":" "},{"$f":"IFERROR( VLOOKUP(Z5,REGLAS!$A$3:$AD$106,17,FALSE), \" \")","v":" "}]
[null,"(CF 6)6/ Acciones relacionadas al fortalecimiento de la gestión institucional",{"$f":"IFERROR( VLOOKUP(Z5,REGLAS!$A$3:$AD$106,18,FALSE), \" \")","v":" "},{"$f":"IFERROR( VLOOKUP(Z5,REGLAS!$A$3:$AD$106,19,FALSE), \" \")","v":" "},{"$f":"IFERROR( VLOOKUP(Z5,REGLAS!$A$3:$AD$106,20,FALSE), \" \")","v":" "}]
[null,"(CF 7)7/ Convergencia de la Regla Fiscal del Saldo de Deuda Total",{"$f":"IFERROR( VLOOKUP(Z5,REGLAS!$A$3:$AD$106,21,FALSE)/100, \" \")","v":" "},{"$f":"IFERROR( VLOOKUP(Z5,REGLAS!$A$3:$AD$106,22,FALSE)/100, \" \")","v":" "},{"$f":"IFERROR( VLOOKUP(Z5,REGLAS!$A$3:$AD$106,23,FALSE), \" \")","v":" "}]
[null,"(CF 8)8/Convergencia de la Regla Fiscal Ahorro en Cuenta Corriente (S/)",{"$f":"IFERROR( VLOOKUP(Z5,REGLAS!$A$3:$AD$106,24,FALSE), \" \")","v":" "},{"$f":"IFERROR( VLOOKUP(Z5,REGLAS!$A$3:$AD$106,25,FALSE), \" \")","v":" "},{"$f":"IFERROR( VLOOKUP(Z5,REGLAS!$A$3:$AD$106,26,FALSE), \" \")","v":" "}]
[]
[]
[null,"1/ Variación porcentual de los ingresos de recaudación propia del año 2022 respecto al año 2021."]
[null,"2/ Porcentaje de ingresos por arbitrios de limpieza, parques y jardines y serenazgo que financia el gasto en los mismos rubros del año 2022."]
[null,"3/ Relación entre el gasto a nivel devengado de personal CAS  (incluido todos sus beneficios sociales) sumado el gasto en servicios profesionales y técnicos, respecto al ingreso corriente excluyendo las transferencias de canon, sobrecanon y regalías del año 2022."]
[null,"4/ Variación porcentual del saldo de pasivos corrientes del año 2022 respecto al año 2021."]
[null,"5/ Cumplimiento de 2 acciones: evaluación y corrección de errores de registro de pasivos."]
[null,"6/ Cumplimiento al menos 3 acciones cada año para fortalecer su gestión institucional."]
[null,"7/ Valor obtenido del cálculo de Regla Fiscal del Saldo de Deuda Total (RFSDT) año 2022."]
[null,"8/ Valor obtenido del cálculo de la Regla Fiscal de Ahorro en Cuenta Corriente (RFACC) año 2022."]
[null,"9/ Número de compromisos fiscales cumplidos entre el número total de compromisos fiscales a los que la entidad está obligada a cumplir dependiendo de si aplica el CAF completo o simplificado."]
[null,"Fuente: MEF- SICON, Aplicativo Web: https://apps4.mineco.gob.pe/simgf/#, SUNAT, SBS, AFP."]

{"sheet":"REGLAS","index":1,"n_rows":106,"n_cols":30,"rows_kept":106,"cut":false,"hidden":true,"merged":[[0,14,0,16],[0,1,1,1],[0,2,0,4],[0,5,0,7],[0,8,0,10],[0,11,0,13],[0,29,1,29],[0,17,0,19],[0,20,0,22],[0,23,0,25],[0,26,1,26],[0,27,1,27],[0,28,1,28]]}
[null,"Tipo de CAF","CF 1",null,null,"CF 2",null,null,"CF 3",null,null,"CF 4",null,null,"CF 5",null,null,"CF 6",null,null,"CF 7",null,null,"CF 8",null,null,"Evaluación Global","Opinión","RFSDT","RFACC"]
["busqueda",null,"Meta","Resultado","CUMPLE","Meta","Resultado","CUMPLE","Meta","Resultado","CUMPLE","Meta","Resultado","CUMPLE","Meta","Resultado","CUMPLE","Meta","Resultado","CUMPLE","Meta","Resultado","CUMPLE","Meta","Resultado","CUMPLE"]
["030101 : MUNICIPALIDAD PROVINCIAL DE ABANCAY","Completo",1.26,20.179255970230322,"CUMPLE",26.05,19.964267160872581,"NO CUMPLE",29.9,35.748240001520621,"NO CUMPLE",-84.72,-2.1092012903013968,"NO CUMPLE",2,0,"NO CUMPLE",3,0,"NO CUMPLE","No aplica","No aplica","No aplica","No aplica","No aplica","No aplica",16.666666666666664,"Desfavorable","No Cumple","Si Cumple"]
["030201 : MUNICIPALIDAD PROVINCIAL DE ANDAHUAYLAS","Completo",4.09,26.84111295249145,"CUMPLE",6.25,4.6063934336919656,"NO CUMPLE",11.81,28.061776101260591,"NO CUMPLE",-82.15,-81.766428014612828,"NO CUMPLE",2,0,"NO CUMPLE",3,0,"NO CUMPLE","No aplica","No aplica","No aplica","No aplica","No aplica","No aplica",16.666666666666664,"Desfavorable","No Cumple","Si Cumple"]
["030501 : MUNICIPALIDAD PROVINCIAL DE COTABAMBAS - TAMBOBAMBA","Completo",1.34,72.154501922637763,"CUMPLE",0,0,"NO CUMPLE",38.25,37.886996566798537,"CUMPLE",-26.88,-41.801108516731539,"CUMPLE",2,1,"NO CUMPLE",3,4,"CUMPLE","No aplica","No aplica","No aplica","No aplica","No aplica","No aplica",66.666666666666657,"Desfavorable","Si Cumple","Si Cumple"]
["030504 : MUNICIPALIDAD DISTRITAL DE HAQUIRA","Completo",13,77.155799776449783,"CUMPLE",0,0,"NO CUMPLE",52.5,63.967828214466223,"NO CUMPLE",-2,-91.874605890090493,"CUMPLE",2,0,"NO CUMPLE",3,0,"NO CUMPLE","No aplica","No aplica","No aplica","No aplica","No aplica","No aplica",33.333333333333329,"Desfavorable","No Cumple","Si Cumple"]
["030601 : MUNICIPALIDAD PROVINCIAL DE CHINCHEROS","Completo",15,-29.622538433440912,"NO CUMPLE",3.45,3.5149303128968588,"CUMPLE",29,29.271971880441981,"NO CUMPLE",-8,-2.736180068941557,"NO CUMPLE",2,0,"NO CUMPLE",3,0,"NO CUMPLE","No aplica","No aplica","No aplica","No aplica","No aplica","No aplica",16.666666666666664,"Desfavorable","No Cumple","Si Cumple"]
["030701 : MUNICIPALIDAD PROVINCIAL DE GRAU - CHUQUIBAMBILLA","Completo",2,29.793088690900522,"CUMPLE",2.5,7.0828017832888639,"CUMPLE",22.59,29.297083414414235,"NO CUMPLE",-97,-2.4354978221442765,"NO CUMPLE",2,0,"NO CUMPLE",3,0,"NO CUMPLE","No aplica","No aplica","No aplica","No aplica","No aplica","No aplica",33.333333333333329,"Desfavorable","No Cumple","Si Cumple"]
["070102 : MUNICIPALIDAD DISTRITAL DE BELLAVISTA","Completo",2,-0.27207825501394006,"NO CUMPLE",55,41.756063123646662,"NO CUMPLE",46.78,47.646319604026218,"NO CUMPLE",-26.02,24.140451183662226,"NO CUMPLE",2,0,"NO CUMPLE",3,1,"NO CUMPLE","No aplica","No aplica","No aplica","No aplica","No aplica","No aplica",0,"Desfavorable","No Cumple","Si Cumple"]
["070103 : MUNICIPALIDAD DISTRITAL DE CARMEN DE LA LEGUA REYNOSO","Completo",4.8099999999999996,26.050214814278608,"CUMPLE",56.62,40.374748282761914,"NO CUMPLE",46.33,50.553860153882958,"NO CUMPLE",-1.1399999999999999,-82.679003417277258,"CUMPLE",2,2,"CUMPLE",3,2,"NO CUMPLE","No aplica","No aplica","No aplica","No aplica","No aplica","No aplica",50,"Desfavorable","No Cumple","Si Cumple"]
["110206 : MUNICIPALIDAD DISTRITAL DE GROCIO PRADO","Completo",5,71.943342551828508,"CUMPLE",5,2.9888212729508763,"NO CUMPLE",50,40.824918685700176,"CUMPLE",-20,1146.7033414244672,"NO CUMPLE",2,0,"NO CUMPLE",3,0,"NO CUMPLE","No aplica","No aplica","No aplica","No aplica","No aplica","No aplica",33.333333333333329,"Desfavorable","Si Cumple","Si Cumple"]
["130702 : MUNICIPALIDAD DISTRITAL DE GUADALUPE","Completo",1.74,6.7075851731363771,"CUMPLE",4.91,4.5263641703035438,"NO CUMPLE",26.36,24.667492390030862,"CUMPLE",-0.13,-3.9965247240198609,"CUMPLE",2,0,"NO CUMPLE",3,0,"NO CUMPLE","No aplica","No aplica","No aplica","No aplica","No aplica","No aplica",50,"Desfavorable","No Cumple","Si Cumple"]
["140101 : MUNICIPALIDAD PROVINCIAL DE CHICLAYO","Completo",9.5,5.215927093626739,"NO CUMPLE",91.2,55.968190488943598,"NO CUMPLE",10.86,22.316428466289821,"NO CUMPLE",-12.33,-17.42793901516561,"CUMPLE",2,1,"NO CUMPLE",3,0,"NO CUMPLE","No aplica","No aplica","No aplica","No aplica","No aplica","No aplica",16.666666666666664,"Desfavorable","No Cumple","Si Cumple"]
["140106 : MUNICIPALIDAD DISTRITAL DE LA VICTORIA","Completo",15.98,-0.42815590213703908,"NO CUMPLE",48.22,41.18388198938235,"NO CUMPLE",23.79,24.710741183377145,"NO CUMPLE",-0.5,31.661566841824186,"NO CUMPLE",2,0,"NO CUMPLE",3,0,"NO CUMPLE","No aplica","No aplica","No aplica","No aplica","No aplica","No aplica",0,"Desfavorable","No Cumple","Si Cumple"]
["150102 : MUNICIPALIDAD DISTRITAL DE ANCON","Completo",2,-27.651620051330411,"NO CUMPLE",35.200000000000003,27.30441097734899,"NO CUMPLE",31.4,39.558224258513462,"NO CUMPLE",-1.2,5.5236370519988203,"NO CUMPLE",2,2,"CUMPLE",3,3,"CUMPLE","No aplica","No aplica","No aplica","No aplica","No aplica","No aplica",33.333333333333329,"Desfavorable","No Cumple","Si Cumple"]
["150104 : MUNICIPALIDAD DISTRITAL DE BARRANCO","Completo",2.76,9.401002857233383,"CUMPLE",94,88.690478289304053,"NO CUMPLE",48.12,47.82934474926634,"CUMPLE",-1,-54.461490865375197,"CUMPLE",2,2,"CUMPLE",3,3,"CUMPLE","No aplica","No aplica","No aplica","No aplica","No aplica","No aplica",83.333333333333343,"Favorable","No Cumple","Si Cumple"]
["150105 : MUNICIPALIDAD DISTRITAL DE BREÑA","Completo",3.06,-6.5027397630506343,"NO CUMPLE",98.51,80.937014376552355,"NO CUMPLE",34.090000000000003,54.740130225436403,"NO CUMPLE",-6.05,4.9272759978716874,"NO CUMPLE",2,1,"NO CUMPLE",3,4,"CUMPLE","No aplica","No aplica","No aplica","No aplica","No aplica","No aplica",16.666666666666664,"Desfavorable","No Cumple","Si Cumple"]
["150110 : MUNICIPALIDAD DISTRITAL DE COMAS","Completo",5,10.87484703029325,"CUMPLE",47,45.653911853936648,"NO CUMPLE",21.6,22.766661992518131,"NO CUMPLE",-28.63,-35.598148366333916,"CUMPLE",2,1,"NO CUMPLE",3,0,"NO CUMPLE","No aplica","No aplica","No aplica","No aplica","No aplica","No aplica",33.333333333333329,"Desfavorable","No Cumple","Si Cumple"]
["150112 : MUNICIPALIDAD DISTRITAL DE INDEPENDENCIA","Completo",2,17.677420336600377,"CUMPLE",57.64,56.22966332159703,"NO CUMPLE",29.48,26.998784214934954,"CUMPLE",-1,11.912273529794492,"NO CUMPLE",2,1,"NO CUMPLE",3,3,"CUMPLE","No aplica","No aplica","No aplica","No aplica","No aplica","No aplica",50,"Desfavorable","Si Cumple","Si Cumple"]
["150115 : MUNICIPALIDAD DISTRITAL DE LA VICTORIA","Completo",8.24,8.2189521410592246,"NO CUMPLE",86.58,58.578361786213065,"NO CUMPLE",39.01,42.630202995213423,"NO CUMPLE",-0.82299999999999995,-2.3551339258994273,"CUMPLE",2,2,"CUMPLE",3,5,"CUMPLE","No aplica","No aplica","No aplica","No aplica","No aplica","No aplica",50,"Desfavorable","No Cumple","Si Cumple"]
["150132 : MUNICIPALIDAD DISTRITAL DE SAN JUAN DE LURIGANCHO","Completo",8.0500000000000007,-6.5726034469004269,"NO CUMPLE",36.15,26.791117884711948,"NO CUMPLE",26.1,28.450938383569657,"NO CUMPLE",-3.31,-34.638491276465963,"CUMPLE",2,2,"CUMPLE",3,4,"CUMPLE","No aplica","No aplica","No aplica","No aplica","No aplica","No aplica",50,"Desfavorable","No Cumple","Si Cumple"]
["150133 : MUNICIPALIDAD DISTRITAL DE SAN JUAN DE MIRAFLORES","Completo",4.33,4.6564971873486662,"CUMPLE",87.47,62.948128582235462,"NO CUMPLE",48.12,48.164364539190423,"NO CUMPLE",-18,-3.3220097066390344,"NO CUMPLE",2,1,"NO CUMPLE",3,0,"NO CUMPLE","No aplica","No aplica","No aplica","No aplica","No aplica","No aplica",16.666666666666664,"Desfavorable","No Cumple","Si Cumple"]
["150134 : MUNICIPALIDAD DISTRITAL DE SAN LUIS","Completo",1.9,-6.3200170292763884,"NO CUMPLE",60.58,62.75457151721448,"CUMPLE",43.1,44.879634467190094,"NO CUMPLE",-26.02,-33.233773271015927,"CUMPLE",2,1,"NO CUMPLE",3,0,"NO CUMPLE","No aplica","No aplica","No aplica","No aplica","No aplica","No aplica",33.333333333333329,"Desfavorable","Si Cumple","Si Cumple"]
["150135 : MUNICIPALIDAD DISTRITAL DE SAN MARTIN DE PORRES","Completo",0.5,4.5554938979025694,"CUMPLE",48,44.22638131065608,"NO CUMPLE",26,26.328091987051,"NO CUMPLE",-1.5,-36.514058988758947,"CUMPLE",2,1,"NO CUMPLE",3,1,"NO CUMPLE","No aplica","No aplica","No aplica","No aplica","No aplica","No aplica",33.333333333333329,"Desfavorable","No Cumple","Si Cumple"]
["150143 : MUNICIPALIDAD DISTRITAL DE VILLA MARIA DEL TRIUNFO","Completo",2.5,-12.266875354547338,"NO CUMPLE",57.5,46.150836736047765,"NO CUMPLE",21.81,27.001629022531265,"NO CUMPLE",-10,-5.0855187520126952,"NO CUMPLE",2,0,"NO CUMPLE",3,3,"CUMPLE","No aplica","No aplica","No aplica","No aplica","No aplica","No aplica",16.666666666666664,"Desfavorable","No Cumple","Si Cumple"]
["160301 : MUNICIPALIDAD PROVINCIAL DE LORETO - NAUTA","Completo",8.8000000000000007,1.919660301993531,"NO CUMPLE",2.86,27.963951684917987,"CUMPLE",33.32,36.270528838409227,"NO CUMPLE",-0.38,-15.768071835380415,"CUMPLE",2,0,"NO CUMPLE",3,0,"NO CUMPLE","No aplica","No aplica","No aplica","No aplica","No aplica","No aplica",33.333333333333329,"Desfavorable","No Cumple","Si Cumple"]
["200602 : MUNICIPALIDAD DISTRITAL DE BELLAVISTA","Completo",3.5,-15.400263598825022,"NO CUMPLE",30,27.320481486101894,"NO CUMPLE",44.7,64.495048389760157,"NO CUMPLE",-10,-2.6654288483319206,"NO CUMPLE",2,0,"NO CUMPLE",3,2,"NO CUMPLE","No aplica","No aplica","No aplica","No aplica","No aplica","No aplica",0,"Desfavorable","No Cumple","Si Cumple"]
["250105 : MUNICIPALIDAD DISTRITAL DE YARINACOCHA","Completo",2.1,7.6376111222589218,"CUMPLE",38.82,11.978772292372811,"NO CUMPLE",32.06,37.724843744119731,"NO CUMPLE",-46.66,-80.600797283552737,"CUMPLE",2,0,"NO CUMPLE",3,0,"NO CUMPLE","No aplica","No aplica","No aplica","No aplica","No aplica","No aplica",33.333333333333329,"Desfavorable","No Cumple","Si Cumple"]
["010120 : MUNICIPALIDAD DISTRITAL DE SOLOCO","Simplificado","No aplica","No aplica","No aplica","No aplica","No aplica","No aplica","No aplica","No aplica","No aplica","No aplica","No aplica","No aplica","No aplica","No aplica","No aplica","No aplica","No aplica","No aplica",99,93.625036287229037,"CUMPLE",0,258860.51999999979,"CUMPLE",100,"Favorable","Si Cumple","Si Cumple"]
["010503 : MUNICIPALIDAD DISTRITAL DE COCABAMBA","Simplificado","No aplica","No aplica","No aplica","No aplica","No aplica","No aplica","No aplica","No aplica","No aplica","No aplica","No aplica","No aplica","No aplica","No aplica","No aplica","No aplica","No aplica","No aplica",190,127.76180145805081,"CUMPLE",0,420151.69999999995,"CUMPLE",100,"Favorable","No Cumple","Si Cumple"]
["010520 : MUNICIPALIDAD DISTRITAL DE SANTA CATALINA","Simplificado","No aplica","No aplica","No aplica","No aplica","No aplica","No aplica","No aplica","No aplica","No aplica","No aplica","No aplica","No aplica","No aplica","No aplica","No aplica","No aplica","No aplica","No aplica",100,6.7101209188418958,"CUMPLE",0,369188.39999999991,"CUMPLE",100,"Favorable","Si Cumple","Si Cumple"]
["010605 : MUNICIPALIDAD DISTRITAL DE LIMABAMBA","Simplificado","No aplica","No aplica","No aplica","No aplica","No aplica","No aplica","No aplica","No aplica","No aplica","No aplica","No aplica","No aplica","No aplica","No aplica","No aplica","No aplica","No aplica","No aplica",20,183.95618201981276,"NO CUMPLE",0,253082.23000000021,"CUMPLE",50,"Desfavorable","No Cumple","Si Cumple"]
["010611 : MUNICIPALIDAD DISTRITAL DE TOTORA","Simplificado","No aplica","No aplica","No aplica","No aplica","No aplica","No aplica","No aplica","No aplica","No aplica","No aplica","No aplica","No aplica","No aplica","No aplica","No aplica","No aplica","No aplica","No aplica",80,111.26918814981282,"NO CUMPLE",0,141332.69999999984,"CUMPLE",50,"Desfavorable","No Cumple","Si Cumple"]
["010612 : MUNICIPALIDAD DISTRITAL DE VISTA ALEGRE","Simplificado","No aplica","No aplica","No aplica","No aplica","No aplica","No aplica","No aplica","No aplica","No aplica","No aplica","No aplica","No aplica","No aplica","No aplica","No aplica","No aplica","No aplica","No aplica",12.3,8.6777264758530546,"CUMPLE",0,545802.54999999958,"CUMPLE",100,"Favorable","Si Cumple","Si Cumple"]
["021505 : MUNICIPALIDAD DISTRITAL DE HUANDOVAL","Simplificado","No aplica","No aplica","No aplica","No aplica","No aplica","No aplica","No aplica","No aplica","No aplica","No aplica","No aplica","No aplica","No aplica","No aplica","No aplica","No aplica","No aplica","No aplica",27.4,24.669958712112415,"CUMPLE",0,162074.44999999995,"CUMPLE",100,"Favorable","Si Cumple","Si Cumple"]
["030502 : MUNICIPALIDAD DISTRITAL DE COTABAMBAS","Simplificado","No aplica","No aplica","No aplica","No aplica","No aplica","No aplica","No aplica","No aplica","No aplica","No aplica","No aplica","No aplica","No aplica","No aplica","No aplica","No aplica","No aplica","No aplica",284.33999999999997,206.6761740912026,"CUMPLE",0,13093246.59,"CUMPLE",100,"Favorable","No Cumple","Si Cumple"]
["030708 : MUNICIPALIDAD DISTRITAL DE PROGRESO","Simplificado","No aplica","No aplica","No aplica","No aplica","No aplica","No aplica","No aplica","No aplica","No aplica","No aplica","No aplica","No aplica","No aplica","No aplica","No aplica","No aplica","No aplica","No aplica",814.5,622.67903751758467,"CUMPLE",0,4186986.9900000012,"CUMPLE",100,"Favorable","No Cumple","Si Cumple"]
["040201 : MUNICIPALIDAD PROVINCIAL DE CAMANA","Simplificado","No aplica","No aplica","No aplica","No aplica","No aplica","No aplica","No aplica","No aplica","No aplica","No aplica","No aplica","No aplica","No aplica","No aplica","No aplica","No aplica","No aplica","No aplica",50,14.968652234730953,"CUMPLE",0,3107270.1900000013,"CUMPLE",100,"Favorable","Si Cumple","Si Cumple"]
["040405 : MUNICIPALIDAD DISTRITAL DE CHILCAYMARCA","Simplificado","No aplica","No aplica","No aplica","No aplica","No aplica","No aplica","No aplica","No aplica","No aplica","No aplica","No aplica","No aplica","No aplica","No aplica","No aplica","No aplica","No aplica","No aplica",115.83,103.87008209413383,"CUMPLE",0,1866957.8299999996,"CUMPLE",100,"Favorable","No Cumple","Si Cumple"]
["040704 : MUNICIPALIDAD DISTRITAL DE ISLAY","Simplificado","No aplica","No aplica","No aplica","No aplica","No aplica","No aplica","No aplica","No aplica","No aplica","No aplica","No aplica","No aplica","No aplica","No aplica","No aplica","No aplica","No aplica","No aplica",100,82.064607125665475,"CUMPLE",0,13123926.850000001,"CUMPLE",100,"Favorable","Si Cumple","Si Cumple"]
["040809 : MUNICIPALIDAD DISTRITAL DE TAURIA","Simplificado","No aplica","No aplica","No aplica","No aplica","No aplica","No aplica","No aplica","No aplica","No aplica","No aplica","No aplica","No aplica","No aplica","No aplica","No aplica","No aplica","No aplica","No aplica",90,13.164890297889977,"CUMPLE",0,427897.21999999986,"CUMPLE",100,"Favorable","Si Cumple","Si Cumple"]
["050503 : MUNICIPALIDAD DISTRITAL DE AYNA","Simplificado","No aplica","No aplica","No aplica","No aplica","No aplica","No aplica","No aplica","No aplica","No aplica","No aplica","No aplica","No aplica","No aplica","No aplica","No aplica","No aplica","No aplica","No aplica",100,84.828830931531357,"CUMPLE",0,3966191.5799999991,"CUMPLE",100,"Favorable","Si Cumple","Si Cumple"]
["050505 : MUNICIPALIDAD DISTRITAL DE CHUNGUI","Simplificado","No aplica","No aplica","No aplica","No aplica","No aplica","No aplica","No aplica","No aplica","No aplica","No aplica","No aplica","No aplica","No aplica","No aplica","No aplica","No aplica","No aplica","No aplica",85,14.800711707566652,"CUMPLE",0,1627173.23,"CUMPLE",100,"Favorable","Si Cumple","Si Cumple"]
["050605 : MUNICIPALIDAD DISTRITAL DE CHAVI¥A","Simplificado","No aplica","No aplica","No aplica","No aplica","No aplica","No aplica","No aplica","No aplica","No aplica","No aplica","No aplica","No aplica","No aplica","No aplica","No aplica","No aplica","No aplica","No aplica",95,8.659077448078234,"CUMPLE",0,1528939.0000000007,"CUMPLE",100,"Favorable","Si Cumple","Si Cumple"]
["050910 : MUNICIPALIDAD DISTRITAL DE SANTIAGO DE PAUCARAY","Simplificado","No aplica","No aplica","No aplica","No aplica","No aplica","No aplica","No aplica","No aplica","No aplica","No aplica","No aplica","No aplica","No aplica","No aplica","No aplica","No aplica","No aplica","No aplica",126.18,112.78350457711011,"CUMPLE",0,146076.43000000005,"CUMPLE",100,"Favorable","No Cumple","Si Cumple"]
["051008 : MUNICIPALIDAD DISTRITAL DE HUAMANQUIQUIA","Simplificado","No aplica","No aplica","No aplica","No aplica","No aplica","No aplica","No aplica","No aplica","No aplica","No aplica","No aplica","No aplica","No aplica","No aplica","No aplica","No aplica","No aplica","No aplica",24,11.339566252633565,"CUMPLE",0,544365.92999999993,"CUMPLE",100,"Favorable","Si Cumple","Si Cumple"]
["051010 : MUNICIPALIDAD DISTRITAL DE HUALLA","Simplificado","No aplica","No aplica","No aplica","No aplica","No aplica","No aplica","No aplica","No aplica","No aplica","No aplica","No aplica","No aplica","No aplica","No aplica","No aplica","No aplica","No aplica","No aplica",20.100000000000001,48.670307912358865,"NO CUMPLE",0,799800.01000000047,"CUMPLE",50,"Desfavorable","Si Cumple","Si Cumple"]
["051108 : MUNICIPALIDAD DISTRITAL DE VISCHONGO","Simplificado","No aplica","No aplica","No aplica","No aplica","No aplica","No aplica","No aplica","No aplica","No aplica","No aplica","No aplica","No aplica","No aplica","No aplica","No aplica","No aplica","No aplica","No aplica",210,223.44681963006298,"NO CUMPLE",0,828569.10999999987,"CUMPLE",50,"Desfavorable","No Cumple","Si Cumple"]
["060413 : MUNICIPALIDAD DISTRITAL DE PACCHA","Simplificado","No aplica","No aplica","No aplica","No aplica","No aplica","No aplica","No aplica","No aplica","No aplica","No aplica","No aplica","No aplica","No aplica","No aplica","No aplica","No aplica","No aplica","No aplica",72,24.435116122160437,"CUMPLE",0,782153.66999999993,"CUMPLE",100,"Favorable","Si Cumple","Si Cumple"]
["060805 : MUNICIPALIDAD DISTRITAL DE HUABAL","Simplificado","No aplica","No aplica","No aplica","No aplica","No aplica","No aplica","No aplica","No aplica","No aplica","No aplica","No aplica","No aplica","No aplica","No aplica","No aplica","No aplica","No aplica","No aplica",23.5,123.76019385453034,"NO CUMPLE",0,1900295.080000001,"CUMPLE",50,"Desfavorable","No Cumple","Si Cumple"]
["061308 : MUNICIPALIDAD DISTRITAL DE SAUCEPAMPA","Simplificado","No aplica","No aplica","No aplica","No aplica","No aplica","No aplica","No aplica","No aplica","No aplica","No aplica","No aplica","No aplica","No aplica","No aplica","No aplica","No aplica","No aplica","No aplica",192.55,86.479857807161736,"CUMPLE",0,216014.44000000018,"CUMPLE",100,"Favorable","Si Cumple","Si Cumple"]
["061310 : MUNICIPALIDAD DISTRITAL DE UTICYACU","Simplificado","No aplica","No aplica","No aplica","No aplica","No aplica","No aplica","No aplica","No aplica","No aplica","No aplica","No aplica","No aplica","No aplica","No aplica","No aplica","No aplica","No aplica","No aplica",46,16.785130249734149,"CUMPLE",0,309067.51000000024,"CUMPLE",100,"Favorable","Si Cumple","Si Cumple"]
["081001 : MUNICIPALIDAD PROVINCIAL DE PARURO","Simplificado","No aplica","No aplica","No aplica","No aplica","No aplica","No aplica","No aplica","No aplica","No aplica","No aplica","No aplica","No aplica","No aplica","No aplica","No aplica","No aplica","No aplica","No aplica",34,14.684978222107079,"CUMPLE",0,3400175.7800000012,"CUMPLE",100,"Favorable","Si Cumple","Si Cumple"]
["090114 : MUNICIPALIDAD DISTRITAL DE PALCA","Simplificado","No aplica","No aplica","No aplica","No aplica","No aplica","No aplica","No aplica","No aplica","No aplica","No aplica","No aplica","No aplica","No aplica","No aplica","No aplica","No aplica","No aplica","No aplica",90,25.720601768763341,"CUMPLE",0,1050933.97,"CUMPLE",100,"Favorable","Si Cumple","Si Cumple"]
["090204 : MUNICIPALIDAD DISTRITAL DE CAJA","Simplificado","No aplica","No aplica","No aplica","No aplica","No aplica","No aplica","No aplica","No aplica","No aplica","No aplica","No aplica","No aplica","No aplica","No aplica","No aplica","No aplica","No aplica","No aplica",447.98,415.32962931752485,"CUMPLE",0,756884.04,"CUMPLE",100,"Favorable","No Cumple","Si Cumple"]
["090508 : MUNICIPALIDAD DISTRITAL DE SAN MIGUEL DE MAYOCC","Simplificado","No aplica","No aplica","No aplica","No aplica","No aplica","No aplica","No aplica","No aplica","No aplica","No aplica","No aplica","No aplica","No aplica","No aplica","No aplica","No aplica","No aplica","No aplica",90,20.031383231439182,"CUMPLE",0,128884.3899999999,"CUMPLE",100,"Favorable","Si Cumple","Si Cumple"]
["100203 : MUNICIPALIDAD DISTRITAL DE COLPAS","Simplificado","No aplica","No aplica","No aplica","No aplica","No aplica","No aplica","No aplica","No aplica","No aplica","No aplica","No aplica","No aplica","No aplica","No aplica","No aplica","No aplica","No aplica","No aplica",95,204.89377537017174,"NO CUMPLE",0,506182.44999999995,"CUMPLE",50,"Desfavorable","No Cumple","Si Cumple"]
["110101 : MUNICIPALIDAD PROVINCIAL DE ICA","Simplificado","No aplica","No aplica","No aplica","No aplica","No aplica","No aplica","No aplica","No aplica","No aplica","No aplica","No aplica","No aplica","No aplica","No aplica","No aplica","No aplica","No aplica","No aplica",105,82.092017713959962,"CUMPLE",0,98255519.790000021,"CUMPLE",100,"Favorable","Si Cumple","Si Cumple"]
["110211 : MUNICIPALIDAD DISTRITAL DE TAMBO DE MORA","Simplificado","No aplica","No aplica","No aplica","No aplica","No aplica","No aplica","No aplica","No aplica","No aplica","No aplica","No aplica","No aplica","No aplica","No aplica","No aplica","No aplica","No aplica","No aplica",98.52,67.591407900848893,"CUMPLE",0,3742941.89,"CUMPLE",100,"Favorable","Si Cumple","Si Cumple"]
["110506 : MUNICIPALIDAD DISTRITAL DE SAN ANDRES","Simplificado","No aplica","No aplica","No aplica","No aplica","No aplica","No aplica","No aplica","No aplica","No aplica","No aplica","No aplica","No aplica","No aplica","No aplica","No aplica","No aplica","No aplica","No aplica",98,60.721707295726787,"CUMPLE",0,11805310.969999997,"CUMPLE",100,"Favorable","Si Cumple","Si Cumple"]
["120116 : MUNICIPALIDAD DISTRITAL DE HUACRAPUQUIO","Simplificado","No aplica","No aplica","No aplica","No aplica","No aplica","No aplica","No aplica","No aplica","No aplica","No aplica","No aplica","No aplica","No aplica","No aplica","No aplica","No aplica","No aplica","No aplica",95,112.33758029214074,"NO CUMPLE",0,397406.06000000006,"CUMPLE",50,"Desfavorable","No Cumple","Si Cumple"]
["120136 : MUNICIPALIDAD DISTRITAL DE VIQUES","Simplificado","No aplica","No aplica","No aplica","No aplica","No aplica","No aplica","No aplica","No aplica","No aplica","No aplica","No aplica","No aplica","No aplica","No aplica","No aplica","No aplica","No aplica","No aplica",115.59,33.38273072502718,"CUMPLE",0,646159.06000000006,"CUMPLE",100,"Favorable","Si Cumple","Si Cumple"]
["120407 : MUNICIPALIDAD DISTRITAL DE EL MANTARO","Simplificado","No aplica","No aplica","No aplica","No aplica","No aplica","No aplica","No aplica","No aplica","No aplica","No aplica","No aplica","No aplica","No aplica","No aplica","No aplica","No aplica","No aplica","No aplica",90,75.827450285517429,"CUMPLE",0,609596.34000000008,"CUMPLE",100,"Favorable","Si Cumple","Si Cumple"]
["120905 : MUNICIPALIDAD DISTRITAL DE HUAMANCACA CHICO","Simplificado","No aplica","No aplica","No aplica","No aplica","No aplica","No aplica","No aplica","No aplica","No aplica","No aplica","No aplica","No aplica","No aplica","No aplica","No aplica","No aplica","No aplica","No aplica",116.39,37.552538814187677,"CUMPLE",0,2788884.6500000004,"CUMPLE",100,"Favorable","Si Cumple","Si Cumple"]
["130207 : MUNICIPALIDAD DISTRITAL DE SANTIAGO DE CAO","Simplificado","No aplica","No aplica","No aplica","No aplica","No aplica","No aplica","No aplica","No aplica","No aplica","No aplica","No aplica","No aplica","No aplica","No aplica","No aplica","No aplica","No aplica","No aplica",142,199.40488836886644,"NO CUMPLE",0,2647275.8500000006,"CUMPLE",50,"Desfavorable","No Cumple","Si Cumple"]
["130604 : MUNICIPALIDAD DISTRITAL DE CHARAT","Simplificado","No aplica","No aplica","No aplica","No aplica","No aplica","No aplica","No aplica","No aplica","No aplica","No aplica","No aplica","No aplica","No aplica","No aplica","No aplica","No aplica","No aplica","No aplica",80.16,45.09441936072551,"CUMPLE",0,517108.17000000016,"CUMPLE",100,"Favorable","Si Cumple","Si Cumple"]
["130704 : MUNICIPALIDAD DISTRITAL DE PACASMAYO","Simplificado","No aplica","No aplica","No aplica","No aplica","No aplica","No aplica","No aplica","No aplica","No aplica","No aplica","No aplica","No aplica","No aplica","No aplica","No aplica","No aplica","No aplica","No aplica",100,81.293394436329862,"CUMPLE",0,-726906.07999999821,"NO CUMPLE",50,"Desfavorable","Si Cumple","No Cumple"]
["140104 : MUNICIPALIDAD DISTRITAL DE ETEN PUERTO","Simplificado","No aplica","No aplica","No aplica","No aplica","No aplica","No aplica","No aplica","No aplica","No aplica","No aplica","No aplica","No aplica","No aplica","No aplica","No aplica","No aplica","No aplica","No aplica",296.69,254.49562043435083,"CUMPLE",0,370408.41000000015,"CUMPLE",100,"Favorable","No Cumple","Si Cumple"]
["140108 : MUNICIPALIDAD DISTRITAL DE MONSEFU","Simplificado","No aplica","No aplica","No aplica","No aplica","No aplica","No aplica","No aplica","No aplica","No aplica","No aplica","No aplica","No aplica","No aplica","No aplica","No aplica","No aplica","No aplica","No aplica",135.22,209.29706936208353,"NO CUMPLE",0,2680741.1300000008,"CUMPLE",50,"Desfavorable","No Cumple","Si Cumple"]
["140205 : MUNICIPALIDAD DISTRITAL DE PITIPO","Simplificado","No aplica","No aplica","No aplica","No aplica","No aplica","No aplica","No aplica","No aplica","No aplica","No aplica","No aplica","No aplica","No aplica","No aplica","No aplica","No aplica","No aplica","No aplica",102.3,107.77771594849801,"NO CUMPLE",0,2619149.9500000002,"CUMPLE",50,"Desfavorable","No Cumple","Si Cumple"]
["150111 : MUNICIPALIDAD DISTRITAL DE EL AGUSTINO","Simplificado","No aplica","No aplica","No aplica","No aplica","No aplica","No aplica","No aplica","No aplica","No aplica","No aplica","No aplica","No aplica","No aplica","No aplica","No aplica","No aplica","No aplica","No aplica",103,125.07441538240597,"NO CUMPLE",0,6068286.4899999872,"CUMPLE",50,"Desfavorable","No Cumple","Si Cumple"]
["150201 : MUNICIPALIDAD PROVINCIAL DE BARRANCA","Simplificado","No aplica","No aplica","No aplica","No aplica","No aplica","No aplica","No aplica","No aplica","No aplica","No aplica","No aplica","No aplica","No aplica","No aplica","No aplica","No aplica","No aplica","No aplica",98.7,103.74699032765167,"NO CUMPLE",0,18998250.510000002,"CUMPLE",50,"Desfavorable","No Cumple","Si Cumple"]
["150205 : MUNICIPALIDAD DISTRITAL DE SUPE PUERTO","Simplificado","No aplica","No aplica","No aplica","No aplica","No aplica","No aplica","No aplica","No aplica","No aplica","No aplica","No aplica","No aplica","No aplica","No aplica","No aplica","No aplica","No aplica","No aplica",166.7,166.16749713015074,"CUMPLE",0,2094960.6800000006,"CUMPLE",100,"Favorable","No Cumple","Si Cumple"]
["150402 : MUNICIPALIDAD DISTRITAL DE ARAHUAY","Simplificado","No aplica","No aplica","No aplica","No aplica","No aplica","No aplica","No aplica","No aplica","No aplica","No aplica","No aplica","No aplica","No aplica","No aplica","No aplica","No aplica","No aplica","No aplica",30,3.7869614924836918,"CUMPLE",0,327898.55000000005,"CUMPLE",100,"Favorable","Si Cumple","Si Cumple"]
["150514 : MUNICIPALIDAD DISTRITAL DE SAN LUIS","Simplificado","No aplica","No aplica","No aplica","No aplica","No aplica","No aplica","No aplica","No aplica","No aplica","No aplica","No aplica","No aplica","No aplica","No aplica","No aplica","No aplica","No aplica","No aplica",98,87.363499959459361,"CUMPLE",0,6291599.9900000012,"CUMPLE",100,"Favorable","Si Cumple","Si Cumple"]
["150727 : MUNICIPALIDAD DISTRITAL DE SANTA CRUZ DE COCACHACRA","Simplificado","No aplica","No aplica","No aplica","No aplica","No aplica","No aplica","No aplica","No aplica","No aplica","No aplica","No aplica","No aplica","No aplica","No aplica","No aplica","No aplica","No aplica","No aplica",40.5,28.398867610086874,"CUMPLE",0,603074.00000000023,"CUMPLE",100,"Favorable","Si Cumple","Si Cumple"]
["151001 : MUNICIPALIDAD PROVINCIAL DE YAUYOS","Simplificado","No aplica","No aplica","No aplica","No aplica","No aplica","No aplica","No aplica","No aplica","No aplica","No aplica","No aplica","No aplica","No aplica","No aplica","No aplica","No aplica","No aplica","No aplica",51.64,14.042160952954955,"CUMPLE",0,4143078.0800000019,"CUMPLE",100,"Favorable","Si Cumple","Si Cumple"]
["160502 : MUNICIPALIDAD DISTRITAL DE ALTO TAPICHE","Simplificado","No aplica","No aplica","No aplica","No aplica","No aplica","No aplica","No aplica","No aplica","No aplica","No aplica","No aplica","No aplica","No aplica","No aplica","No aplica","No aplica","No aplica","No aplica",230,217.69790186766093,"CUMPLE",0,711893.68999999971,"CUMPLE",100,"Favorable","No Cumple","Si Cumple"]
["160801 : MUNICIPALIDAD PROVINCIAL DE PUTUMAYO","Simplificado","No aplica","No aplica","No aplica","No aplica","No aplica","No aplica","No aplica","No aplica","No aplica","No aplica","No aplica","No aplica","No aplica","No aplica","No aplica","No aplica","No aplica","No aplica",70,50.878961717668979,"CUMPLE",0,1178543.1900000004,"CUMPLE",100,"Favorable","Si Cumple","Si Cumple"]
["190104 : MUNICIPALIDAD DISTRITAL DE HUAYLLAY","Simplificado","No aplica","No aplica","No aplica","No aplica","No aplica","No aplica","No aplica","No aplica","No aplica","No aplica","No aplica","No aplica","No aplica","No aplica","No aplica","No aplica","No aplica","No aplica",95,63.16762751748476,"CUMPLE",0,9761038.5899999999,"CUMPLE",100,"Favorable","Si Cumple","Si Cumple"]
["190110 : MUNICIPALIDAD DISTRITAL DE TICLACAYAN","Simplificado","No aplica","No aplica","No aplica","No aplica","No aplica","No aplica","No aplica","No aplica","No aplica","No aplica","No aplica","No aplica","No aplica","No aplica","No aplica","No aplica","No aplica","No aplica",152.29,161.60250771938081,"NO CUMPLE",0,2712752.46,"CUMPLE",50,"Desfavorable","No Cumple","Si Cumple"]
["190111 : MUNICIPALIDAD DISTRITAL DE TINYAHUARCO","Simplificado","No aplica","No aplica","No aplica","No aplica","No aplica","No aplica","No aplica","No aplica","No aplica","No aplica","No aplica","No aplica","No aplica","No aplica","No aplica","No aplica","No aplica","No aplica",107,128.71877026950312,"NO CUMPLE",0,3499262.41,"CUMPLE",50,"Desfavorable","No Cumple","Si Cumple"]
["220103 : MUNICIPALIDAD DISTRITAL DE HABANA","Simplificado","No aplica","No aplica","No aplica","No aplica","No aplica","No aplica","No aplica","No aplica","No aplica","No aplica","No aplica","No aplica","No aplica","No aplica","No aplica","No aplica","No aplica","No aplica",14,16.182650354773529,"NO CUMPLE",0,-156967.11999999965,"NO CUMPLE",0,"Desfavorable","Si Cumple","No Cumple"]
["220201 : MUNICIPALIDAD PROVINCIAL DE BELLAVISTA","Simplificado","No aplica","No aplica","No aplica","No aplica","No aplica","No aplica","No aplica","No aplica","No aplica","No aplica","No aplica","No aplica","No aplica","No aplica","No aplica","No aplica","No aplica","No aplica",35.299999999999997,7.3255798908414524,"CUMPLE",0,3916683.8200000003,"CUMPLE",100,"Favorable","Si Cumple","Si Cumple"]
["220401 : MUNICIPALIDAD PROVINCIAL DE HUALLAGA - SAPOSOA","Simplificado","No aplica","No aplica","No aplica","No aplica","No aplica","No aplica","No aplica","No aplica","No aplica","No aplica","No aplica","No aplica","No aplica","No aplica","No aplica","No aplica","No aplica","No aplica",15.5,2.0527601406363818,"CUMPLE",0,2758479.9400000004,"CUMPLE",100,"Favorable","Si Cumple","Si Cumple"]
["220602 : MUNICIPALIDAD DISTRITAL DE CAMPANILLA","Simplificado","No aplica","No aplica","No aplica","No aplica","No aplica","No aplica","No aplica","No aplica","No aplica","No aplica","No aplica","No aplica","No aplica","No aplica","No aplica","No aplica","No aplica","No aplica",9,81.106719868797512,"NO CUMPLE",0,1993679.4799999995,"CUMPLE",50,"Desfavorable","Si Cumple","Si Cumple"]
["220702 : MUNICIPALIDAD DISTRITAL DE BUENOS AIRES","Simplificado","No aplica","No aplica","No aplica","No aplica","No aplica","No aplica","No aplica","No aplica","No aplica","No aplica","No aplica","No aplica","No aplica","No aplica","No aplica","No aplica","No aplica","No aplica",34.1,1.6698002744619083,"CUMPLE",0,291193.51999999955,"CUMPLE",100,"Favorable","Si Cumple","Si Cumple"]
["070101 : MUNICIPALIDAD PROVINCIAL DEL CALLAO","Completo","No aplica","No aplica","No aplica","No aplica","No aplica","No aplica","No aplica","No aplica","No aplica","No aplica","No aplica","No aplica","No aplica","No aplica","No aplica","No aplica","No aplica","No aplica","No aplica","No aplica","No aplica","No aplica","No aplica","No aplica","No aplica","Omiso","No Cumple","Si Cumple"]
["110501 : MUNICIPALIDAD PROVINCIAL DE PISCO","Completo","No aplica","No aplica","No aplica","No aplica","No aplica","No aplica","No aplica","No aplica","No aplica","No aplica","No aplica","No aplica","No aplica","No aplica","No aplica","No aplica","No aplica","No aplica","No aplica","No aplica","No aplica","No aplica","No aplica","No aplica","No aplica","Omiso","No Cumple","Si Cumple"]
["140105 : MUNICIPALIDAD DISTRITAL DE JOSE LEONARDO ORTIZ","Completo","No aplica","No aplica","No aplica","No aplica","No aplica","No aplica","No aplica","No aplica","No aplica","No aplica","No aplica","No aplica","No aplica","No aplica","No aplica","No aplica","No aplica","No aplica","No aplica","No aplica","No aplica","No aplica","No aplica","No aplica","No aplica","Omiso","No Cumple","Si Cumple"]
["150601 : MUNICIPALIDAD PROVINCIAL DE HUARAL","Completo","No aplica","No aplica","No aplica","No aplica","No aplica","No aplica","No aplica","No aplica","No aplica","No aplica","No aplica","No aplica","No aplica","No aplica","No aplica","No aplica","No aplica","No aplica","No aplica","No aplica","No aplica","No aplica","No aplica","No aplica","No aplica","Omiso","No Cumple","Si Cumple"]
["030503 : MUNICIPALIDAD DISTRITAL DE COYLLURQUI","Simplificado","No aplica","No aplica","No aplica","No aplica","No aplica","No aplica","No aplica","No aplica","No aplica","No aplica","No aplica","No aplica","No aplica","No aplica","No aplica","No aplica","No aplica","No aplica","No aplica","No aplica","No aplica","No aplica","No aplica","No aplica","No aplica","Omiso","Si Cumple","Si Cumple"]
["050611 : MUNICIPALIDAD DISTRITAL DE LUCANAS","Simplificado","No aplica","No aplica","No aplica","No aplica","No aplica","No aplica","No aplica","No aplica","No aplica","No aplica","No aplica","No aplica","No aplica","No aplica","No aplica","No aplica","No aplica","No aplica","No aplica","No aplica","No aplica","No aplica","No aplica","No aplica","No aplica","Omiso","Si Cumple","Si Cumple"]
["050702 : MUNICIPALIDAD DISTRITAL DE CHUMPI","Simplificado","No aplica","No aplica","No aplica","No aplica","No aplica","No aplica","No aplica","No aplica","No aplica","No aplica","No aplica","No aplica","No aplica","No aplica","No aplica","No aplica","No aplica","No aplica","No aplica","No aplica","No aplica","No aplica","No aplica","No aplica","No aplica","Omiso","Si Cumple","Si Cumple"]
["050807 : MUNICIPALIDAD DISTRITAL DE PARARCA","Simplificado","No aplica","No aplica","No aplica","No aplica","No aplica","No aplica","No aplica","No aplica","No aplica","No aplica","No aplica","No aplica","No aplica","No aplica","No aplica","No aplica","No aplica","No aplica","No aplica","No aplica","No aplica","No aplica","No aplica","No aplica","No aplica","Omiso","Si Cumple","Si Cumple"]
["060403 : MUNICIPALIDAD DISTRITAL DE CHADIN","Simplificado","No aplica","No aplica","No aplica","No aplica","No aplica","No aplica","No aplica","No aplica","No aplica","No aplica","No aplica","No aplica","No aplica","No aplica","No aplica","No aplica","No aplica","No aplica","No aplica","No aplica","No aplica","No aplica","No aplica","No aplica","No aplica","Omiso","No Cumple","Si Cumple"]
["061203 : MUNICIPALIDAD DISTRITAL DE SAN LUIS","Simplificado","No aplica","No aplica","No aplica","No aplica","No aplica","No aplica","No aplica","No aplica","No aplica","No aplica","No aplica","No aplica","No aplica","No aplica","No aplica","No aplica","No aplica","No aplica","No aplica","No aplica","No aplica","No aplica","No aplica","No aplica","No aplica","Omiso","Si Cumple","Si Cumple"]
["100401 : MUNICIPALIDAD PROVINCIAL DE HUACAYBAMBA","Simplificado","No aplica","No aplica","No aplica","No aplica","No aplica","No aplica","No aplica","No aplica","No aplica","No aplica","No aplica","No aplica","No aplica","No aplica","No aplica","No aplica","No aplica","No aplica","No aplica","No aplica","No aplica","No aplica","No aplica","No aplica","No aplica","Omiso","Si Cumple","Si Cumple"]
["120403 : MUNICIPALIDAD DISTRITAL DE APATA","Simplificado","No aplica","No aplica","No aplica","No aplica","No aplica","No aplica","No aplica","No aplica","No aplica","No aplica","No aplica","No aplica","No aplica","No aplica","No aplica","No aplica","No aplica","No aplica","No aplica","No aplica","No aplica","No aplica","No aplica","No aplica","No aplica","Omiso","No Cumple","Si Cumple"]
["150202 : MUNICIPALIDAD DISTRITAL DE PARAMONGA","Simplificado","No aplica","No aplica","No aplica","No aplica","No aplica","No aplica","No aplica","No aplica","No aplica","No aplica","No aplica","No aplica","No aplica","No aplica","No aplica","No aplica","No aplica","No aplica","No aplica","No aplica","No aplica","No aplica","No aplica","No aplica","No aplica","Omiso","No Cumple","Si Cumple"]
["150203 : MUNICIPALIDAD DISTRITAL DE PATIVILCA","Simplificado","No aplica","No aplica","No aplica","No aplica","No aplica","No aplica","No aplica","No aplica","No aplica","No aplica","No aplica","No aplica","No aplica","No aplica","No aplica","No aplica","No aplica","No aplica","No aplica","No aplica","No aplica","No aplica","No aplica","No aplica","No aplica","Omiso","Si Cumple","Si Cumple"]
["150503 : MUNICIPALIDAD DISTRITAL DE CALANGO","Simplificado","No aplica","No aplica","No aplica","No aplica","No aplica","No aplica","No aplica","No aplica","No aplica","No aplica","No aplica","No aplica","No aplica","No aplica","No aplica","No aplica","No aplica","No aplica","No aplica","No aplica","No aplica","No aplica","No aplica","No aplica","No aplica","Omiso","Si Cumple","Si Cumple"]
["150715 : MUNICIPALIDAD DISTRITAL DE SAN ANDRES DE TUPICOCHA","Simplificado","No aplica","No aplica","No aplica","No aplica","No aplica","No aplica","No aplica","No aplica","No aplica","No aplica","No aplica","No aplica","No aplica","No aplica","No aplica","No aplica","No aplica","No aplica","No aplica","No aplica","No aplica","No aplica","No aplica","No aplica","No aplica","Omiso","Si Cumple","Si Cumple"]
["160302 : MUNICIPALIDAD DISTRITAL DE PARINARI","Simplificado","No aplica","No aplica","No aplica","No aplica","No aplica","No aplica","No aplica","No aplica","No aplica","No aplica","No aplica","No aplica","No aplica","No aplica","No aplica","No aplica","No aplica","No aplica","No aplica","No aplica","No aplica","No aplica","No aplica","No aplica","No aplica","Omiso","No Cumple","Si Cumple"]
["210601 : MUNICIPALIDAD PROVINCIAL DE HUANCANE","Simplificado","No aplica","No aplica","No aplica","No aplica","No aplica","No aplica","No aplica","No aplica","No aplica","No aplica","No aplica","No aplica","No aplica","No aplica","No aplica","No aplica","No aplica","No aplica","No aplica","No aplica","No aplica","No aplica","No aplica","No aplica","No aplica","Omiso","Si Cumple","Si Cumple"]
["250301 : MUNICIPALIDAD PROVINCIAL DE PADRE ABAD - AGUAITIA","Simplificado","No aplica","No aplica","No aplica","No aplica","No aplica","No aplica","No aplica","No aplica","No aplica","No aplica","No aplica","No aplica","No aplica","No aplica","No aplica","No aplica","No aplica","No aplica","No aplica","No aplica","No aplica","No aplica","No aplica","No aplica","No aplica","Omiso","No Cumple","Si Cumple"]

{"sheet":"DPTO","index":2,"n_rows":23,"n_cols":3,"rows_kept":23,"cut":false,"hidden":true,"merged":[]}
["--------------------","CODI_DEP","DESC_DEP"]
["01:AMAZONAS","01","AMAZONAS"]
["02:ANCASH","02","ANCASH"]
["03:APURIMAC","03","APURIMAC"]
["04:AREQUIPA","04","AREQUIPA"]
["05:AYACUCHO","05","AYACUCHO"]
["06:CAJAMARCA","06","CAJAMARCA"]
["07:PROV CONSTIT DEL CALLAO","07","PROV CONSTIT DEL CALLAO"]
["08:CUSCO","08","CUSCO"]
["09:HUANCAVELICA","09","HUANCAVELICA"]
["10:HUANUCO","10","HUANUCO"]
["11:ICA","11","ICA"]
["12:JUNIN","12","JUNIN"]
["13:LA LIBERTAD","13","LA LIBERTAD"]
["14:LAMBAYEQUE","14","LAMBAYEQUE"]
["15:LIMA","15","LIMA"]
["16:LORETO","16","LORETO"]
["19:PASCO","19","PASCO"]
["20:PIURA","20","PIURA"]
["21:PUNO","21","PUNO"]
["22:SAN MARTIN","22","SAN MARTIN"]
["23:TACNA","23","TACNA"]
["25:UCAYALI","25","UCAYALI"]

{"sheet":"PROV","index":3,"n_rows":63,"n_cols":4,"rows_kept":63,"cut":false,"hidden":true,"merged":[]}
["PROV","CODI_DEP","CODI_PRO","DESC_PRO"]
["0101 : CHACHAPOYAS","01","01","CHACHAPOYAS"]
["0105 : LUYA","01","05","LUYA"]
["0106 : RODRIGUEZ DE MENDOZA","01","06","RODRIGUEZ DE MENDOZA"]
["0215 : PALLASCA","02","15","PALLASCA"]
["0301 : ABANCAY","03","01","ABANCAY"]
["0302 : ANDAHUAYLAS","03","02","ANDAHUAYLAS"]
["0305 : COTABAMBAS","03","05","COTABAMBAS"]
["0306 : CHINCHEROS","03","06","CHINCHEROS"]
["0307 : GRAU","03","07","GRAU"]
["0402 : CAMANA","04","02","CAMANA"]
["0404 : CASTILLA","04","04","CASTILLA"]
["0407 : ISLAY","04","07","ISLAY"]
["0408 : LA UNION","04","08","LA UNION"]
["0505 : LA MAR","05","05","LA MAR"]
["0506 : LUCANAS","05","06","LUCANAS"]
["0507 : PARINACOCHAS","05","07","PARINACOCHAS"]
["0508 : PAUCAR DEL SARA SARA","05","08","PAUCAR DEL SARA SARA"]
["0509 : SUCRE","05","09","SUCRE"]
["0510 : VICTOR FAJARDO","05","10","VICTOR FAJARDO"]
["0511 : VILCAS HUAMAN","05","11","VILCAS HUAMAN"]
["0604 : CHOTA","06","04","CHOTA"]
["0608 : JAEN","06","08","JAEN"]
["0612 : SAN PABLO","06","12","SAN PABLO"]
["0613 : SANTA CRUZ","06","13","SANTA CRUZ"]
["0701 : CALLAO","07","01","CALLAO"]
["0810 : PARURO","08","10","PARURO"]
["0901 : HUANCAVELICA","09","01","HUANCAVELICA"]
["0902 : ACOBAMBA","09","02","ACOBAMBA"]
["0905 : CHURCAMPA","09","05","CHURCAMPA"]
["1002 : AMBO","10","02","AMBO"]
["1004 : HUACAYBAMBA","10","04","HUACAYBAMBA"]
["1101 : ICA","11","01","ICA"]
["1102 : CHINCHA","11","02","CHINCHA"]
["1105 : PISCO","11","05","PISCO"]
["1201 : HUANCAYO","12","01","HUANCAYO"]
["1204 : JAUJA","12","04","JAUJA"]
["1209 : CHUPACA","12","09","CHUPACA"]
["1302 : ASCOPE","13","02","ASCOPE"]
["1306 : OTUZCO","13","06","OTUZCO"]
["1307 : PACASMAYO","13","07","PACASMAYO"]
["1401 : CHICLAYO","14","01","CHICLAYO"]
["1402 : FERREÑAFE","14","02","FERREÑAFE"]
["1501 : LIMA","15","01","LIMA"]
["1502 : BARRANCA","15","02","BARRANCA"]
["1504 : CANTA","15","04","CANTA"]
["1505 : CAÑETE","15","05","CAÑETE"]
["1506 : HUARAL","15","06","HUARAL"]
["1507 : HUAROCHIRI","15","07","HUAROCHIRI"]
["1510 : YAUYOS","15","10","YAUYOS"]
["1603 : LORETO","16","03","LORETO"]
["1605 : REQUENA","16","05","REQUENA"]
["1608 : PUTUMAYO","16","08","PUTUMAYO"]
["1901 : PASCO","19","01","PASCO"]
["2006 : SULLANA","20","06","SULLANA"]
["2106 : HUANCANE","21","06","HUANCANE"]
["2201 : MOYOBAMBA","22","01","MOYOBAMBA"]
["2202 : BELLAVISTA","22","02","BELLAVISTA"]
["2204 : HUALLAGA","22","04","HUALLAGA"]
["2206 : MARISCAL CACERES","22","06","MARISCAL CACERES"]
["2207 : PICOTA","22","07","PICOTA"]
["2501 : CORONEL PORTILLO","25","01","CORONEL PORTILLO"]
["2503 : PADRE ABAD","25","03","PADRE ABAD"]

{"sheet":"ENTIDAD","index":4,"n_rows":105,"n_cols":1,"rows_kept":105,"cut":false,"hidden":true,"merged":[]}
["ENTIDADES"]
["030101 : MUNICIPALIDAD PROVINCIAL DE ABANCAY"]
["030201 : MUNICIPALIDAD PROVINCIAL DE ANDAHUAYLAS"]
["030501 : MUNICIPALIDAD PROVINCIAL DE COTABAMBAS - TAMBOBAMBA"]
["030504 : MUNICIPALIDAD DISTRITAL DE HAQUIRA"]
["030601 : MUNICIPALIDAD PROVINCIAL DE CHINCHEROS"]
["030701 : MUNICIPALIDAD PROVINCIAL DE GRAU - CHUQUIBAMBILLA"]
["070102 : MUNICIPALIDAD DISTRITAL DE BELLAVISTA"]
["070103 : MUNICIPALIDAD DISTRITAL DE CARMEN DE LA LEGUA REYNOSO"]
["110206 : MUNICIPALIDAD DISTRITAL DE GROCIO PRADO"]
["130702 : MUNICIPALIDAD DISTRITAL DE GUADALUPE"]
["140101 : MUNICIPALIDAD PROVINCIAL DE CHICLAYO"]
["140106 : MUNICIPALIDAD DISTRITAL DE LA VICTORIA"]
["150102 : MUNICIPALIDAD DISTRITAL DE ANCON"]
["150104 : MUNICIPALIDAD DISTRITAL DE BARRANCO"]
["150105 : MUNICIPALIDAD DISTRITAL DE BREÑA"]
["150110 : MUNICIPALIDAD DISTRITAL DE COMAS"]
["150112 : MUNICIPALIDAD DISTRITAL DE INDEPENDENCIA"]
["150115 : MUNICIPALIDAD DISTRITAL DE LA VICTORIA"]
["150132 : MUNICIPALIDAD DISTRITAL DE SAN JUAN DE LURIGANCHO"]
["150133 : MUNICIPALIDAD DISTRITAL DE SAN JUAN DE MIRAFLORES"]
["150134 : MUNICIPALIDAD DISTRITAL DE SAN LUIS"]
["150135 : MUNICIPALIDAD DISTRITAL DE SAN MARTIN DE PORRES"]
["150143 : MUNICIPALIDAD DISTRITAL DE VILLA MARIA DEL TRIUNFO"]
["160301 : MUNICIPALIDAD PROVINCIAL DE LORETO - NAUTA"]
["200602 : MUNICIPALIDAD DISTRITAL DE BELLAVISTA"]
["250105 : MUNICIPALIDAD DISTRITAL DE YARINACOCHA"]
["010120 : MUNICIPALIDAD DISTRITAL DE SOLOCO"]
["010503 : MUNICIPALIDAD DISTRITAL DE COCABAMBA"]
["010520 : MUNICIPALIDAD DISTRITAL DE SANTA CATALINA"]
["010605 : MUNICIPALIDAD DISTRITAL DE LIMABAMBA"]
["010611 : MUNICIPALIDAD DISTRITAL DE TOTORA"]
["010612 : MUNICIPALIDAD DISTRITAL DE VISTA ALEGRE"]
["021505 : MUNICIPALIDAD DISTRITAL DE HUANDOVAL"]
["030502 : MUNICIPALIDAD DISTRITAL DE COTABAMBAS"]
["030708 : MUNICIPALIDAD DISTRITAL DE PROGRESO"]
["040201 : MUNICIPALIDAD PROVINCIAL DE CAMANA"]
["040405 : MUNICIPALIDAD DISTRITAL DE CHILCAYMARCA"]
["040704 : MUNICIPALIDAD DISTRITAL DE ISLAY"]
["040809 : MUNICIPALIDAD DISTRITAL DE TAURIA"]
["050503 : MUNICIPALIDAD DISTRITAL DE AYNA"]
["050505 : MUNICIPALIDAD DISTRITAL DE CHUNGUI"]
["050605 : MUNICIPALIDAD DISTRITAL DE CHAVI¥A"]
["050910 : MUNICIPALIDAD DISTRITAL DE SANTIAGO DE PAUCARAY"]
["051008 : MUNICIPALIDAD DISTRITAL DE HUAMANQUIQUIA"]
["051010 : MUNICIPALIDAD DISTRITAL DE HUALLA"]
["051108 : MUNICIPALIDAD DISTRITAL DE VISCHONGO"]
["060413 : MUNICIPALIDAD DISTRITAL DE PACCHA"]
["060805 : MUNICIPALIDAD DISTRITAL DE HUABAL"]
["061308 : MUNICIPALIDAD DISTRITAL DE SAUCEPAMPA"]
["061310 : MUNICIPALIDAD DISTRITAL DE UTICYACU"]
["081001 : MUNICIPALIDAD PROVINCIAL DE PARURO"]
["090114 : MUNICIPALIDAD DISTRITAL DE PALCA"]
["090204 : MUNICIPALIDAD DISTRITAL DE CAJA"]
["090508 : MUNICIPALIDAD DISTRITAL DE SAN MIGUEL DE MAYOCC"]
["100203 : MUNICIPALIDAD DISTRITAL DE COLPAS"]
["110101 : MUNICIPALIDAD PROVINCIAL DE ICA"]
["110211 : MUNICIPALIDAD DISTRITAL DE TAMBO DE MORA"]
["110506 : MUNICIPALIDAD DISTRITAL DE SAN ANDRES"]
["120116 : MUNICIPALIDAD DISTRITAL DE HUACRAPUQUIO"]
["120136 : MUNICIPALIDAD DISTRITAL DE VIQUES"]
["120407 : MUNICIPALIDAD DISTRITAL DE EL MANTARO"]
["120905 : MUNICIPALIDAD DISTRITAL DE HUAMANCACA CHICO"]
["130207 : MUNICIPALIDAD DISTRITAL DE SANTIAGO DE CAO"]
["130604 : MUNICIPALIDAD DISTRITAL DE CHARAT"]
["130704 : MUNICIPALIDAD DISTRITAL DE PACASMAYO"]
["140104 : MUNICIPALIDAD DISTRITAL DE ETEN PUERTO"]
["140108 : MUNICIPALIDAD DISTRITAL DE MONSEFU"]
["140205 : MUNICIPALIDAD DISTRITAL DE PITIPO"]
["150111 : MUNICIPALIDAD DISTRITAL DE EL AGUSTINO"]
["150201 : MUNICIPALIDAD PROVINCIAL DE BARRANCA"]
["150205 : MUNICIPALIDAD DISTRITAL DE SUPE PUERTO"]
["150402 : MUNICIPALIDAD DISTRITAL DE ARAHUAY"]
["150514 : MUNICIPALIDAD DISTRITAL DE SAN LUIS"]
["150727 : MUNICIPALIDAD DISTRITAL DE SANTA CRUZ DE COCACHACRA"]
["151001 : MUNICIPALIDAD PROVINCIAL DE YAUYOS"]
["160502 : MUNICIPALIDAD DISTRITAL DE ALTO TAPICHE"]
["160801 : MUNICIPALIDAD PROVINCIAL DE PUTUMAYO"]
["190104 : MUNICIPALIDAD DISTRITAL DE HUAYLLAY"]
["190110 : MUNICIPALIDAD DISTRITAL DE TICLACAYAN"]
["190111 : MUNICIPALIDAD DISTRITAL DE TINYAHUARCO"]
["220103 : MUNICIPALIDAD DISTRITAL DE HABANA"]
["220201 : MUNICIPALIDAD PROVINCIAL DE BELLAVISTA"]
["220401 : MUNICIPALIDAD PROVINCIAL DE HUALLAGA - SAPOSOA"]
["220602 : MUNICIPALIDAD DISTRITAL DE CAMPANILLA"]
["220702 : MUNICIPALIDAD DISTRITAL DE BUENOS AIRES"]
["070101 : MUNICIPALIDAD PROVINCIAL DEL CALLAO"]
["110501 : MUNICIPALIDAD PROVINCIAL DE PISCO"]
["140105 : MUNICIPALIDAD DISTRITAL DE JOSE LEONARDO ORTIZ"]
["150601 : MUNICIPALIDAD PROVINCIAL DE HUARAL"]
["030503 : MUNICIPALIDAD DISTRITAL DE COYLLURQUI"]
["050611 : MUNICIPALIDAD DISTRITAL DE LUCANAS"]
["050702 : MUNICIPALIDAD DISTRITAL DE CHUMPI"]
["050807 : MUNICIPALIDAD DISTRITAL DE PARARCA"]
["060403 : MUNICIPALIDAD DISTRITAL DE CHADIN"]
["061203 : MUNICIPALIDAD DISTRITAL DE SAN LUIS"]
["100401 : MUNICIPALIDAD PROVINCIAL DE HUACAYBAMBA"]
["120403 : MUNICIPALIDAD DISTRITAL DE APATA"]
["150202 : MUNICIPALIDAD DISTRITAL DE PARAMONGA"]
["150203 : MUNICIPALIDAD DISTRITAL DE PATIVILCA"]
["150503 : MUNICIPALIDAD DISTRITAL DE CALANGO"]
["150715 : MUNICIPALIDAD DISTRITAL DE SAN ANDRES DE TUPICOCHA"]
["160302 : MUNICIPALIDAD DISTRITAL DE PARINARI"]
["210601 : MUNICIPALIDAD PROVINCIAL DE HUANCANE"]
["250301 : MUNICIPALIDAD PROVINCIAL DE PADRE ABAD - AGUAITIA"]

{"sheet":"GRS","index":5,"n_rows":8,"n_cols":1,"rows_kept":8,"cut":false,"hidden":true,"merged":[]}
["-----------------------------------------------"]
["040000 : GOBIERNO REGIONAL DE AREQUIPA"]
["060000 : GOBIERNO REGIONAL DE CAJAMARCA"]
["130000 : GOBIERNO REGIONAL DE LA LIBERTAD"]
["150100 : REGION LIMA METROPOLITANA"]
["180000 : GOBIERNO REGIONAL DE MOQUEGUA"]
["200000 : GOBIERNO REGIONAL DE PIURA"]
["210000 : GOBIERNO REGIONAL DE PUNO"]

{"sheet":"TIPOGOB","index":6,"n_rows":7,"n_cols":1,"rows_kept":7,"cut":false,"hidden":true,"merged":[]}
["TIPOGOB"]
["Gobiernos Locales"]
["Gobiernos Regionales"]
[]
[]
["No Cumple"]
["Si Cumple"]

{"sheet":"Evaluación2019","index":7,"n_rows":157,"n_cols":46,"rows_kept":157,"cut":false,"hidden":true,"merged":[[1,24,1,26],[1,0,2,0],[1,1,2,1],[1,2,2,2],[1,3,2,3],[1,4,2,4],[1,5,2,5],[1,6,2,6],[1,8,1,10],[1,12,1,14],[1,16,1,18],[1,20,1,22],[1,45,2,45],[1,28,1,30],[1,32,1,34],[1,36,1,38],[1,40,2,40],[1,42,2,42],[1,44,2,44]]}
["Anexo N° 2: Cumplimiento de los Compromisos Fiscales contenidos en el documento \"Compromisos de Ajuste Fiscal\" 2019"]
["Ítem","Ubigeo","Departamento","Provincia","Distrito","Gobierno Regional/ Gobiernos Local","Tipo de CAF",null,"CF1 1/",null,null,null,"CF2 2/",null,null,null,"CF3 3/",null,null,null,"CF4 4/",null,null,null,"CF5 5/",null,null,null,"CF6 6/",null,null,null,"CF7 7/",null,null,null,"CF8 8/",null,null,null,"Evaluación Global (%) 9/",null,"Opinión del CAF",null,"Cumplimiento de la RFSDT 10/","Cumplimiento de la RFACC 11/"]
[null,null,null,null,null,null,null,null,"Meta  (%)","Resultado (%)","Cumple",null,"Meta  (%)","Resultado (%)","Cumple",null,"Meta  (%)","Resultado (%)","Cumple",null,"Meta  (%)","Resultado (%)","Cumple",null,"Meta (Nº)","Resultado (Nº)","Cumple",null,"Meta (Nº)","Resultado (Nº)","Cumple",null,"Meta  (%)","Resultado (%)","Cumple",null,"Meta  (S/)","Resultado (S/)","Cumple"]
[1,"040000","AREQUIPA",null,null,"GOBIERNO REGIONAL DE AREQUIPA","Completo",null,"No aplica","No aplica","No aplica",null,"No aplica","No aplica","No aplica",null,7.28,6.8230236214562767,{"$f":"IF(R4<=Q4,\"Cumple\",\"No cumple\")","v":"Cumple"},null,-22,-17.017677170604784,{"$f":"IF(V4<=U4,\"Cumple\",\"No cumple\")","v":"No cumple"},null,2,1,{"$f":"IF(Z4>=2,\"Cumple\",\"No cumple\")","v":"No cumple"},null,3,3,{"$f":"IF($AD4>=3,\"Cumple\",\"No cumple\")","v":"Cumple"},null,"No aplica","No aplica","No aplica",null,"No aplica","No aplica","No aplica",null,{"$f":"COUNTIF(I4:AM4,\"Cumple\")/4*100","v":50},null,{"$f":"IF(AO4>=80,\"Favorable\",\"Desfavorable\")","v":"Desfavorable"},null,"Cumple","Cumple"]
[2,"180000","MOQUEGUA",null,null,"GOBIERNO REGIONAL DE MOQUEGUA","Completo",null,"No aplica","No aplica","No aplica",null,"No aplica","No aplica","No aplica",null,11.1,11.872918392131687,{"$f":"IF(R5<=Q5,\"Cumple\",\"No cumple\")","v":"No cumple"},null,4.0999999999999996,71.312270057775365,{"$f":"IF(V5<=U5,\"Cumple\",\"No cumple\")","v":"No cumple"},null,2,1,{"$f":"IF(Z5>=2,\"Cumple\",\"No cumple\")","v":"No cumple"},null,3,0,{"$f":"IF($AD5>=3,\"Cumple\",\"No cumple\")","v":"No cumple"},null,"No aplica","No aplica","No aplica",null,"No aplica","No aplica","No aplica",null,{"$f":"COUNTIF(I5:AM5,\"Cumple\")/4*100","v":0},null,{"$f":"IF(AO5>=80,\"Favorable\",\"Desfavorable\")","v":"Desfavorable"},null,"No Cumple","Cumple"]
[3,"200000","PIURA",null,null,"GOBIERNO REGIONAL DE PIURA","Completo",null,"No aplica","No aplica","No aplica",null,"No aplica","No aplica","No aplica",null,9.5,9.7814608671154932,"No cumple",null,-12,-49.021622883993409,"Cumple",null,2,2,"Cumple",null,7,7,"Cumple",null,"No aplica","No aplica","No aplica",null,"No aplica","No aplica","No aplica",null,{"$f":"COUNTIF(I6:AM6,\"Cumple\")/4*100","v":75},null,"Desfavorable",null,"No Cumple","Cumple"]
[4,"210000","PUNO",null,null,"GOBIERNO REGIONAL DE PUNO","Completo",null,"No aplica","No aplica","No aplica",null,"No aplica","No aplica","No aplica",null,7.01,6.8873364716595127,"Cumple",null,-8.5,54.441589350313883,"No cumple",null,2,0,"No cumple",null,3,0,"No cumple",null,"No aplica","No aplica","No aplica",null,"No aplica","No aplica","No aplica",null,{"$f":"COUNTIF(I7:AM7,\"Cumple\")/4*100","v":25},null,"Desfavorable",null,"Cumple","Cumple"]
[1,"030101","APURIMAC","ABANCAY","ABANCAY","MUNICIPALIDAD PROVINCIAL DE ABANCAY","Completo",null,5.3,6.2092506552785149,{"$f":"IF(J8>I8,\"Cumple\",\"No cumple\")","v":"Cumple"},null,25,38.962265388498579,{"$f":"IF(N8>=M8,\"Cumple\",\"No cumple\")","v":"Cumple"},null,22.4,26.003844608128261,"No cumple",null,-99.2,9.6506214343159744,"No cumple",null,2,1,"No cumple",null,4,1,"No cumple",null,"No aplica","No aplica","No aplica",null,"No aplica","No aplica","No aplica",null,{"$f":"COUNTIF(I8:AM8,\"Cumple\")/6*100","v":33.333333333333329},null,"Desfavorable",null,"No Cumple","Cumple"]
[2,"030201","APURIMAC","ANDAHUAYLAS","ANDAHUAYLAS","MUNICIPALIDAD PROVINCIAL DE ANDAHUAYLAS","Completo",null,24.8,29.5210253672407,{"$f":"IF(J9>I9,\"Cumple\",\"No cumple\")","v":"Cumple"},null,14,5.2539086621864,{"$f":"IF(N9>=M9,\"Cumple\",\"No cumple\")","v":"No cumple"},null,31.7,30.436877572341821,"Cumple",null,-90.9,-19.236230662918778,"No cumple",null,2,1,"No cumple",null,5,0,"No cumple",null,"No aplica","No aplica","No aplica",null,"No aplica","No aplica","No aplica",null,33.333333333333329,null,"Desfavorable",null,"No Cumple","Cumple"]
[3,"030501","APURIMAC","COTABAMBA","TAMBOBAMBA","MUNICIPALIDAD PROVINCIAL DE COTABAMBAS - TAMBOBAMBA","Completo",null,3.3,54.225634601495727,"Cumple",null,0,0,"Cumple",null,20.2,25.036257029824277,"No cumple",null,-75,-78.298700729814769,"Cumple",null,2,2,"Cumple",null,7,6,"Cumple",null,"No aplica","No aplica","No aplica",null,"No aplica","No aplica","No aplica",null,83.333333333333343,null,"Favorable",null,"No Cumple","Cumple"]
[4,"030503","APURIMAC","COTABAMBA","COYLLURQUI","MUNICIPALIDAD DISTRITAL DE COYLLURQUI","Completo",null,23,-74.551533707262649,"No cumple",null,0,0,"Cumple",null,13.49,34.91734344060194,"No cumple",null,-35,-45.125347683632199,"Cumple",null,2,2,"Cumple",null,3,2,"No cumple",null,"No aplica","No aplica","No aplica",null,"No aplica","No aplica","No aplica",null,50,null,"Desfavorable",null,"No Cumple","Cumple"]
[5,"040701","AREQUIPA","ISLAY","MOLLENDO","MUNICIPALIDAD PROVINCIAL DE ISLAY - MOLLENDO","Completo",null,5,9.1315915702500572,"Cumple",null,10,12.739059187225015,"Cumple",null,17,22.593138902828166,"No cumple",null,-5,23.580344430280036,"No cumple",null,2,0,"No cumple",null,4,0,"No cumple",null,"No aplica","No aplica","No aplica",null,"No aplica","No aplica","No aplica",null,33.333333333333329,null,"Desfavorable",null,"No Cumple","Cumple"]
[6,"070101","CALLAO","PROV. CALLAO","CALLAO","MUNICIPALIDAD PROVINCIAL DEL CALLAO","Completo",null,24.2,-12.043647522178384,"No cumple",null,51,51.177291198510801,"Cumple",null,16.899999999999999,51.269301214103258,"No cumple",null,-9.6999999999999993,99.004117220703819,"No cumple",null,2,2,"Cumple",null,3,3,"Cumple",null,"No aplica","No aplica","No aplica",null,"No aplica","No aplica","No aplica",null,50,null,"Desfavorable",null,"No Cumple","Cumple"]
[7,"070102","CALLAO","PROV. CALLAO","BELLAVISTA","MUNICIPALIDAD DISTRITAL DE BELLAVISTA","Completo",null,28.1,82.063830280760641,"Cumple",null,48,46.683439740288229,"No cumple",null,43.5,47.916074062687571,"No cumple",null,-37.799999999999997,-33.234598617057799,"No cumple",null,2,1,"No cumple",null,4,4,"Cumple",null,"No aplica","No aplica","No aplica",null,"No aplica","No aplica","No aplica",null,33.333333333333329,null,"Desfavorable",null,"No Cumple","Cumple"]
[8,"070103","CALLAO","PROV. CALLAO","CARMEN DE LA LEGUA REYNOS","MUNICIPALIDAD DISTRITAL DE CARMEN DE LA LEGUA REYNOSO","Completo",null,2.9,11.06001804934723,"Cumple",null,31.74,31.029167655739435,"No cumple",null,29.5,44.536376184584341,"No cumple",null,-5.3,4.2958058208137739,"No cumple",null,2,2,"Cumple",null,3,0,"No cumple",null,"No aplica","No aplica","No aplica",null,"No aplica","No aplica","No aplica",null,33.333333333333329,null,"Desfavorable",null,"No Cumple","Cumple"]
[9,"100601","HUANUCO","LEONCIO PRADO","RUPA-RUPA","MUNICIPALIDAD PROVINCIAL DE LEONCIO PRADO - RUPA RUPA","Completo",null,10.4,7.9756242924774527,"No cumple",null,24,26.39208628780332,"Cumple",null,19.399999999999999,25.341909932831449,"No cumple",null,-90,-53.692969823447882,"No cumple",null,2,2,"Cumple",null,3,3,"Cumple",null,"No aplica","No aplica","No aplica",null,"No aplica","No aplica","No aplica",null,50,null,"Desfavorable",null,"Cumple","Cumple"]
[10,"110101","ICA","ICA","ICA","MUNICIPALIDAD PROVINCIAL DE ICA","Completo",null,4,5.0425818203256902,"Cumple",null,17.5,13.405377386033326,"No cumple",null,17,22.580776677753846,"No cumple",null,166,12.616844864346213,"Cumple",null,2,0,"No cumple",null,4,0,"No cumple",null,"No aplica","No aplica","No aplica",null,"No aplica","No aplica","No aplica",null,33.333333333333329,null,"Desfavorable",null,"No Cumple","Cumple"]
[11,"110106","ICA","ICA","PARCONA","MUNICIPALIDAD DISTRITAL DE PARCONA","Completo",null,0.3,19.638494993755621,"Cumple",null,15.8,12.47410317675156,"No cumple",null,23,28.884443196549867,"No cumple",null,-10.3,561.27602154937915,"No cumple",null,2,2,"Cumple",null,4,0,"No cumple",null,"No aplica","No aplica","No aplica",null,"No aplica","No aplica","No aplica",null,33.333333333333329,null,"Desfavorable",null,"No Cumple","Cumple"]
[12,"110501","ICA","PISCO","PISCO","MUNICIPALIDAD PROVINCIAL DE PISCO","Completo",null,4.7,33.764228467648543,"Cumple",null,18,19.940630749821576,"Cumple",null,20,26.430759021861647,"No cumple",null,-2.5,4.1120099263157988,"No cumple",null,2,0,"No cumple",null,3,1,"No cumple",null,"No aplica","No aplica","No aplica",null,"No aplica","No aplica","No aplica",null,33.333333333333329,null,"Desfavorable",null,"No Cumple","Cumple"]
[13,"130105","LA LIBERTAD","TRUJILLO","LA ESPERANZA","MUNICIPALIDAD DISTRITAL DE LA ESPERANZA","Completo",null,11,11.716975683193853,"Cumple",null,34,38.094996714297444,"Cumple",null,20,35.988266265466827,"No cumple",null,-32,-80.414024058628485,"Cumple",null,2,2,"Cumple",null,3,3,"Cumple",null,"No aplica","No aplica","No aplica",null,"No aplica","No aplica","No aplica",null,83.333333333333343,null,"Favorable",null,"Cumple","Cumple"]
[14,"130702","LA LIBERTAD","PACASMAYO","GUADALUPE","MUNICIPALIDAD DISTRITAL DE GUADALUPE","Completo",null,2.4500000000000002,10.68943196104766,"Cumple",null,4.5,5.5318990653877202,"Cumple",null,20,37.624802414957948,"No cumple",null,-2.2999999999999998,15.886501525886651,"No cumple",null,2,2,"Cumple",null,3,0,"No cumple",null,"No aplica","No aplica","No aplica",null,"No aplica","No aplica","No aplica",null,50,null,"Desfavorable",null,"No Cumple","Cumple"]
[15,"140101","LAMBAYEQUE","CHICLAYO","CHICLAYO","MUNICIPALIDAD PROVINCIAL DE CHICLAYO","Completo",null,5,12.518884747623616,"Cumple",null,84.15,81.61374235696735,"No cumple",null,9,14.016604140546537,"No cumple",null,-3,-51.38166647873441,"Cumple",null,2,2,"Cumple",null,3,3,"Cumple",null,"No aplica","No aplica","No aplica",null,"No aplica","No aplica","No aplica",null,66.666666666666657,null,"Desfavorable",null,"No Cumple","Cumple"]
[16,"140105","LAMBAYEQUE","CHICLAYO","JOSE LEONARDO ORTIZ","MUNICIPALIDAD DISTRITAL DE JOSE LEONARDO ORTIZ","Completo",null,10,68.43317522729231,"Cumple",null,23.07,690.30522009443132,"Cumple",null,6.52,9.3175987353422123,"No cumple",null,-1,-34.270180331746673,"Cumple",null,2,2,"Cumple",null,7,0,"No cumple",null,"No aplica","No aplica","No aplica",null,"No aplica","No aplica","No aplica",null,66.666666666666657,null,"Desfavorable",null,"No Cumple","Cumple"]
[17,"140106","LAMBAYEQUE","CHICLAYO","LA VICTORIA","MUNICIPALIDAD DISTRITAL DE LA VICTORIA","Completo",null,2,16.981016864238274,"Cumple",null,53,42.274956917878875,"No cumple",null,11.33,20.906680904930507,"No cumple",null,-24,122.52156575118595,"No cumple",null,2,0,"No cumple",null,4,0,"No cumple",null,"No aplica","No aplica","No aplica",null,"No aplica","No aplica","No aplica",null,16.666666666666664,null,"Desfavorable",null,"No Cumple","Cumple"]
[18,"140201","LAMBAYEQUE","FERRENAFE","FERREÑAFE","MUNICIPALIDAD PROVINCIAL DE FERREÑAFE","Completo",null,2.5,19.982688180352724,"Cumple",null,13.32,27.934915957357724,"Cumple",null,13.14,15.472494308716755,"No cumple",null,-16.3,-57.433794271113086,"Cumple",null,2,2,"Cumple",null,3,3,"Cumple",null,"No aplica","No aplica","No aplica",null,"No aplica","No aplica","No aplica",null,83.333333333333343,null,"Favorable",null,"No Cumple","Cumple"]
[19,"150102","LIMA","LIMA","ANCÓN","MUNICIPALIDAD DISTRITAL DE ANCÓN","Completo",null,0.5,25.116085712972897,"Cumple",null,42,43.45985034182155,"Cumple",null,36.5,32.04533749745525,"Cumple",null,-1.2,4.0610532882782513,"No cumple",null,2,1,"No cumple",null,6,4,"Cumple",null,"No aplica","No aplica","No aplica",null,"No aplica","No aplica","No aplica",null,66.666666666666657,null,"Desfavorable",null,"No Cumple","Cumple"]
[20,"150104","LIMA","LIMA","BARRANCO","MUNICIPALIDAD DISTRITAL DE BARRANCO","Completo",null,1.56,25.257255532901802,"Cumple",null,88.57,101.2366858330447,"Cumple",null,45,39.572696276331229,"Cumple",null,-1,-1.611909181394056,"Cumple",null,2,2,"Cumple",null,7,7,"Cumple",null,"No aplica","No aplica","No aplica",null,"No aplica","No aplica","No aplica",null,100,null,"Favorable",null,"No Cumple","Cumple"]
[21,"150105","LIMA","LIMA","BREÑA","MUNICIPALIDAD DISTRITAL DE BREÑA","Completo",null,1.9,15.42943075523344,"Cumple",null,110,96.527600900102215,"No cumple",null,54.49,47.273842655954311,"Cumple",null,-26.4,2.1476582297316527,"No cumple",null,2,2,"Cumple",null,3,3,"Cumple",null,"No aplica","No aplica","No aplica",null,"No aplica","No aplica","No aplica",null,66.666666666666657,null,"Desfavorable",null,"No Cumple","Cumple"]
[22,"150111","LIMA","LIMA","EL AGUSTINO","MUNICIPALIDAD DISTRITAL DE EL AGUSTINO","Completo",null,2.06,13.614334904272349,"Cumple",null,41,41.280075426612946,"Cumple",null,23.34,32.782321996139729,"No cumple",null,-2.5,18.866048393206725,"No cumple",null,2,1,"No cumple",null,3,2,"No cumple",null,"No aplica","No aplica","No aplica",null,"No aplica","No aplica","No aplica",null,33.333333333333329,null,"Desfavorable",null,"No Cumple","Cumple"]
[23,"150112","LIMA","LIMA","INDEPENDENCIA","MUNICIPALIDAD DISTRITAL DE INDEPENDENCIA","Completo",null,3,4.9227020965116557,"Cumple",null,42,67.104100060775323,"Cumple",null,28,36.595717913370812,"No cumple",null,-5,76.337931636183555,"No cumple",null,2,1,"No cumple",null,3,0,"No cumple",null,"No aplica","No aplica","No aplica",null,"No aplica","No aplica","No aplica",null,33.333333333333329,null,"Desfavorable",null,"No Cumple","Cumple"]
[24,"150115","LIMA","LIMA","LA VICTORIA","MUNICIPALIDAD DISTRITAL DE LA VICTORIA","Completo",null,7.4,29.310677027813309,"Cumple",null,66.599999999999994,73.759306388131392,"Cumple",null,40.9,36.355735367134137,"Cumple",null,-13.3,18.691132295188275,"No cumple",null,2,2,"Cumple",null,4,4,"Cumple",null,"No aplica","No aplica","No aplica",null,"No aplica","No aplica","No aplica",null,83.333333333333343,null,"Favorable",null,"No Cumple","Cumple"]
[25,"150121","LIMA","LIMA","MAGDALENA VIEJA","MUNICIPALIDAD DISTRITAL DE PUEBLO LIBRE","Completo",null,1.82,16.071821586254778,"Cumple",null,102.19,92.172381523039775,"No cumple",null,46.62,46.348974239160512,"Cumple",null,-29.2,-33.514501076960954,"Cumple",null,2,2,"Cumple",null,3,3,"Cumple",null,"No aplica","No aplica","No aplica",null,"No aplica","No aplica","No aplica",null,83.333333333333343,null,"Favorable",null,"Cumple","Cumple"]
[26,"150132","LIMA","LIMA","SAN JUAN DE LURIGANCHO","MUNICIPALIDAD DISTRITAL DE SAN JUAN DE LURIGANCHO","Completo",null,2.1,6.0169177468712007,"Cumple",null,42.5,45.291678375812644,"Cumple",null,29.06,19.613135728537742,"Cumple",null,-5.84,94.247906238267817,"No cumple",null,2,0,"No cumple",null,4,0,"No cumple",null,"No aplica","No aplica","No aplica",null,"No aplica","No aplica","No aplica",null,50,null,"Desfavorable",null,"No Cumple","Cumple"]
[27,"150133","LIMA","LIMA","SAN JUAN DE MIRAFLORES","MUNICIPALIDAD DISTRITAL DE SAN JUAN DE MIRAFLORES","Completo",null,30.44,26.403693181878236,"No cumple",null,73.989999999999995,74.092260543194016,"Cumple",null,26.62,39.283574101249741,"No cumple",null,-1.5,-10.621864217478661,"Cumple",null,2,2,"Cumple",null,4,4,"Cumple",null,"No aplica","No aplica","No aplica",null,"No aplica","No aplica","No aplica",null,66.666666666666657,null,"Desfavorable",null,"No Cumple","Cumple"]
[28,"150134","LIMA","LIMA","SAN LUIS","MUNICIPALIDAD DISTRITAL DE SAN LUIS ","Completo",null,1.1000000000000001,2.5666888900072302,"Cumple",null,80.5,144.68749870278245,"Cumple",null,52.7,45.355092217827547,"Cumple",null,0,65.464622881938794,"No cumple",null,2,1,"No cumple",null,6,5,"Cumple",null,"No aplica","No aplica","No aplica",null,"No aplica","No aplica","No aplica",null,66.666666666666657,null,"Desfavorable",null,"No Cumple","Cumple"]
[29,"150135","LIMA","LIMA","SAN MARTÍN DE PORRES","MUNICIPALIDAD DISTRITAL DE SAN MARTÍN DE PORRES","Completo",null,0,1.9704763577628106,"Cumple",null,45,46.607585376481545,"Cumple",null,26,27.475110594323397,"No cumple",null,-5,-43.618882256258125,"Cumple",null,2,1,"No cumple",null,3,0,"No cumple",null,"No aplica","No aplica","No aplica",null,"No aplica","No aplica","No aplica",null,50,null,"Desfavorable",null,"No Cumple","Cumple"]
[30,"150143","LIMA","LIMA","VILLA MARIA DEL TRIUNFO","MUNICIPALIDAD DISTRITAL DE VILLA MARIA DEL TRIUNFO","Completo",null,5.57,43.80485627939904,"Cumple",null,49.86,56.472340757289103,"Cumple",null,44.32,36.030922780321141,"Cumple",null,-2.5,-32.514789374112574,"Cumple",null,2,0,"No cumple",null,3,2,"No cumple",null,"No aplica","No aplica","No aplica",null,"No aplica","No aplica","No aplica",null,66.666666666666657,null,"Desfavorable",null,"No Cumple","Cumple"]
[31,"150601","LIMA","HUARAL","HUARAL","MUNICIPALIDAD PROVINCIAL DE HUARAL","Completo",null,7.5,52.856351098631116,"Cumple",null,11,12.225332830789785,"Cumple",null,38.200000000000003,39.90582419323605,"No cumple",null,-29.3,3057.7164523616293,"No cumple",null,2,2,"Cumple",null,3,3,"Cumple",null,"No aplica","No aplica","No aplica",null,"No aplica","No aplica","No aplica",null,66.666666666666657,null,"Desfavorable",null,"No Cumple","Cumple"]
[32,"150605","LIMA","HUARAL","CHANCAY","MUNICIPALIDAD DISTRITAL DE CHANCAY","Completo",null,2.6,2.4452490155916458,"No cumple",null,51,52.99513600503105,"Cumple",null,50,26.954245709411751,"Cumple",null,-17.37,-42.861742766890899,"Cumple",null,2,2,"Cumple",null,3,3,"Cumple",null,"No aplica","No aplica","No aplica",null,"No aplica","No aplica","No aplica",null,83.333333333333343,null,"Favorable",null,"Cumple","Cumple"]
[33,"150716","LIMA","HUAROCHIRI","SAN ANTONIO","MUNICIPALIDAD DISTRITAL DE SAN ANTONIO","Completo",null,14,-14.086810001135373,"No cumple",null,35,106.88427940791728,"Cumple",null,49,57.483104910581737,"No cumple",null,-60,-57.313710250651852,"No cumple",null,2,0,"No cumple",null,3,0,"No cumple",null,"No aplica","No aplica","No aplica",null,"No aplica","No aplica","No aplica",null,16.666666666666664,null,"Desfavorable",null,"Cumple","Cumple"]
[34,"160301","LORETO","LORETO","NAUTA","MUNICIPALIDAD PROVINCIAL DE LORETO - NAUTA","Completo",null,54.3,11.767298904631064,"No cumple",null,1.2,4.8133875594377766,"Cumple",null,28,28.699102442174439,"No cumple",null,-2,6.499142141872829,"No cumple",null,2,1,"No cumple",null,3,0,"No cumple",null,"No aplica","No aplica","No aplica",null,"No aplica","No aplica","No aplica",null,16.666666666666664,null,"Desfavorable",null,"No Cumple","Cumple"]
[35,"190104","PASCO","PASCO","HUAYLLAY","MUNICIPALIDAD DISTRITAL DE HUAYLLAY","Completo",null,11.07,-10.126557252939204,"No cumple",null,0,0,"Cumple",null,32,36.543750697765475,"No cumple",null,-19.850000000000001,-8.5568030766569745,"No cumple",null,2,0,"No cumple",null,4,0,"No cumple",null,"No aplica","No aplica","No aplica",null,"No aplica","No aplica","No aplica",null,16.666666666666664,null,"Desfavorable",null,"Cumple","Cumple"]
[36,"200501","PIURA","PAITA","PAITA","MUNICIPALIDAD PROVINCIAL DE PAITA","Completo",null,0,4.001372660430782,"Cumple",null,12.18,23.86297515245607,"Cumple",null,22.98,31.133376688487431,"No cumple",null,-1,21.166057776954371,"No cumple",null,2,0,"No cumple",null,4,0,"No cumple",null,"No aplica","No aplica","No aplica",null,"No aplica","No aplica","No aplica",null,33.333333333333329,null,"Desfavorable",null,"Cumple","Cumple"]
[37,"230102","TACNA","TACNA","ALTO DE LA ALIANZA","MUNICIPALIDAD DISTRITAL DE ALTO DE LA ALIANZA","Completo",null,0,24.549649842236523,"Cumple",null,4.5999999999999996,14.90062245256089,"Cumple",null,56.1,46.75898611501075,"Cumple",null,-4.4000000000000004,30.945996338346085,"No cumple",null,2,0,"No cumple",null,6,0,"No cumple",null,"No aplica","No aplica","No aplica",null,"No aplica","No aplica","No aplica",null,50,null,"Desfavorable",null,"No Cumple","Cumple"]
[38,"230104","TACNA","TACNA","CIUDAD NUEVA","MUNICIPALIDAD DISTRITAL DE CIUDAD NUEVA","Completo",null,10,-37.873256426737022,"No cumple",null,12.3,19.54664186855171,"Cumple",null,20.34,46.337171566246532,"No cumple",null,0,-16.423081766086128,"Cumple",null,2,0,"No cumple",null,3,0,"No cumple",null,"No aplica","No aplica","No aplica",null,"No aplica","No aplica","No aplica",null,33.333333333333329,null,"Desfavorable",null,"Cumple","Cumple"]
[39,"230302","TACNA","JORGE BASADRE","ILABAYA","MUNICIPALIDAD DISTRITAL DE ILABAYA","Completo",null,3,-10.497955703048021,"No cumple",null,0,0,"Cumple",null,120.7,107.8846983598667,"Cumple",null,100,-75.959255327260465,"Cumple",null,2,1,"No cumple",null,3,1,"No cumple",null,"No aplica","No aplica","No aplica",null,"No aplica","No aplica","No aplica",null,50,null,"Desfavorable",null,"No Cumple","Cumple"]
[40,"250105","UCAYALI","CORONEL PORTILLO","YARINACOCHA","MUNICIPALIDAD DISTRITAL DE YARINACOCHA","Completo",null,7.5,-4.7184653961696137,"No cumple",null,14.79,23.998374075401369,"Cumple",null,40,40.76793518893372,"No cumple",null,-33.049999999999997,-31.054183285296123,"No cumple",null,2,0,"No cumple",null,5,0,"No cumple",null,"No aplica","No aplica","No aplica",null,"No aplica","No aplica","No aplica",null,16.666666666666664,null,"Desfavorable",null,"No Cumple","Cumple"]
[1,"060000","CAJAMARCA",null,null,"GOBIERNO REGIONAL DE CAJAMARCA","Simplificado",null,"No aplica","No aplica","No aplica",null,"No aplica","No aplica","No aplica",null,"No aplica","No aplica","No aplica",null,"No aplica","No aplica","No aplica",null,"No aplica","No aplica","No aplica",null,"No aplica","No aplica","No aplica",null,100.3,81.408251413031579,"Cumple",null,51500,58909.469570002082,"Cumple",null,{"$f":"COUNTIF(I48:AM48,\"Cumple\")/2*100","v":100},null,"Favorable",null,"Cumple","Cumple"]
[2,"130000","LA LIBERTAD",null,null,"GOBIERNO REGIONAL DE LA LIBERTAD","Simplificado",null,"No aplica","No aplica","No aplica",null,"No aplica","No aplica","No aplica",null,"No aplica","No aplica","No aplica",null,"No aplica","No aplica","No aplica",null,"No aplica","No aplica","No aplica",null,"No aplica","No aplica","No aplica",null,98,67.086478984246483,"Cumple",null,127000,128288.47276999569,"Cumple",null,100,null,"Favorable",null,"Cumple","Cumple"]
[3,"260000","LIMA",null,null,"REGION LIMA METROPOLITANA","Simplificado",null,"No aplica","No aplica","No aplica",null,"No aplica","No aplica","No aplica",null,"No aplica","No aplica","No aplica",null,"No aplica","No aplica","No aplica",null,"No aplica","No aplica","No aplica",null,"No aplica","No aplica","No aplica",null,10.83,75.336128903286692,"No cumple",null,-349.68,5595.7572999999966,"Cumple",null,50,null,"Desfavorable",null,"Cumple","Cumple"]
[1,"010112","AMAZONAS","CHACHAPOYAS","MAGDALENA","MUNICIPALIDAD DISTRITAL DE MAGDALENA","Simplificado",null,"No aplica","No aplica","No aplica",null,"No aplica","No aplica","No aplica",null,"No aplica","No aplica","No aplica",null,"No aplica","No aplica","No aplica",null,"No aplica","No aplica","No aplica",null,"No aplica","No aplica","No aplica",null,100,3.0146864033480174,"Cumple",null,0,192.0803500000001,"Cumple",null,100,null,"Favorable",null,"Cumple","Cumple"]
[2,"010120","AMAZONAS","CHACHAPOYAS","SOLOCO","MUNICIPALIDAD DISTRITAL DE SOLOCO","Simplificado",null,"No aplica","No aplica","No aplica",null,"No aplica","No aplica","No aplica",null,"No aplica","No aplica","No aplica",null,"No aplica","No aplica","No aplica",null,"No aplica","No aplica","No aplica",null,"No aplica","No aplica","No aplica",null,100,99.346668927204973,"Cumple",null,0,952.7661599999999,"Cumple",null,100,null,"Favorable",null,"Cumple","Cumple"]
[3,"010302","AMAZONAS","BONGARA","CHISQUILLA","MUNICIPALIDAD DISTRITAL DE CHISQUILLA","Simplificado",null,"No aplica","No aplica","No aplica",null,"No aplica","No aplica","No aplica",null,"No aplica","No aplica","No aplica",null,"No aplica","No aplica","No aplica",null,"No aplica","No aplica","No aplica",null,"No aplica","No aplica","No aplica",null,1.1000000000000001,3.0454114835125123,"No cumple",null,523.74,104.45427000000008,"No cumple",null,0,null,"Desfavorable",null,"Cumple","Cumple"]
[4,"010503","AMAZONAS","LUYA","COCABAMBA","MUNICIPALIDAD DISTRITAL DE COCABAMBA","Simplificado",null,"No aplica","No aplica","No aplica",null,"No aplica","No aplica","No aplica",null,"No aplica","No aplica","No aplica",null,"No aplica","No aplica","No aplica",null,"No aplica","No aplica","No aplica",null,"No aplica","No aplica","No aplica",null,100,175.33526634154569,"No cumple",null,0,451.87850999999989,"Cumple",null,50,null,"Desfavorable",null,"No Cumple","Cumple"]
[5,"010504","AMAZONAS","LUYA","COLCAMAR","MUNICIPALIDAD DISTRITAL DE COLCAMAR","Simplificado",null,"No aplica","No aplica","No aplica",null,"No aplica","No aplica","No aplica",null,"No aplica","No aplica","No aplica",null,"No aplica","No aplica","No aplica",null,"No aplica","No aplica","No aplica",null,"No aplica","No aplica","No aplica",null,97,4.1727514858959269,"Cumple",null,289,186.49939000000001,"No cumple",null,50,null,"Desfavorable",null,"Cumple","Cumple"]
[6,"010522","AMAZONAS","LUYA","TINGO","MUNICIPALIDAD DISTRITAL DE TINGO","Simplificado",null,"No aplica","No aplica","No aplica",null,"No aplica","No aplica","No aplica",null,"No aplica","No aplica","No aplica",null,"No aplica","No aplica","No aplica",null,"No aplica","No aplica","No aplica",null,"No aplica","No aplica","No aplica",null,45,12.93167658245846,"Cumple",null,0,156.13718999999995,"Cumple",null,100,null,"Favorable",null,"Cumple","Cumple"]
[7,"010602","AMAZONAS","RODRIGUEZ DE MENDOZA","CHIRIMOTO","MUNICIPALIDAD DISTRITAL DE CHIRIMOTO","Simplificado",null,"No aplica","No aplica","No aplica",null,"No aplica","No aplica","No aplica",null,"No aplica","No aplica","No aplica",null,"No aplica","No aplica","No aplica",null,"No aplica","No aplica","No aplica",null,"No aplica","No aplica","No aplica",null,100,4.254473047263625,"Cumple",null,0,221.08784000000009,"Cumple",null,100,null,"Favorable",null,"Cumple","Cumple"]
[8,"010605","AMAZONAS","RODRIGUEZ DE MENDOZA","LIMABAMBA","MUNICIPALIDAD DISTRITAL DE LIMABAMBA","Simplificado",null,"No aplica","No aplica","No aplica",null,"No aplica","No aplica","No aplica",null,"No aplica","No aplica","No aplica",null,"No aplica","No aplica","No aplica",null,"No aplica","No aplica","No aplica",null,"No aplica","No aplica","No aplica",null,100,240.10314301478729,"No cumple",null,0,354.67172999999985,"Cumple",null,50,null,"Desfavorable",null,"No Cumple","Cumple"]
[9,"010606","AMAZONAS","RODRIGUEZ DE MENDOZA","LONGAR","MUNICIPALIDAD DISTRITAL DE LONGAR","Simplificado",null,"No aplica","No aplica","No aplica",null,"No aplica","No aplica","No aplica",null,"No aplica","No aplica","No aplica",null,"No aplica","No aplica","No aplica",null,"No aplica","No aplica","No aplica",null,"No aplica","No aplica","No aplica",null,100,31.563259272059401,"Cumple",null,-80,145.53233999999992,"Cumple",null,100,null,"Favorable",null,"Cumple","Cumple"]
[10,"020513","ANCASH","BOLOGNESI","PACLLON","MUNICIPALIDAD DISTRITAL DE PACLLON","Simplificado",null,"No aplica","No aplica","No aplica",null,"No aplica","No aplica","No aplica",null,"No aplica","No aplica","No aplica",null,"No aplica","No aplica","No aplica",null,"No aplica","No aplica","No aplica",null,"No aplica","No aplica","No aplica",null,98.4,39.662974773414604,"Cumple",null,5700,2096.0327399999992,"No cumple",null,50,null,"Desfavorable",null,"Cumple","Cumple"]
[11,"020515","ANCASH","BOLOGNESI","TICLLOS","MUNICIPALIDAD DISTRITAL DE TICLLOS","Simplificado",null,"No aplica","No aplica","No aplica",null,"No aplica","No aplica","No aplica",null,"No aplica","No aplica","No aplica",null,"No aplica","No aplica","No aplica",null,"No aplica","No aplica","No aplica",null,"No aplica","No aplica","No aplica",null,98,55.991764155286475,"Cumple",null,0,1061.9302199999995,"Cumple",null,100,null,"Favorable",null,"Cumple","Cumple"]
[12,"020610","ANCASH","CARHUAZ","TINCO","MUNICIPALIDAD DISTRITAL DE TINCO","Simplificado",null,"No aplica","No aplica","No aplica",null,"No aplica","No aplica","No aplica",null,"No aplica","No aplica","No aplica",null,"No aplica","No aplica","No aplica",null,"No aplica","No aplica","No aplica",null,"No aplica","No aplica","No aplica",null,100,0.54884281219761988,"Cumple",null,358.5,1189.0473899999997,"Cumple",null,100,null,"Favorable",null,"Cumple","Cumple"]
[13,"021101","ANCASH","HUARMEY","HUARMEY","MUNICIPALIDAD PROVINCIAL DE HUARMEY","Simplificado",null,"No aplica","No aplica","No aplica",null,"No aplica","No aplica","No aplica",null,"No aplica","No aplica","No aplica",null,"No aplica","No aplica","No aplica",null,"No aplica","No aplica","No aplica",null,"No aplica","No aplica","No aplica",null,63.5,69.301084392379295,"No cumple",null,0,11321.061750000003,"Cumple",null,50,null,"Desfavorable",null,"Cumple","Cumple"]
[14,"021506","ANCASH","PALLASCA","LACABAMBA","MUNICIPALIDAD DISTRITAL DE LACABAMBA","Simplificado",null,"No aplica","No aplica","No aplica",null,"No aplica","No aplica","No aplica",null,"No aplica","No aplica","No aplica",null,"No aplica","No aplica","No aplica",null,"No aplica","No aplica","No aplica",null,"No aplica","No aplica","No aplica",null,100,89.614439412299106,"Cumple",null,0,420.72661999999985,"Cumple",null,100,null,"Favorable",null,"Cumple","Cumple"]
[15,"021508","ANCASH","PALLASCA","PALLASCA","MUNICIPALIDAD DISTRITAL DE PALLASCA","Simplificado",null,"No aplica","No aplica","No aplica",null,"No aplica","No aplica","No aplica",null,"No aplica","No aplica","No aplica",null,"No aplica","No aplica","No aplica",null,"No aplica","No aplica","No aplica",null,"No aplica","No aplica","No aplica",null,100,1.515068408287285,"Cumple",null,520,2212.0887699999994,"Cumple",null,100,null,"Favorable",null,"Cumple","Cumple"]
[16,"021803","ANCASH","SANTA","COISHCO","MUNICIPALIDAD DISTRITAL DE COISHCO","Simplificado",null,"No aplica","No aplica","No aplica",null,"No aplica","No aplica","No aplica",null,"No aplica","No aplica","No aplica",null,"No aplica","No aplica","No aplica",null,"No aplica","No aplica","No aplica",null,"No aplica","No aplica","No aplica",null,125,79.852224920568872,"Cumple",null,0,5078.2442600000031,"Cumple",null,100,null,"Favorable",null,"Cumple","Cumple"]
[17,"021902","ANCASH","SIHUAS","ACOBAMBA","MUNICIPALIDAD DISTRITAL DE ACOBAMBA","Simplificado",null,"No aplica","No aplica","No aplica",null,"No aplica","No aplica","No aplica",null,"No aplica","No aplica","No aplica",null,"No aplica","No aplica","No aplica",null,"No aplica","No aplica","No aplica",null,"No aplica","No aplica","No aplica",null,30,11.766067634049655,"Cumple",null,6641.08,1655.9454099999998,"No cumple",null,50,null,"Desfavorable",null,"Cumple","Cumple"]
[18,"030106","APURIMAC","ABANCAY","LAMBRAMA","MUNICIPALIDAD DISTRITAL DE LAMBRAMA","Simplificado",null,"No aplica","No aplica","No aplica",null,"No aplica","No aplica","No aplica",null,"No aplica","No aplica","No aplica",null,"No aplica","No aplica","No aplica",null,"No aplica","No aplica","No aplica",null,"No aplica","No aplica","No aplica",null,35,31.214256253825432,"Cumple",null,506,2638.3582800000004,"Cumple",null,100,null,"Favorable",null,"Cumple","Cumple"]
[19,"030402","APURIMAC","AYMARAES","CAPAYA","MUNICIPALIDAD DISTRITAL DE CAPAYA","Simplificado",null,"No aplica","No aplica","No aplica",null,"No aplica","No aplica","No aplica",null,"No aplica","No aplica","No aplica",null,"No aplica","No aplica","No aplica",null,"No aplica","No aplica","No aplica",null,"No aplica","No aplica","No aplica",null,90,7.2759185751639226,"Cumple",null,7457.48,353.48251999999991,"No cumple",null,50,null,{"$f":"IF(AO69>=80,\"Favorable\",\"Desfavorable\")","v":"Desfavorable"},null,"Cumple","Cumple"]
[20,"030409","APURIMAC","AYMARAES","LUCRE","MUNICIPALIDAD DISTRITAL DE LUCRE","Simplificado",null,"No aplica","No aplica","No aplica",null,"No aplica","No aplica","No aplica",null,"No aplica","No aplica","No aplica",null,"No aplica","No aplica","No aplica",null,"No aplica","No aplica","No aplica",null,"No aplica","No aplica","No aplica",null,7,8.6884130393032581,"No cumple",null,995,877.30520000000001,"No cumple",null,0,null,"Desfavorable",null,"Cumple","Cumple"]
[21,"030413","APURIMAC","AYMARAES","SORAYA","MUNICIPALIDAD DISTRITAL DE SORAYA","Simplificado",null,"No aplica","No aplica","No aplica",null,"No aplica","No aplica","No aplica",null,"No aplica","No aplica","No aplica",null,"No aplica","No aplica","No aplica",null,"No aplica","No aplica","No aplica",null,"No aplica","No aplica","No aplica",null,48,69.785989967366092,"No cumple",null,0,304.11965000000004,"Cumple",null,50,null,"Desfavorable",null,"Cumple","Cumple"]
[22,"030502","APURIMAC","COTABAMBA","COTABAMBAS","MUNICIPALIDAD DISTRITAL DE COTABAMBAS","Simplificado",null,"No aplica","No aplica","No aplica",null,"No aplica","No aplica","No aplica",null,"No aplica","No aplica","No aplica",null,"No aplica","No aplica","No aplica",null,"No aplica","No aplica","No aplica",null,"No aplica","No aplica","No aplica",null,442.01,310.99114824506165,"Cumple",null,1500,3125.1786799999995,"Cumple",null,100,null,"Favorable",null,"No Cumple","Cumple"]
[23,"030601","APURIMAC","CHINCHEROS","CHINCHEROS","MUNICIPALIDAD PROVINCIAL DE CHINCHEROS","Simplificado",null,"No aplica","No aplica","No aplica",null,"No aplica","No aplica","No aplica",null,"No aplica","No aplica","No aplica",null,"No aplica","No aplica","No aplica",null,"No aplica","No aplica","No aplica",null,"No aplica","No aplica","No aplica",null,192.72,388.00427697914984,"No cumple",null,250,2177.7511899999977,"Cumple",null,50,null,"Desfavorable",null,"No Cumple","Cumple"]
[24,"030701","APURIMAC","GRAU","CHUQUIBAMBILLA","MUNICIPALIDAD PROVINCIAL DE GRAU","Simplificado",null,"No aplica","No aplica","No aplica",null,"No aplica","No aplica","No aplica",null,"No aplica","No aplica","No aplica",null,"No aplica","No aplica","No aplica",null,"No aplica","No aplica","No aplica",null,"No aplica","No aplica","No aplica",null,967,935.97418783331113,"Cumple",null,3331.74,2311.6625500000009,"No cumple",null,50,null,"Desfavorable",null,"No Cumple","Cumple"]
[25,"030708","APURIMAC","GRAU","PROGRESO","MUNICIPALIDAD DISTRITAL DE PROGRESO","Simplificado",null,"No aplica","No aplica","No aplica",null,"No aplica","No aplica","No aplica",null,"No aplica","No aplica","No aplica",null,"No aplica","No aplica","No aplica",null,"No aplica","No aplica","No aplica",null,"No aplica","No aplica","No aplica",null,1004,1247.552756645968,"No cumple",null,2000,1920.7811200000006,"No cumple",null,0,null,"Desfavorable",null,"No Cumple","Cumple"]
[26,"040405","AREQUIPA","CASTILLA","CHILCAYMARCA","MUNICIPALIDAD DISTRITAL DE CHILCAYMARCA","Simplificado",null,"No aplica","No aplica","No aplica",null,"No aplica","No aplica","No aplica",null,"No aplica","No aplica","No aplica",null,"No aplica","No aplica","No aplica",null,"No aplica","No aplica","No aplica",null,"No aplica","No aplica","No aplica",null,5.0999999999999996,61.394845835168908,"No cumple",null,500,1377.9377700000002,"Cumple",null,50,null,"Desfavorable",null,"Cumple","Cumple"]
[27,"040802","AREQUIPA","LA UNION","ALCA","MUNICIPALIDAD DISTRITAL DE ALCA","Simplificado",null,"No aplica","No aplica","No aplica",null,"No aplica","No aplica","No aplica",null,"No aplica","No aplica","No aplica",null,"No aplica","No aplica","No aplica",null,"No aplica","No aplica","No aplica",null,"No aplica","No aplica","No aplica",null,80,2.77968126373153,"Cumple",null,1000,1220.6578499999996,"Cumple",null,100,null,"Favorable",null,"Cumple","Cumple"]
[28,"050104","AYACUCHO","HUAMANGA","CARMEN ALTO","MUNICIPALIDAD DISTRITAL DE CARMEN ALTO","Simplificado",null,"No aplica","No aplica","No aplica",null,"No aplica","No aplica","No aplica",null,"No aplica","No aplica","No aplica",null,"No aplica","No aplica","No aplica",null,"No aplica","No aplica","No aplica",null,"No aplica","No aplica","No aplica",null,4.1100000000000003,7.5211102068913727,"No cumple",null,1345.2,1196.2771599999987,"No cumple",null,0,null,"Desfavorable",null,"Cumple","Cumple"]
[29,"050106","AYACUCHO","HUAMANGA","OCROS","MUNICIPALIDAD DISTRITAL DE OCROS","Simplificado",null,"No aplica","No aplica","No aplica",null,"No aplica","No aplica","No aplica",null,"No aplica","No aplica","No aplica",null,"No aplica","No aplica","No aplica",null,"No aplica","No aplica","No aplica",null,"No aplica","No aplica","No aplica",null,351.01,52.037852796984971,"Cumple",null,1078.7,620.58565000000033,"No cumple",null,50,null,"Desfavorable",null,"Cumple","Cumple"]
[30,"050201","AYACUCHO","CANGALLO","CANGALLO","MUNICIPALIDAD PROVINCIAL DE CANGALLO","Simplificado",null,"No aplica","No aplica","No aplica",null,"No aplica","No aplica","No aplica",null,"No aplica","No aplica","No aplica",null,"No aplica","No aplica","No aplica",null,"No aplica","No aplica","No aplica",null,"No aplica","No aplica","No aplica",null,249.36,21.871554347748333,"Cumple",null,644.95000000000005,1656.9572699999997,"Cumple",null,100,null,"Favorable",null,"Cumple","Cumple"]
[31,"050304","AYACUCHO","HUANCA SANCOS","SANTIAGO DE LUCANAMARCA","MUNICIPALIDAD DISTRITAL DE SANTIAGO DE LUCANAMARCA","Simplificado",null,"No aplica","No aplica","No aplica",null,"No aplica","No aplica","No aplica",null,"No aplica","No aplica","No aplica",null,"No aplica","No aplica","No aplica",null,"No aplica","No aplica","No aplica",null,"No aplica","No aplica","No aplica",null,258.67,14.574398529304542,"Cumple",null,597.44000000000005,732.59841999999992,"Cumple",null,100,null,"Favorable",null,"Cumple","Cumple"]
[32,"050405","AYACUCHO","HUANTA","LURICOCHA","MUNICIPALIDAD DISTRITAL DE LURICOCHA","Simplificado",null,"No aplica","No aplica","No aplica",null,"No aplica","No aplica","No aplica",null,"No aplica","No aplica","No aplica",null,"No aplica","No aplica","No aplica",null,"No aplica","No aplica","No aplica",null,"No aplica","No aplica","No aplica",null,100,221.52282283685651,"No cumple",null,0,1612.6960900000006,"Cumple",null,50,null,"Desfavorable",null,"No Cumple","Cumple"]
[33,"050503","AYACUCHO","LA MAR","AYNA","MUNICIPALIDAD DISTRITAL DE AYNA","Simplificado",null,"No aplica","No aplica","No aplica",null,"No aplica","No aplica","No aplica",null,"No aplica","No aplica","No aplica",null,"No aplica","No aplica","No aplica",null,"No aplica","No aplica","No aplica",null,"No aplica","No aplica","No aplica",null,89.5,130.80767597893185,"No cumple",null,879.29,1435.56367,"Cumple",null,50,null,"Desfavorable",null,"No Cumple","Cumple"]
[34,"050707","AYACUCHO","PARINACOCHAS","SAN FRANCISCO DE RAVACAYC","MUNICIPALIDAD DISTRITAL DE SAN FRANCISCO DE RAVACAYCO","Simplificado",null,"No aplica","No aplica","No aplica",null,"No aplica","No aplica","No aplica",null,"No aplica","No aplica","No aplica",null,"No aplica","No aplica","No aplica",null,"No aplica","No aplica","No aplica",null,"No aplica","No aplica","No aplica",null,100,1.32689845281703,"Cumple",null,500,541.61633999999981,"Cumple",null,100,null,"Favorable",null,"Cumple","Cumple"]
[35,"051001","AYACUCHO","VICTOR FAJARDO","HUANCAPI","MUNICIPALIDAD PROVINCIAL DE VICTOR FAJARDO","Simplificado",null,"No aplica","No aplica","No aplica",null,"No aplica","No aplica","No aplica",null,"No aplica","No aplica","No aplica",null,"No aplica","No aplica","No aplica",null,"No aplica","No aplica","No aplica",null,"No aplica","No aplica","No aplica",null,144.99,129.11751716465506,"Cumple",null,2894.5,2992.4761799999978,"Cumple",null,100,null,"Favorable",null,"No Cumple","Cumple"]
[36,"051108","AYACUCHO","VILCASHUAMAN","VISCHONGO","MUNICIPALIDAD DISTRITAL DE VISCHONGO","Simplificado",null,"No aplica","No aplica","No aplica",null,"No aplica","No aplica","No aplica",null,"No aplica","No aplica","No aplica",null,"No aplica","No aplica","No aplica",null,"No aplica","No aplica","No aplica",null,"No aplica","No aplica","No aplica",null,236,266.26376529457832,"No cumple",null,-456.44,923.66617999999971,"Cumple",null,50,null,"Desfavorable",null,"No Cumple","Cumple"]
[37,"060112","CAJAMARCA","CAJAMARCA","SAN JUAN","MUNICIPALIDAD DISTRITAL DE SAN JUAN","Simplificado",null,"No aplica","No aplica","No aplica",null,"No aplica","No aplica","No aplica",null,"No aplica","No aplica","No aplica",null,"No aplica","No aplica","No aplica",null,"No aplica","No aplica","No aplica",null,"No aplica","No aplica","No aplica",null,1.26,119.31697609610652,"No cumple",null,429.83,553.36086999999986,"Cumple",null,50,null,"Desfavorable",null,"No Cumple","Cumple"]
[38,"060402","CAJAMARCA","CHOTA","ANGUIA","MUNICIPALIDAD DISTRITAL DE ANGUIA","Simplificado",null,"No aplica","No aplica","No aplica",null,"No aplica","No aplica","No aplica",null,"No aplica","No aplica","No aplica",null,"No aplica","No aplica","No aplica",null,"No aplica","No aplica","No aplica",null,"No aplica","No aplica","No aplica",null,850,14.773708005596514,"Cumple",null,0,617.8473899999999,"Cumple",null,100,null,"Favorable",null,"Cumple","Cumple"]
[39,"060406","CAJAMARCA","CHOTA","CHOROPAMPA","MUNICIPALIDAD DISTRITAL DE CHOROPAMPA","Simplificado",null,"No aplica","No aplica","No aplica",null,"No aplica","No aplica","No aplica",null,"No aplica","No aplica","No aplica",null,"No aplica","No aplica","No aplica",null,"No aplica","No aplica","No aplica",null,"No aplica","No aplica","No aplica",null,12.9,77.668059366034498,"No cumple",null,180,713.18952999999976,"Cumple",null,50,null,"Desfavorable",null,"Cumple","Cumple"]
[40,"060414","CAJAMARCA","CHOTA","PION","MUNICIPALIDAD DISTRITAL DE PION","Simplificado",null,"No aplica","No aplica","No aplica",null,"No aplica","No aplica","No aplica",null,"No aplica","No aplica","No aplica",null,"No aplica","No aplica","No aplica",null,"No aplica","No aplica","No aplica",null,"No aplica","No aplica","No aplica",null,100,158.32651606571113,"No cumple",null,35.36,112.42342000000004,"Cumple",null,50,null,"Desfavorable",null,"No Cumple","Cumple"]
[41,"061310","CAJAMARCA","SANTA CRUZ","UTICYACU","MUNICIPALIDAD DISTRITAL DE UTICYACU","Simplificado",null,"No aplica","No aplica","No aplica",null,"No aplica","No aplica","No aplica",null,"No aplica","No aplica","No aplica",null,"No aplica","No aplica","No aplica",null,"No aplica","No aplica","No aplica",null,"No aplica","No aplica","No aplica",null,150,112.33982459367458,"Cumple",null,200,118.27348000000009,"No cumple",null,50,null,"Desfavorable",null,"No Cumple","Cumple"]
[42,"081102","CUSCO","PAUCARTAMBO","CAICAY","MUNICIPALIDAD DISTRITAL DE CAICAY","Simplificado",null,"No aplica","No aplica","No aplica",null,"No aplica","No aplica","No aplica",null,"No aplica","No aplica","No aplica",null,"No aplica","No aplica","No aplica",null,"No aplica","No aplica","No aplica",null,"No aplica","No aplica","No aplica",null,0.95,0.9184734475826819,"Cumple",null,0,1797.7465799999995,"Cumple",null,100,null,"Favorable",null,"Cumple","Cumple"]
[43,"090202","HUANCAVELICA","ACOBAMBA","ANDABAMBA","MUNICIPALIDAD DISTRITAL DE ANDABAMBA","Simplificado",null,"No aplica","No aplica","No aplica",null,"No aplica","No aplica","No aplica",null,"No aplica","No aplica","No aplica",null,"No aplica","No aplica","No aplica",null,"No aplica","No aplica","No aplica",null,"No aplica","No aplica","No aplica",null,99,164.93162431611674,"No cumple",null,1700,1067.1299000000004,"No cumple",null,0,null,"Desfavorable",null,"No Cumple","Cumple"]
[44,"090204","HUANCAVELICA","ACOBAMBA","CAJA","MUNICIPALIDAD DISTRITAL DE CAJA","Simplificado",null,"No aplica","No aplica","No aplica",null,"No aplica","No aplica","No aplica",null,"No aplica","No aplica","No aplica",null,"No aplica","No aplica","No aplica",null,"No aplica","No aplica","No aplica",null,"No aplica","No aplica","No aplica",null,400,579.75794912755066,"No cumple",null,1500,434.13120999999973,"No cumple",null,0,null,"Desfavorable",null,"No Cumple","Cumple"]
[45,"090302","HUANCAVELICA","ANGARAES","ANCHONGA","MUNICIPALIDAD DISTRITAL DE ANCHONGA","Simplificado",null,"No aplica","No aplica","No aplica",null,"No aplica","No aplica","No aplica",null,"No aplica","No aplica","No aplica",null,"No aplica","No aplica","No aplica",null,"No aplica","No aplica","No aplica",null,"No aplica","No aplica","No aplica",null,210,224.6736517533804,"No cumple",null,700,1406.3296700000008,"Cumple",null,50,null,"Desfavorable",null,"No Cumple","Cumple"]
[46,"090404","HUANCAVELICA","CASTROVIRREYNA","CAPILLAS","MUNICIPALIDAD DISTRITAL DE CAPILLAS","Simplificado",null,"No aplica","No aplica","No aplica",null,"No aplica","No aplica","No aplica",null,"No aplica","No aplica","No aplica",null,"No aplica","No aplica","No aplica",null,"No aplica","No aplica","No aplica",null,"No aplica","No aplica","No aplica",null,100,16.480302213158801,"Cumple",null,0,384.38535999999988,"Cumple",null,100,null,"Favorable",null,"Cumple","Cumple"]
[47,"100608","HUANUCO","LEONCIO PRADO","CASTILLO GRANDE","MUNICIPALIDAD DISTRITAL DE CASTILLO GRANDE","Simplificado",null,"No aplica","No aplica","No aplica",null,"No aplica","No aplica","No aplica",null,"No aplica","No aplica","No aplica",null,"No aplica","No aplica","No aplica",null,"No aplica","No aplica","No aplica",null,"No aplica","No aplica","No aplica",null,0,3.4624447267696352,"No cumple",null,-120,954.67708999999991,"Cumple",null,50,null,"Desfavorable",null,"Cumple","Cumple"]
[48,"110211","ICA","CHINCHA","TAMBO DE MORA","MUNICIPALIDAD DISTRITAL DE TAMBO DE MORA","Simplificado",null,"No aplica","No aplica","No aplica",null,"No aplica","No aplica","No aplica",null,"No aplica","No aplica","No aplica",null,"No aplica","No aplica","No aplica",null,"No aplica","No aplica","No aplica",null,"No aplica","No aplica","No aplica",null,100,93.286808539019361,"Cumple",null,0,1152.4828200000002,"Cumple",null,100,null,"Favorable",null,"Cumple","Cumple"]
[49,"110402","ICA","PALPA","LLIPATA","MUNICIPALIDAD DISTRITAL DE LLIPATA","Simplificado",null,"No aplica","No aplica","No aplica",null,"No aplica","No aplica","No aplica",null,"No aplica","No aplica","No aplica",null,"No aplica","No aplica","No aplica",null,"No aplica","No aplica","No aplica",null,"No aplica","No aplica","No aplica",null,110.54,68.500870216901262,"Cumple",null,0,191.65572999999998,"Cumple",null,100,null,"Favorable",null,"Cumple","Cumple"]
[50,"110506","ICA","PISCO","SAN ANDRES","MUNICIPALIDAD DISTRITAL DE SAN ANDRES","Simplificado",null,"No aplica","No aplica","No aplica",null,"No aplica","No aplica","No aplica",null,"No aplica","No aplica","No aplica",null,"No aplica","No aplica","No aplica",null,"No aplica","No aplica","No aplica",null,"No aplica","No aplica","No aplica",null,114.94,110.79051795773658,"Cumple",null,0,1932.3354299999987,"Cumple",null,100,null,"Favorable",null,"No Cumple","Cumple"]
[51,"120120","JUNIN","HUANCAYO","HUASICANCHA","MUNICIPALIDAD DISTRITAL DE HUASICANCHA","Simplificado",null,"No aplica","No aplica","No aplica",null,"No aplica","No aplica","No aplica",null,"No aplica","No aplica","No aplica",null,"No aplica","No aplica","No aplica",null,"No aplica","No aplica","No aplica",null,"No aplica","No aplica","No aplica",null,259.17,369.73183543638345,"No cumple",null,0,185.42752000000002,"Cumple",null,50,null,"Desfavorable",null,"No Cumple","Cumple"]
[52,"120207","JUNIN","CONCEPCION","HEROINAS TOLEDO","MUNICIPALIDAD DISTRITAL DE HEROINAS TOLEDO","Simplificado",null,"No aplica","No aplica","No aplica",null,"No aplica","No aplica","No aplica",null,"No aplica","No aplica","No aplica",null,"No aplica","No aplica","No aplica",null,"No aplica","No aplica","No aplica",null,"No aplica","No aplica","No aplica",null,100.17,79.673794298130915,"Cumple",null,0,117.90257000000001,"Cumple",null,100,null,"Favorable",null,"Cumple","Cumple"]
[53,"120402","JUNIN","JAUJA","ACOLLA","MUNICIPALIDAD DISTRITAL DE ACOLLA","Simplificado",null,"No aplica","No aplica","No aplica",null,"No aplica","No aplica","No aplica",null,"No aplica","No aplica","No aplica",null,"No aplica","No aplica","No aplica",null,"No aplica","No aplica","No aplica",null,"No aplica","No aplica","No aplica",null,100,27.535386837126367,"Cumple",null,0,3274.4835300000009,"Cumple",null,100,null,"Favorable",null,"Cumple","Cumple"]
[54,"130104","LA LIBERTAD","TRUJILLO","HUANCHACO","MUNICIPALIDAD DISTRITAL DE HUANCHACO","Simplificado",null,"No aplica","No aplica","No aplica",null,"No aplica","No aplica","No aplica",null,"No aplica","No aplica","No aplica",null,"No aplica","No aplica","No aplica",null,"No aplica","No aplica","No aplica",null,"No aplica","No aplica","No aplica",null,30,54.192055286371399,"No cumple",null,-1708.17,6093.1326699999963,"Cumple",null,50,null,"Desfavorable",null,"Cumple","Cumple"]
[55,"130106","LA LIBERTAD","TRUJILLO","LAREDO","MUNICIPALIDAD DISTRITAL DE LAREDO","Simplificado",null,"No aplica","No aplica","No aplica",null,"No aplica","No aplica","No aplica",null,"No aplica","No aplica","No aplica",null,"No aplica","No aplica","No aplica",null,"No aplica","No aplica","No aplica",null,"No aplica","No aplica","No aplica",null,58.4,70.28954611990244,"No cumple",null,-3000,573.6287500000019,"Cumple",null,50,null,"Desfavorable",null,"Cumple","Cumple"]
[56,"130207","LA LIBERTAD","ASCOPE","SANTIAGO DE CAO","MUNICIPALIDAD DISTRITAL DE SANTIAGO DE CAO","Simplificado",null,"No aplica","No aplica","No aplica",null,"No aplica","No aplica","No aplica",null,"No aplica","No aplica","No aplica",null,"No aplica","No aplica","No aplica",null,"No aplica","No aplica","No aplica",null,"No aplica","No aplica","No aplica",null,187.22,217.99072756083331,"No cumple",null,0,2231.8551699999989,"Cumple",null,50,null,"Desfavorable",null,"No Cumple","Cumple"]
[57,"140104","LAMBAYEQUE","CHICLAYO","ETEN PUERTO","MUNICIPALIDAD DISTRITAL DE ETEN PUERTO","Simplificado",null,"No aplica","No aplica","No aplica",null,"No aplica","No aplica","No aplica",null,"No aplica","No aplica","No aplica",null,"No aplica","No aplica","No aplica",null,"No aplica","No aplica","No aplica",null,"No aplica","No aplica","No aplica",null,272,287.906237282066,"No cumple",null,400,70.720570000000066,"No cumple",null,0,null,"Desfavorable",null,"No Cumple","Cumple"]
[58,"140111","LAMBAYEQUE","CHICLAYO","PICSI","MUNICIPALIDAD DISTRITAL DE PICSI","Simplificado",null,"No aplica","No aplica","No aplica",null,"No aplica","No aplica","No aplica",null,"No aplica","No aplica","No aplica",null,"No aplica","No aplica","No aplica",null,"No aplica","No aplica","No aplica",null,"No aplica","No aplica","No aplica",null,145,123.51545947775018,"Cumple",null,-220,-85.760800000000515,"Cumple",null,100,null,"Favorable",null,"No Cumple","No Cumple"]
[59,"140116","LAMBAYEQUE","CHICLAYO","CAYALTI","MUNICIPALIDAD DISTRITAL DE CAYALTI","Simplificado",null,"No aplica","No aplica","No aplica",null,"No aplica","No aplica","No aplica",null,"No aplica","No aplica","No aplica",null,"No aplica","No aplica","No aplica",null,"No aplica","No aplica","No aplica",null,"No aplica","No aplica","No aplica",null,50,25.069442713422021,"Cumple",null,227.97,610.22601999999961,"Cumple",null,100,null,"Favorable",null,"Cumple","Cumple"]
[60,"140118","LAMBAYEQUE","CHICLAYO","POMALCA","MUNICIPALIDAD DISTRITAL DE POMALCA","Simplificado",null,"No aplica","No aplica","No aplica",null,"No aplica","No aplica","No aplica",null,"No aplica","No aplica","No aplica",null,"No aplica","No aplica","No aplica",null,"No aplica","No aplica","No aplica",null,"No aplica","No aplica","No aplica",null,19.71,26.584787972655072,"No cumple",null,1286,41.155419999998998,"No cumple",null,0,null,"Desfavorable",null,"Cumple","Cumple"]
[61,"140205","LAMBAYEQUE","FERRENAFE","PITIPO","MUNICIPALIDAD DISTRITAL DE PITIPO","Simplificado",null,"No aplica","No aplica","No aplica",null,"No aplica","No aplica","No aplica",null,"No aplica","No aplica","No aplica",null,"No aplica","No aplica","No aplica",null,"No aplica","No aplica","No aplica",null,"No aplica","No aplica","No aplica",null,65.56,129.90314250986637,"No cumple",null,0,1966.7372699999996,"Cumple",null,50,null,"Desfavorable",null,"No Cumple","Cumple"]
[62,"140310","LAMBAYEQUE","LAMBAYEQUE","SALAS","MUNICIPALIDAD DISTRITAL DE SALAS","Simplificado",null,"No aplica","No aplica","No aplica",null,"No aplica","No aplica","No aplica",null,"No aplica","No aplica","No aplica",null,"No aplica","No aplica","No aplica",null,"No aplica","No aplica","No aplica",null,"No aplica","No aplica","No aplica",null,100,20.504881187853101,"Cumple",null,1000,1608.8116200000011,"Cumple",null,{"$f":"COUNTIF(I112:AM112,\"Cumple\")/2*100","v":100},null,"Favorable",null,"Cumple","Cumple"]
[63,"150110","LIMA","LIMA","COMAS","MUNICIPALIDAD DISTRITAL DE COMAS","Simplificado",null,"No aplica","No aplica","No aplica",null,"No aplica","No aplica","No aplica",null,"No aplica","No aplica","No aplica",null,"No aplica","No aplica","No aplica",null,"No aplica","No aplica","No aplica",null,"No aplica","No aplica","No aplica",null,99,120.43442072590021,"No cumple",null,746,9896.5310899999731,"Cumple",null,50,null,"Desfavorable",null,"No Cumple","Cumple"]
[64,"150128","LIMA","LIMA","RÍMAC","MUNICIPALIDAD DISTRITAL DEL RÍMAC","Simplificado",null,"No aplica","No aplica","No aplica",null,"No aplica","No aplica","No aplica",null,"No aplica","No aplica","No aplica",null,"No aplica","No aplica","No aplica",null,"No aplica","No aplica","No aplica",null,"No aplica","No aplica","No aplica",null,95.82,86.652335544569553,"Cumple",null,0,3806.0267599999943,"Cumple",null,100,null,"Favorable",null,"Cumple","Cumple"]
[65,"150129","LIMA","LIMA","SAN BARTOLO","MUNICIPALIDAD DISTRITAL DE SAN BARTOLO","Simplificado",null,"No aplica","No aplica","No aplica",null,"No aplica","No aplica","No aplica",null,"No aplica","No aplica","No aplica",null,"No aplica","No aplica","No aplica",null,"No aplica","No aplica","No aplica",null,"No aplica","No aplica","No aplica",null,89.27,76.162776080834206,"Cumple",null,4640.1996799999997,1421.2404899999974,"No cumple",null,50,null,"Desfavorable",null,"Cumple","Cumple"]
[66,"150201","LIMA","BARRANCA","BARRANCA","MUNICIPALIDAD PROVINCIAL DE BARRANCA","Simplificado",null,"No aplica","No aplica","No aplica",null,"No aplica","No aplica","No aplica",null,"No aplica","No aplica","No aplica",null,"No aplica","No aplica","No aplica",null,"No aplica","No aplica","No aplica",null,"No aplica","No aplica","No aplica",null,101.38,97.494791384809616,"Cumple",null,100,3398.7134999999926,"Cumple",null,100,null,"Favorable",null,"Cumple","Cumple"]
[67,"150202","LIMA","BARRANCA","PARAMONGA","MUNICIPALIDAD DISTRITAL DE PARAMONGA","Simplificado",null,"No aplica","No aplica","No aplica",null,"No aplica","No aplica","No aplica",null,"No aplica","No aplica","No aplica",null,"No aplica","No aplica","No aplica",null,"No aplica","No aplica","No aplica",null,"No aplica","No aplica","No aplica",null,100,132.2943993321629,"No cumple",null,-1307.05,1688.1749899999966,"Cumple",null,50,null,"Desfavorable",null,"No Cumple","Cumple"]
[68,"150205","LIMA","BARRANCA","SUPE PUERTO","MUNICIPALIDAD DISTRITAL DE SUPE PUERTO ","Simplificado",null,"No aplica","No aplica","No aplica",null,"No aplica","No aplica","No aplica",null,"No aplica","No aplica","No aplica",null,"No aplica","No aplica","No aplica",null,"No aplica","No aplica","No aplica",null,"No aplica","No aplica","No aplica",null,188.17,186.57588011429368,"Cumple",null,990,788.98997999999995,"No cumple",null,50,null,"Desfavorable",null,"No Cumple","Cumple"]
[69,"150510","LIMA","CAÑETE","NUEVO IMPERIAL","MUNICIPALIDAD DISTRITAL DE NUEVO IMPERIAL","Simplificado",null,"No aplica","No aplica","No aplica",null,"No aplica","No aplica","No aplica",null,"No aplica","No aplica","No aplica",null,"No aplica","No aplica","No aplica",null,"No aplica","No aplica","No aplica",null,"No aplica","No aplica","No aplica",null,295,77.863730397444499,"Cumple",null,956.32,4069.3559699999987,"Cumple",null,100,null,"Favorable",null,"Cumple","Cumple"]
[70,"150712","LIMA","HUAROCHIRI","SAN PEDRO DE LARAOS","MUNICIPALIDAD DISTRITAL DE SAN PEDRO DE LARAOS","Simplificado",null,"No aplica","No aplica","No aplica",null,"No aplica","No aplica","No aplica",null,"No aplica","No aplica","No aplica",null,"No aplica","No aplica","No aplica",null,"No aplica","No aplica","No aplica",null,"No aplica","No aplica","No aplica",null,99,1.0943994792257048,"Cumple",null,-300,1161.4481600000001,"Cumple",null,100,null,"Favorable",null,"Cumple","Cumple"]
[71,"151009","LIMA","YAUYOS","CHOCOS","MUNICIPALIDAD DISTRITAL DE CHOCOS","Simplificado",null,"No aplica","No aplica","No aplica",null,"No aplica","No aplica","No aplica",null,"No aplica","No aplica","No aplica",null,"No aplica","No aplica","No aplica",null,"No aplica","No aplica","No aplica",null,"No aplica","No aplica","No aplica",null,89,25.869402534478443,"Cumple",null,0,778.55142999999998,"Cumple",null,100,null,"Favorable",null,"Cumple","Cumple"]
[72,"160302","LORETO","LORETO","PARINARI (1)","MUNICIPALIDAD DISTRITAL DE PARINARI","Simplificado",null,"No aplica","No aplica","No aplica",null,"No aplica","No aplica","No aplica",null,"No aplica","No aplica","No aplica",null,"No aplica","No aplica","No aplica",null,"No aplica","No aplica","No aplica",null,"No aplica","No aplica","No aplica",null,107.23,145.47283249348447,"No cumple",null,308.99,1165.1950999999997,"Cumple",null,50,null,"Desfavorable",null,"No Cumple","Cumple"]
[73,"160305","LORETO","LORETO","URARINAS (2)","MUNICIPALIDAD DISTRITAL DE URARINAS","Simplificado",null,"No aplica","No aplica","No aplica",null,"No aplica","No aplica","No aplica",null,"No aplica","No aplica","No aplica",null,"No aplica","No aplica","No aplica",null,"No aplica","No aplica","No aplica",null,"No aplica","No aplica","No aplica",null,100,56.193581675295654,"Cumple",null,2711.23,1607.3737699999986,"No cumple",null,50,null,"Desfavorable",null,"Cumple","Cumple"]
[74,"160502","LORETO","REQUENA","ALTO TAPICHE","MUNICIPALIDAD DISTRITAL DE ALTO TAPICHE","Simplificado",null,"No aplica","No aplica","No aplica",null,"No aplica","No aplica","No aplica",null,"No aplica","No aplica","No aplica",null,"No aplica","No aplica","No aplica",null,"No aplica","No aplica","No aplica",null,"No aplica","No aplica","No aplica",null,225.88,253.42527334389987,"No cumple",null,800,293.86221999999998,"No cumple",null,0,null,"Desfavorable",null,"No Cumple","Cumple"]
[75,"190103","PASCO","PASCO","HUARIACA","MUNICIPALIDAD DISTRITAL DE HUARIACA","Simplificado",null,"No aplica","No aplica","No aplica",null,"No aplica","No aplica","No aplica",null,"No aplica","No aplica","No aplica",null,"No aplica","No aplica","No aplica",null,"No aplica","No aplica","No aplica",null,"No aplica","No aplica","No aplica",null,112.03,83.037996242506182,"Cumple",null,1200,1511.8484100000003,"Cumple",null,100,null,"Favorable",null,"Cumple","Cumple"]
[76,"190110","PASCO","PASCO","TICLACAYAN","MUNICIPALIDAD DISTRITAL DE TICLACAYAN","Simplificado",null,"No aplica","No aplica","No aplica",null,"No aplica","No aplica","No aplica",null,"No aplica","No aplica","No aplica",null,"No aplica","No aplica","No aplica",null,"No aplica","No aplica","No aplica",null,"No aplica","No aplica","No aplica",null,155.46,125.41122978692026,"Cumple",null,5000,4318.2770199999995,"No cumple",null,50,null,"Desfavorable",null,"No Cumple","Cumple"]
[77,"190111","PASCO","PASCO","TINYAHUARCO","MUNICIPALIDAD DISTRITAL DE TINYAHUARCO","Simplificado",null,"No aplica","No aplica","No aplica",null,"No aplica","No aplica","No aplica",null,"No aplica","No aplica","No aplica",null,"No aplica","No aplica","No aplica",null,"No aplica","No aplica","No aplica",null,"No aplica","No aplica","No aplica",null,180.66,113.86766871446387,"Cumple",null,4064.04504,3822.4879600000017,"No cumple",null,50,null,"Desfavorable",null,"No Cumple","Cumple"]
[78,"200108","PIURA","PIURA","EL TALLAN","MUNICIPALIDAD DISTRITAL DE EL TALLAN","Simplificado",null,"No aplica","No aplica","No aplica",null,"No aplica","No aplica","No aplica",null,"No aplica","No aplica","No aplica",null,"No aplica","No aplica","No aplica",null,"No aplica","No aplica","No aplica",null,"No aplica","No aplica","No aplica",null,1.1000000000000001,4.0257676626215391,"No cumple",null,2798.28,477.45691999999991,"No cumple",null,0,null,"Desfavorable",null,"Cumple","Cumple"]
[79,"200109","PIURA","PIURA","LA ARENA","MUNICIPALIDAD DISTRITAL DE LA ARENA","Simplificado",null,"No aplica","No aplica","No aplica",null,"No aplica","No aplica","No aplica",null,"No aplica","No aplica","No aplica",null,"No aplica","No aplica","No aplica",null,"No aplica","No aplica","No aplica",null,"No aplica","No aplica","No aplica",null,11.45,5.1498902760093044,"Cumple",null,550,2587.1312499999981,"Cumple",null,100,null,"Favorable",null,"Cumple","Cumple"]
[80,"200602","PIURA","SULLANA","BELLAVISTA","MUNICIPALIDAD DISTRITAL DE BELLAVISTA","Simplificado",null,"No aplica","No aplica","No aplica",null,"No aplica","No aplica","No aplica",null,"No aplica","No aplica","No aplica",null,"No aplica","No aplica","No aplica",null,"No aplica","No aplica","No aplica",null,"No aplica","No aplica","No aplica",null,249.32,265.34633072100371,"No cumple",null,3580.25,967.45402000000422,"No cumple",null,0,null,"Desfavorable",null,"No Cumple","Cumple"]
[81,"210901","PUNO","MOHO","MOHO","MUNICIPALIDAD PROVINCIAL DE MOHO","Simplificado",null,"No aplica","No aplica","No aplica",null,"No aplica","No aplica","No aplica",null,"No aplica","No aplica","No aplica",null,"No aplica","No aplica","No aplica",null,"No aplica","No aplica","No aplica",null,"No aplica","No aplica","No aplica",null,30,66.656808162436306,"No cumple",null,1064,5845.8576499999999,"Cumple",null,50,null,"Desfavorable",null,"Cumple","Cumple"]
[82,"220602","SAN MARTIN","MARISCAL CACERES","CAMPANILLA","MUNICIPALIDAD DISTRITAL DE CAMPANILLA","Simplificado",null,"No aplica","No aplica","No aplica",null,"No aplica","No aplica","No aplica",null,"No aplica","No aplica","No aplica",null,"No aplica","No aplica","No aplica",null,"No aplica","No aplica","No aplica",null,"No aplica","No aplica","No aplica",null,9.6999999999999993,138.77302735852703,"No cumple",null,0,891.2713500000001,"Cumple",null,50,null,"Desfavorable",null,"No Cumple","Cumple"]
[83,"220701","SAN MARTIN","PICOTA","PICOTA","MUNICIPALIDAD PROVINCIAL DE PICOTA","Simplificado",null,"No aplica","No aplica","No aplica",null,"No aplica","No aplica","No aplica",null,"No aplica","No aplica","No aplica",null,"No aplica","No aplica","No aplica",null,"No aplica","No aplica","No aplica",null,"No aplica","No aplica","No aplica",null,22.88,19.495225494828787,"Cumple",null,650,704.57007000000124,"Cumple",null,100,null,{"$f":"IF(AO133>=80,\"Favorable\",\"Desfavorable\")","v":"Favorable"},null,"Cumple","Cumple"]
[84,"220808","SAN MARTIN","RIOJA","YORONGOS","MUNICIPALIDAD DISTRITAL DE YORONGOS","Simplificado",null,"No aplica","No aplica","No aplica",null,"No aplica","No aplica","No aplica",null,"No aplica","No aplica","No aplica",null,"No aplica","No aplica","No aplica",null,"No aplica","No aplica","No aplica",null,"No aplica","No aplica","No aplica",null,100,41.192265671390956,"Cumple",null,100,471.57015999999993,"Cumple",null,100,null,"Favorable",null,"Cumple","Cumple"]
[85,"230108","TACNA","TACNA","POCOLLAY","MUNICIPALIDAD DISTRITAL DE POCOLLAY","Simplificado",null,"No aplica","No aplica","No aplica",null,"No aplica","No aplica","No aplica",null,"No aplica","No aplica","No aplica",null,"No aplica","No aplica","No aplica",null,"No aplica","No aplica","No aplica",null,"No aplica","No aplica","No aplica",null,100,87.19355077183819,"Cumple",null,0,5846.1644599999991,"Cumple",null,100,null,"Favorable",null,"Cumple","Cumple"]
[86,"230203","TACNA","CANDARAVE","CAMILACA","MUNICIPALIDAD DISTRITAL DE CAMILACA","Simplificado",null,"No aplica","No aplica","No aplica",null,"No aplica","No aplica","No aplica",null,"No aplica","No aplica","No aplica",null,"No aplica","No aplica","No aplica",null,"No aplica","No aplica","No aplica",null,"No aplica","No aplica","No aplica",null,135.99,91.906670128441718,"Cumple",null,0,8236.4915400000009,"Cumple",null,100,null,"Favorable",null,"Cumple","Cumple"]
[87,"230206","TACNA","CANDARAVE","QUILAHUANI","MUNICIPALIDAD DISTRITAL DE QUILAHUANI","Simplificado",null,"No aplica","No aplica","No aplica",null,"No aplica","No aplica","No aplica",null,"No aplica","No aplica","No aplica",null,"No aplica","No aplica","No aplica",null,"No aplica","No aplica","No aplica",null,"No aplica","No aplica","No aplica",null,185.95,135.78817780293767,"Cumple",null,200,2768.0077699999997,"Cumple",null,100,null,"Favorable",null,"No Cumple","Cumple"]
[88,"250301","UCAYALI","PADRE ABAD","PADRE ABAD","MUNICIPALIDAD PROVINCIAL DE PADRE ABAD - AGUAITIA","Simplificado",null,"No aplica","No aplica","No aplica",null,"No aplica","No aplica","No aplica",null,"No aplica","No aplica","No aplica",null,"No aplica","No aplica","No aplica",null,"No aplica","No aplica","No aplica",null,"No aplica","No aplica","No aplica",null,85,124.54776867110444,"No cumple",null,9160,2651.6431700000057,"No cumple",null,0,null,"Desfavorable",null,"No Cumple","Cumple"]
[1,"060403","CAJAMARCA","CHOTA","CHADIN","MUNICIPALIDAD DISTRITAL DE CHADIN","Simplificado",null,"No aplica","No aplica","No aplica",null,"No aplica","No aplica","No aplica",null,"No aplica","No aplica","No aplica",null,"No aplica","No aplica","No aplica",null,"No aplica","No aplica","No aplica",null,"No aplica","No aplica","No aplica",null,"No aplica","No aplica","No aplica",null,"No aplica","No aplica","No aplica",null,"No aplica",null,"Omiso",null,"No Cumple","Cumple"]
[2,"060413","CAJAMARCA","CHOTA","PACCHA","MUNICIPALIDAD DISTRITAL DE PACCHA","Simplificado",null,"No aplica","No aplica","No aplica",null,"No aplica","No aplica","No aplica",null,"No aplica","No aplica","No aplica",null,"No aplica","No aplica","No aplica",null,"No aplica","No aplica","No aplica",null,"No aplica","No aplica","No aplica",null,"No aplica","No aplica","No aplica",null,"No aplica","No aplica","No aplica",null,"No aplica",null,"Omiso",null,"No Cumple","Cumple"]
[3,"100301","HUANUCO","DOS DE MAYO","LA UNIÓN","MUNICIPALIDAD PROVINCIAL DE DOS DE MAYO","Simplificado",null,"No aplica","No aplica","No aplica",null,"No aplica","No aplica","No aplica",null,"No aplica","No aplica","No aplica",null,"No aplica","No aplica","No aplica",null,"No aplica","No aplica","No aplica",null,"No aplica","No aplica","No aplica",null,"No aplica","No aplica","No aplica",null,"No aplica","No aplica","No aplica",null,"No aplica",null,"Omiso",null,"No Cumple","Cumple"]
[4,"120108","JUNIN","HUANCAYO","CHONGOS ALTO","MUNICIPALIDAD DISTRITAL DE CHONGOS ALTO","Simplificado",null,"No aplica","No aplica","No aplica",null,"No aplica","No aplica","No aplica",null,"No aplica","No aplica","No aplica",null,"No aplica","No aplica","No aplica",null,"No aplica","No aplica","No aplica",null,"No aplica","No aplica","No aplica",null,"No aplica","No aplica","No aplica",null,"No aplica","No aplica","No aplica",null,"No aplica",null,"Omiso",null,"No Cumple","Cumple"]
[5,"120205","JUNIN","CONCEPCION","COCHAS","MUNICIPALIDAD DISTRITAL DE COCHAS","Simplificado",null,"No aplica","No aplica","No aplica",null,"No aplica","No aplica","No aplica",null,"No aplica","No aplica","No aplica",null,"No aplica","No aplica","No aplica",null,"No aplica","No aplica","No aplica",null,"No aplica","No aplica","No aplica",null,"No aplica","No aplica","No aplica",null,"No aplica","No aplica","No aplica",null,"No aplica",null,"Omiso",null,"Cumple","Cumple"]
[6,"200804","PIURA","SECHURA","CRISTO NOS VALGA","MUNICIPALIDAD DISTRITAL DE CRISTO NOS VALGA","Simplificado",null,"No aplica","No aplica","No aplica",null,"No aplica","No aplica","No aplica",null,"No aplica","No aplica","No aplica",null,"No aplica","No aplica","No aplica",null,"No aplica","No aplica","No aplica",null,"No aplica","No aplica","No aplica",null,"No aplica","No aplica","No aplica",null,"No aplica","No aplica","No aplica",null,"No aplica",null,"Omiso",null,"Cumple","Cumple"]
[7,"190302","PASCO","OXAPAMPA","CHONTABAMBA","MUNICIPALIDAD DISTRITAL DE CHONTABAMBA","Simplificado",null,"No aplica","No aplica","No aplica",null,"No aplica","No aplica","No aplica",null,"No aplica","No aplica","No aplica",null,"No aplica","No aplica","No aplica",null,"No aplica","No aplica","No aplica",null,"No aplica","No aplica","No aplica",null,"No aplica","No aplica","No aplica",null,"No aplica","No aplica","No aplica",null,"No aplica",null,"Omiso",null,"Cumple","Cumple"]
["1/ Variación porcentual de los ingresos de recaudación propia del año 2019 respecto al año 2018."]
["2/ Porcentaje de ingresos por arbitrios de limpieza, parques y jardines y serenazgo que financia el gasto en los mismos rubros del año 2019."]
["3/ Relación entre el gasto a nivel devengado de personal CAS  (incluido todos sus beneficios sociales) sumado el gasto en servicios profesionales y técnicos, respecto al ingreso corriente excluyendo las transferencias de canon, sobrecanon y regalías del año 2019."]
["4/ Variación porcentual del saldo de pasivos corrientes del año 2019 respecto al año 2018"]
["5/ Cumplimiento de 2 acciones: evaluación y corrección de errores de registro de pasivos"]
["6/ Cumplimiento al menos 3 acciones cada año para fortalecer su gestión institucional."]
["7/ Valor obtenido del cálculo de Regla Fiscal del Saldo de Deuda Total (RFSDT) año 2019."]
["8/ Valor obtenido del cálculo de la Regla Fiscal de Ahorro en Cuenta Corriente (RFACC) año 2019"]
["9/ Número de compromisos fiscales cumplidos entre el número total de compromisos fiscales a los que la entidad está obligada a cumplir dependiendo de si aplica el CAF completo o simplificado."]
["10/ Cumplimiento de la Regla Fiscal de Saldo de Deuda Total año 2019."]
["11/ Cumplimiento de la Regla Fiscal de Ahorro en Cuenta Corriente año 2019."]
["Fuente: MEF- SICON, Aplicativo Web: https://apps4.mineco.gob.pe/simgf/#."]

{"sheet":"LISTA","index":8,"n_rows":144,"n_cols":31,"rows_kept":144,"cut":false,"hidden":true,"merged":[[0,18,0,20],[0,21,0,23],[0,24,0,26],[0,3,0,5],[0,6,0,8],[0,9,0,11],[0,12,0,14],[0,15,0,17]]}
[null,null,null,"CF 1",null,null,"CF 2",null,null,"CF 3",null,null,"CF 4",null,null,"CF 5",null,null,"CF 6",null,null,"CF 7",null,null,"CF 8"]
["ENTIDAD","codi_niv","Tipo de CAF","Meta","Resultado","Cumplimiento","Meta","Resultado","Cumplimiento","Meta","Resultado","Cumplimiento","Meta","Resultado","Cumplimiento","Meta","Resultado","Cumplimiento","Meta","Resultado","Cumplimiento","Meta","Resultado","Cumplimiento","Meta","Resultado","Cumplimiento","Logro","Evaluación","Regla Fiscal\nSDT","Regla Fiscal\nACC"]
["010112 : MUNICIPALIDAD DISTRITAL DE MAGDALENA","0101030101","CAF SIMPLIFICADO",null,null,null,null,null,null,null,null,null,null,null,null,null,null,null,null,null,null,100,3.0146864033480174,"Cumple",0,192.0803500000001,"Cumple",{"$f":"COUNTIF(D3:AA3,\"Cumple\")/2*100","v":100},{"$f":"IF(AB3>=80,\"Favorable\",\"Desfavorable\")","v":"Favorable"},"Cumple","Cumple"]
["010120 : MUNICIPALIDAD DISTRITAL DE SOLOCO","0101030101","CAF SIMPLIFICADO",null,null,null,null,null,null,null,null,null,null,null,null,null,null,null,null,null,null,100,99.346668927204973,"Cumple",0,952.7661599999999,"Cumple",100,"Favorable","Cumple","Cumple"]
["010302 : MUNICIPALIDAD DISTRITAL DE CHISQUILLA","0101030101","CAF SIMPLIFICADO",null,null,null,null,null,null,null,null,null,null,null,null,null,null,null,null,null,null,1.1000000000000001,3.0454114835125123,"No cumple",523.74,104.45427000000008,"No cumple",0,"Desfavorable","Cumple","Cumple"]
["010503 : MUNICIPALIDAD DISTRITAL DE COCABAMBA","0101030101","CAF SIMPLIFICADO",null,null,null,null,null,null,null,null,null,null,null,null,null,null,null,null,null,null,100,175.33526634154569,"No cumple",0,451.87850999999989,"Cumple",50,"Desfavorable","No Cumple","Cumple"]
["010504 : MUNICIPALIDAD DISTRITAL DE COLCAMAR","0101030101","CAF SIMPLIFICADO",null,null,null,null,null,null,null,null,null,null,null,null,null,null,null,null,null,null,97,4.1727514858959269,"Cumple",289,186.49939000000001,"No cumple",50,"Desfavorable","Cumple","Cumple"]
["010522 : MUNICIPALIDAD DISTRITAL DE TINGO","0101030101","CAF SIMPLIFICADO",null,null,null,null,null,null,null,null,null,null,null,null,null,null,null,null,null,null,45,12.93167658245846,"Cumple",0,156.13718999999995,"Cumple",100,"Favorable","Cumple","Cumple"]
["010602 : MUNICIPALIDAD DISTRITAL DE CHIRIMOTO","0101030101","CAF SIMPLIFICADO",null,null,null,null,null,null,null,null,null,null,null,null,null,null,null,null,null,null,100,4.254473047263625,"Cumple",0,221.08784000000009,"Cumple",100,"Favorable","Cumple","Cumple"]
["010605 : MUNICIPALIDAD DISTRITAL DE LIMABAMBA","0101030101","CAF SIMPLIFICADO",null,null,null,null,null,null,null,null,null,null,null,null,null,null,null,null,null,null,100,240.10314301478729,"No cumple",0,354.67172999999985,"Cumple",50,"Desfavorable","No Cumple","Cumple"]
["010606 : MUNICIPALIDAD DISTRITAL DE LONGAR","0101030101","CAF SIMPLIFICADO",null,null,null,null,null,null,null,null,null,null,null,null,null,null,null,null,null,null,100,31.563259272059401,"Cumple",-80,145.53233999999992,"Cumple",100,"Favorable","Cumple","Cumple"]
["020513 : MUNICIPALIDAD DISTRITAL DE PACLLON","0101030101","CAF SIMPLIFICADO",null,null,null,null,null,null,null,null,null,null,null,null,null,null,null,null,null,null,98.4,39.662974773414604,"Cumple",5700,2096.0327399999992,"No cumple",50,"Desfavorable","Cumple","Cumple"]
["020515 : MUNICIPALIDAD DISTRITAL DE TICLLOS","0101030101","CAF SIMPLIFICADO",null,null,null,null,null,null,null,null,null,null,null,null,null,null,null,null,null,null,98,55.991764155286475,"Cumple",0,1061.9302199999995,"Cumple",100,"Favorable","Cumple","Cumple"]
["020610 : MUNICIPALIDAD DISTRITAL DE TINCO","0101030101","CAF SIMPLIFICADO",null,null,null,null,null,null,null,null,null,null,null,null,null,null,null,null,null,null,100,0.54884281219761988,"Cumple",358.5,1189.0473899999997,"Cumple",100,"Favorable","Cumple","Cumple"]
["021101 : MUNICIPALIDAD PROVINCIAL DE HUARMEY","0101030101","CAF SIMPLIFICADO",null,null,null,null,null,null,null,null,null,null,null,null,null,null,null,null,null,null,63.5,69.301084392379295,"No cumple",0,11321.061750000003,"Cumple",50,"Desfavorable","Cumple","Cumple"]
["021506 : MUNICIPALIDAD DISTRITAL DE LACABAMBA","0101030101","CAF SIMPLIFICADO",null,null,null,null,null,null,null,null,null,null,null,null,null,null,null,null,null,null,100,89.614439412299106,"Cumple",0,420.72661999999985,"Cumple",100,"Favorable","Cumple","Cumple"]
["021508 : MUNICIPALIDAD DISTRITAL DE PALLASCA","0101030101","CAF SIMPLIFICADO",null,null,null,null,null,null,null,null,null,null,null,null,null,null,null,null,null,null,100,1.515068408287285,"Cumple",520,2212.0887699999994,"Cumple",100,"Favorable","Cumple","Cumple"]
["021803 : MUNICIPALIDAD DISTRITAL DE COISHCO","0101030101","CAF SIMPLIFICADO",null,null,null,null,null,null,null,null,null,null,null,null,null,null,null,null,null,null,125,79.852224920568872,"Cumple",0,5078.2442600000031,"Cumple",100,"Favorable","Cumple","Cumple"]
["021902 : MUNICIPALIDAD DISTRITAL DE ACOBAMBA","0101030101","CAF SIMPLIFICADO",null,null,null,null,null,null,null,null,null,null,null,null,null,null,null,null,null,null,30,11.766067634049655,"Cumple",6641.08,1655.9454099999998,"No cumple",50,"Desfavorable","Cumple","Cumple"]
["030101 : MUNICIPALIDAD PROVINCIAL DE ABANCAY","0101030101","CAF COMPLETO",5.3,6.2092506552785149,{"$f":"IF(E20>D20,\"Cumple\",\"No cumple\")","v":"Cumple"},25,38.962265388498579,{"$f":"IF(H20>=G20,\"Cumple\",\"No cumple\")","v":"Cumple"},22.4,26.003844608128261,{"$f":"IF(K20<=J20,\"Cumple\",\"No cumple\")","v":"No cumple"},-99.2,9.6506214343159744,{"$f":"IF(N20<=M20,\"Cumple\",\"No cumple\")","v":"No cumple"},2,1,{"$f":"IF(Q20>=2,\"Cumple\",\"No cumple\")","v":"No cumple"},4,1,{"$f":"IF($T20>=3,\"Cumple\",\"No cumple\")","v":"No cumple"},null,null,null,null,null,null,{"$f":"COUNTIF(D20:AA20,\"Cumple\")/6*100","v":33.333333333333329},"Desfavorable","No Cumple","Cumple"]
["030106 : MUNICIPALIDAD DISTRITAL DE LAMBRAMA","0101030101","CAF SIMPLIFICADO",null,null,null,null,null,null,null,null,null,null,null,null,null,null,null,null,null,null,35,31.214256253825432,"Cumple",506,2638.3582800000004,"Cumple",{"$f":"COUNTIF(D21:AA21,\"Cumple\")/2*100","v":100},"Favorable","Cumple","Cumple"]
["030201 : MUNICIPALIDAD PROVINCIAL DE ANDAHUAYLAS","0101030101","CAF COMPLETO",24.8,29.5210253672407,{"$f":"IF(E22>D22,\"Cumple\",\"No cumple\")","v":"Cumple"},14,5.2539086621864,{"$f":"IF(H22>=G22,\"Cumple\",\"No cumple\")","v":"No cumple"},31.7,30.436877572341821,{"$f":"IF(K22<=J22,\"Cumple\",\"No cumple\")","v":"Cumple"},-90.9,-19.236230662918778,{"$f":"IF(N22<=M22,\"Cumple\",\"No cumple\")","v":"No cumple"},2,1,{"$f":"IF(Q22>=2,\"Cumple\",\"No cumple\")","v":"No cumple"},5,0,{"$f":"IF($T22>=3,\"Cumple\",\"No cumple\")","v":"No cumple"},null,null,null,null,null,null,{"$f":"COUNTIF(D22:AA22,\"Cumple\")/6*100","v":33.333333333333329},"Desfavorable","No Cumple","Cumple"]
["030402 : MUNICIPALIDAD DISTRITAL DE CAPAYA","0101030101","CAF SIMPLIFICADO",null,null,null,null,null,null,null,null,null,null,null,null,null,null,null,null,null,null,90,7.2759185751639226,"Cumple",7457.48,353.48251999999991,"No cumple",{"$f":"COUNTIF(D23:AA23,\"Cumple\")/2*100","v":50},"Desfavorable","Cumple","Cumple"]
["030409 : MUNICIPALIDAD DISTRITAL DE LUCRE","0101030101","CAF SIMPLIFICADO",null,null,null,null,null,null,null,null,null,null,null,null,null,null,null,null,null,null,7,8.6884130393032581,"No cumple",995,877.30520000000001,"No cumple",{"$f":"COUNTIF(D24:AA24,\"Cumple\")/2*100","v":0},"Desfavorable","Cumple","Cumple"]
["030413 : MUNICIPALIDAD DISTRITAL DE SORAYA","0101030101","CAF SIMPLIFICADO",null,null,null,null,null,null,null,null,null,null,null,null,null,null,null,null,null,null,48,69.785989967366092,"No cumple",0,304.11965000000004,"Cumple",{"$f":"COUNTIF(D25:AA25,\"Cumple\")/2*100","v":50},"Desfavorable","Cumple","Cumple"]
["030501 : MUNICIPALIDAD PROVINCIAL DE COTABAMBAS - TAMBOBAMBA","0101030101","CAF COMPLETO",3.3,54.225634601495727,{"$f":"IF(E26>D26,\"Cumple\",\"No cumple\")","v":"Cumple"},0,0,{"$f":"IF(H26>=G26,\"Cumple\",\"No cumple\")","v":"Cumple"},20.2,25.036257029824277,{"$f":"IF(K26<=J26,\"Cumple\",\"No cumple\")","v":"No cumple"},-75,-78.298700729814769,{"$f":"IF(N26<=M26,\"Cumple\",\"No cumple\")","v":"Cumple"},2,2,{"$f":"IF(Q26>=2,\"Cumple\",\"No cumple\")","v":"Cumple"},7,6,{"$f":"IF($T26>=3,\"Cumple\",\"No cumple\")","v":"Cumple"},null,null,null,null,null,null,{"$f":"COUNTIF(D26:AA26,\"Cumple\")/6*100","v":83.333333333333343},"Favorable","No Cumple","Cumple"]
["030502 : MUNICIPALIDAD DISTRITAL DE COTABAMBAS","0101030101","CAF SIMPLIFICADO",null,null,null,null,null,null,null,null,null,null,null,null,null,null,null,null,null,null,442.01,310.99114824506165,"Cumple",1500,3125.1786799999995,"Cumple",{"$f":"COUNTIF(D27:AA27,\"Cumple\")/2*100","v":100},"Favorable","No Cumple","Cumple"]
["030503 : MUNICIPALIDAD DISTRITAL DE COYLLURQUI","0101030101","CAF COMPLETO",23,-74.551533707262649,{"$f":"IF(E28>D28,\"Cumple\",\"No cumple\")","v":"No cumple"},0,0,{"$f":"IF(H28>=G28,\"Cumple\",\"No cumple\")","v":"Cumple"},13.49,34.91734344060194,{"$f":"IF(K28<=J28,\"Cumple\",\"No cumple\")","v":"No cumple"},-35,-45.125347683632199,{"$f":"IF(N28<=M28,\"Cumple\",\"No cumple\")","v":"Cumple"},2,2,{"$f":"IF(Q28>=2,\"Cumple\",\"No cumple\")","v":"Cumple"},3,2,{"$f":"IF($T28>=3,\"Cumple\",\"No cumple\")","v":"No cumple"},null,null,null,null,null,null,{"$f":"COUNTIF(D28:AA28,\"Cumple\")/6*100","v":50},"Desfavorable","No Cumple","Cumple"]
["030601 : MUNICIPALIDAD PROVINCIAL DE CHINCHEROS","0101030101","CAF SIMPLIFICADO",null,null,null,null,null,null,null,null,null,null,null,null,null,null,null,null,null,null,192.72,388.00427697914984,"No cumple",250,2177.7511899999977,"Cumple",{"$f":"COUNTIF(D29:AA29,\"Cumple\")/2*100","v":50},"Desfavorable","No Cumple","Cumple"]
["030701 : MUNICIPALIDAD PROVINCIAL DE GRAU","0101030101","CAF SIMPLIFICADO",null,null,null,null,null,null,null,null,null,null,null,null,null,null,null,null,null,null,967,935.97418783331113,"Cumple",3331.74,2311.6625500000009,"No cumple",{"$f":"COUNTIF(D30:AA30,\"Cumple\")/2*100","v":50},"Desfavorable","No Cumple","Cumple"]
["030708 : MUNICIPALIDAD DISTRITAL DE PROGRESO","0101030101","CAF SIMPLIFICADO",null,null,null,null,null,null,null,null,null,null,null,null,null,null,null,null,null,null,1004,1247.552756645968,"No cumple",2000,1920.7811200000006,"No cumple",{"$f":"COUNTIF(D31:AA31,\"Cumple\")/2*100","v":0},"Desfavorable","No Cumple","Cumple"]
["040405 : MUNICIPALIDAD DISTRITAL DE CHILCAYMARCA","0101030101","CAF SIMPLIFICADO",null,null,null,null,null,null,null,null,null,null,null,null,null,null,null,null,null,null,5.0999999999999996,61.394845835168908,"No cumple",500,1377.9377700000002,"Cumple",{"$f":"COUNTIF(D32:AA32,\"Cumple\")/2*100","v":50},"Desfavorable","Cumple","Cumple"]
["040701 : MUNICIPALIDAD PROVINCIAL DE ISLAY - MOLLENDO","0101030101","CAF COMPLETO",5,9.1315915702500572,{"$f":"IF(E33>D33,\"Cumple\",\"No cumple\")","v":"Cumple"},10,12.739059187225015,{"$f":"IF(H33>=G33,\"Cumple\",\"No cumple\")","v":"Cumple"},17,22.593138902828166,{"$f":"IF(K33<=J33,\"Cumple\",\"No cumple\")","v":"No cumple"},-5,23.580344430280036,{"$f":"IF(N33<=M33,\"Cumple\",\"No cumple\")","v":"No cumple"},2,0,{"$f":"IF(Q33>=2,\"Cumple\",\"No cumple\")","v":"No cumple"},4,0,{"$f":"IF($T33>=3,\"Cumple\",\"No cumple\")","v":"No cumple"},null,null,null,null,null,null,{"$f":"COUNTIF(D33:AA33,\"Cumple\")/6*100","v":33.333333333333329},"Desfavorable","No Cumple","Cumple"]
["040802 : MUNICIPALIDAD DISTRITAL DE ALCA","0101030101","CAF SIMPLIFICADO",null,null,null,null,null,null,null,null,null,null,null,null,null,null,null,null,null,null,80,2.77968126373153,"Cumple",1000,1220.6578499999996,"Cumple",{"$f":"COUNTIF(D34:AA34,\"Cumple\")/2*100","v":100},"Favorable","Cumple","Cumple"]
["050104 : MUNICIPALIDAD DISTRITAL DE CARMEN ALTO","0101030101","CAF SIMPLIFICADO",null,null,null,null,null,null,null,null,null,null,null,null,null,null,null,null,null,null,4.1100000000000003,7.5211102068913727,"No cumple",1345.2,1196.2771599999987,"No cumple",0,"Desfavorable","Cumple","Cumple"]
["050106 : MUNICIPALIDAD DISTRITAL DE OCROS","0101030101","CAF SIMPLIFICADO",null,null,null,null,null,null,null,null,null,null,null,null,null,null,null,null,null,null,351.01,52.037852796984971,"Cumple",1078.7,620.58565000000033,"No cumple",50,"Desfavorable","Cumple","Cumple"]
["050201 : MUNICIPALIDAD PROVINCIAL DE CANGALLO","0101030101","CAF SIMPLIFICADO",null,null,null,null,null,null,null,null,null,null,null,null,null,null,null,null,null,null,249.36,21.871554347748333,"Cumple",644.95000000000005,1656.9572699999997,"Cumple",100,"Favorable","Cumple","Cumple"]
["050304 : MUNICIPALIDAD DISTRITAL DE SANTIAGO DE LUCANAMARCA","0101030101","CAF SIMPLIFICADO",null,null,null,null,null,null,null,null,null,null,null,null,null,null,null,null,null,null,258.67,14.574398529304542,"Cumple",597.44000000000005,732.59841999999992,"Cumple",100,"Favorable","Cumple","Cumple"]
["050405 : MUNICIPALIDAD DISTRITAL DE LURICOCHA","0101030101","CAF SIMPLIFICADO",null,null,null,null,null,null,null,null,null,null,null,null,null,null,null,null,null,null,100,221.52282283685651,"No cumple",0,1612.6960900000006,"Cumple",50,"Desfavorable","No Cumple","Cumple"]
["050503 : MUNICIPALIDAD DISTRITAL DE AYNA","0101030101","CAF SIMPLIFICADO",null,null,null,null,null,null,null,null,null,null,null,null,null,null,null,null,null,null,89.5,130.80767597893185,"No cumple",879.29,1435.56367,"Cumple",50,"Desfavorable","No Cumple","Cumple"]
["050707 : MUNICIPALIDAD DISTRITAL DE SAN FRANCISCO DE RAVACAYCO","0101030101","CAF SIMPLIFICADO",null,null,null,null,null,null,null,null,null,null,null,null,null,null,null,null,null,null,100,1.32689845281703,"Cumple",500,541.61633999999981,"Cumple",100,"Favorable","Cumple","Cumple"]
["051001 : MUNICIPALIDAD PROVINCIAL DE VICTOR FAJARDO","0101030101","CAF SIMPLIFICADO",null,null,null,null,null,null,null,null,null,null,null,null,null,null,null,null,null,null,144.99,129.11751716465506,"Cumple",2894.5,2992.4761799999978,"Cumple",100,"Favorable","No Cumple","Cumple"]
["051108 : MUNICIPALIDAD DISTRITAL DE VISCHONGO","0101030101","CAF SIMPLIFICADO",null,null,null,null,null,null,null,null,null,null,null,null,null,null,null,null,null,null,236,266.26376529457832,"No cumple",-456.44,923.66617999999971,"Cumple",50,"Desfavorable","No Cumple","Cumple"]
["060112 : MUNICIPALIDAD DISTRITAL DE SAN JUAN","0101030101","CAF SIMPLIFICADO",null,null,null,null,null,null,null,null,null,null,null,null,null,null,null,null,null,null,1.26,119.31697609610652,"No cumple",429.83,553.36086999999986,"Cumple",50,"Desfavorable","No Cumple","Cumple"]
["060402 : MUNICIPALIDAD DISTRITAL DE ANGUIA","0101030101","CAF SIMPLIFICADO",null,null,null,null,null,null,null,null,null,null,null,null,null,null,null,null,null,null,850,14.773708005596514,"Cumple",0,617.8473899999999,"Cumple",100,"Favorable","Cumple","Cumple"]
["060403 : MUNICIPALIDAD DISTRITAL DE CHADIN","0101030101","CAF SIMPLIFICADO",null,null,null,null,null,null,null,null,null,null,null,null,null,null,null,null,null,null,null,null,"Omiso",null,null,"Omiso",null,"Omiso","No Cumple","Cumple"]
["060406 : MUNICIPALIDAD DISTRITAL DE CHOROPAMPA","0101030101","CAF SIMPLIFICADO",null,null,null,null,null,null,null,null,null,null,null,null,null,null,null,null,null,null,12.9,77.668059366034498,"No cumple",180,713.18952999999976,"Cumple",{"$f":"COUNTIF(D47:AA47,\"Cumple\")/2*100","v":50},{"$f":"IF(AB47>=80,\"Favorable\",\"Desfavorable\")","v":"Desfavorable"},"Cumple","Cumple"]
["060413 : MUNICIPALIDAD DISTRITAL DE PACCHA","0101030101","CAF SIMPLIFICADO",null,null,null,null,null,null,null,null,null,null,null,null,null,null,null,null,null,null,null,null,"Omiso",null,null,"Omiso",null,"Omiso","No Cumple","Cumple"]
["060414 : MUNICIPALIDAD DISTRITAL DE PION","0101030101","CAF SIMPLIFICADO",null,null,null,null,null,null,null,null,null,null,null,null,null,null,null,null,null,null,100,158.32651606571113,"No cumple",35.36,112.42342000000004,"Cumple",{"$f":"COUNTIF(D49:AA49,\"Cumple\")/2*100","v":50},{"$f":"IF(AB49>=80,\"Favorable\",\"Desfavorable\")","v":"Desfavorable"},"No Cumple","Cumple"]
["061310 : MUNICIPALIDAD DISTRITAL DE UTICYACU","0101030101","CAF SIMPLIFICADO",null,null,null,null,null,null,null,null,null,null,null,null,null,null,null,null,null,null,150,112.33982459367458,"Cumple",200,118.27348000000009,"No cumple",{"$f":"COUNTIF(D50:AA50,\"Cumple\")/2*100","v":50},"Desfavorable","No Cumple","Cumple"]
["070101 : MUNICIPALIDAD PROVINCIAL DEL CALLAO","0101030101","CAF COMPLETO",24.2,-12.043647522178384,{"$f":"IF(E51>D51,\"Cumple\",\"No cumple\")","v":"No cumple"},51,51.177291198510801,{"$f":"IF(H51>=G51,\"Cumple\",\"No cumple\")","v":"Cumple"},16.899999999999999,51.269301214103258,{"$f":"IF(K51<=J51,\"Cumple\",\"No cumple\")","v":"No cumple"},-9.6999999999999993,99.004117220703819,{"$f":"IF(N51<=M51,\"Cumple\",\"No cumple\")","v":"No cumple"},2,2,{"$f":"IF(Q51>=2,\"Cumple\",\"No cumple\")","v":"Cumple"},3,3,{"$f":"IF($T51>=3,\"Cumple\",\"No cumple\")","v":"Cumple"},null,null,null,null,null,null,{"$f":"COUNTIF(D51:AA51,\"Cumple\")/6*100","v":50},"Desfavorable","No Cumple","Cumple"]
["070102 : MUNICIPALIDAD DISTRITAL DE BELLAVISTA","0101030101","CAF COMPLETO",28.1,82.063830280760641,{"$f":"IF(E52>D52,\"Cumple\",\"No cumple\")","v":"Cumple"},48,46.683439740288229,{"$f":"IF(H52>=G52,\"Cumple\",\"No cumple\")","v":"No cumple"},43.5,47.916074062687571,{"$f":"IF(K52<=J52,\"Cumple\",\"No cumple\")","v":"No cumple"},-37.799999999999997,-33.234598617057799,{"$f":"IF(N52<=M52,\"Cumple\",\"No cumple\")","v":"No cumple"},2,1,{"$f":"IF(Q52>=2,\"Cumple\",\"No cumple\")","v":"No cumple"},4,4,{"$f":"IF($T52>=3,\"Cumple\",\"No cumple\")","v":"Cumple"},null,null,null,null,null,null,{"$f":"COUNTIF(D52:AA52,\"Cumple\")/6*100","v":33.333333333333329},"Desfavorable","No Cumple","Cumple"]
["070103 : MUNICIPALIDAD DISTRITAL DE CARMEN DE LA LEGUA REYNOSO","0101030101","CAF COMPLETO",2.9,11.06001804934723,{"$f":"IF(E53>D53,\"Cumple\",\"No cumple\")","v":"Cumple"},31.74,31.029167655739435,{"$f":"IF(H53>=G53,\"Cumple\",\"No cumple\")","v":"No cumple"},29.5,44.536376184584341,{"$f":"IF(K53<=J53,\"Cumple\",\"No cumple\")","v":"No cumple"},-5.3,4.2958058208137739,{"$f":"IF(N53<=M53,\"Cumple\",\"No cumple\")","v":"No cumple"},2,2,{"$f":"IF(Q53>=2,\"Cumple\",\"No cumple\")","v":"Cumple"},3,0,{"$f":"IF($T53>=3,\"Cumple\",\"No cumple\")","v":"No cumple"},null,null,null,null,null,null,{"$f":"COUNTIF(D53:AA53,\"Cumple\")/6*100","v":33.333333333333329},"Desfavorable","No Cumple","Cumple"]
["081102 : MUNICIPALIDAD DISTRITAL DE CAICAY","0101030101","CAF SIMPLIFICADO",null,null,null,null,null,null,null,null,null,null,null,null,null,null,null,null,null,null,0.95,0.9184734475826819,"Cumple",0,1797.7465799999995,"Cumple",{"$f":"COUNTIF(D54:AA54,\"Cumple\")/2*100","v":100},"Favorable","Cumple","Cumple"]
["090202 : MUNICIPALIDAD DISTRITAL DE ANDABAMBA","0101030101","CAF SIMPLIFICADO",null,null,null,null,null,null,null,null,null,null,null,null,null,null,null,null,null,null,99,164.93162431611674,"No cumple",1700,1067.1299000000004,"No cumple",{"$f":"COUNTIF(D55:AA55,\"Cumple\")/2*100","v":0},"Desfavorable","No Cumple","Cumple"]
["090204 : MUNICIPALIDAD DISTRITAL DE CAJA","0101030101","CAF SIMPLIFICADO",null,null,null,null,null,null,null,null,null,null,null,null,null,null,null,null,null,null,400,579.75794912755066,"No cumple",1500,434.13120999999973,"No cumple",{"$f":"COUNTIF(D56:AA56,\"Cumple\")/2*100","v":0},"Desfavorable","No Cumple","Cumple"]
["090302 : MUNICIPALIDAD DISTRITAL DE ANCHONGA","0101030101","CAF SIMPLIFICADO",null,null,null,null,null,null,null,null,null,null,null,null,null,null,null,null,null,null,210,224.6736517533804,"No cumple",700,1406.3296700000008,"Cumple",{"$f":"COUNTIF(D57:AA57,\"Cumple\")/2*100","v":50},"Desfavorable","No Cumple","Cumple"]
["090404 : MUNICIPALIDAD DISTRITAL DE CAPILLAS","0101030101","CAF SIMPLIFICADO",null,null,null,null,null,null,null,null,null,null,null,null,null,null,null,null,null,null,100,16.480302213158801,"Cumple",0,384.38535999999988,"Cumple",{"$f":"COUNTIF(D58:AA58,\"Cumple\")/2*100","v":100},"Favorable","Cumple","Cumple"]
["100301 : MUNICIPALIDAD PROVINCIAL DE DOS DE MAYO","0101030101","CAF SIMPLIFICADO",null,null,null,null,null,null,null,null,null,null,null,null,null,null,null,null,null,null,null,null,"Omiso",null,null,"Omiso",null,"Omiso","No Cumple","Cumple"]
["100601 : MUNICIPALIDAD PROVINCIAL DE LEONCIO PRADO - RUPA RUPA","0101030101","CAF COMPLETO",10.4,7.9756242924774527,{"$f":"IF(E60>D60,\"Cumple\",\"No cumple\")","v":"No cumple"},24,26.39208628780332,{"$f":"IF(H60>=G60,\"Cumple\",\"No cumple\")","v":"Cumple"},19.399999999999999,25.341909932831449,{"$f":"IF(K60<=J60,\"Cumple\",\"No cumple\")","v":"No cumple"},-90,-53.692969823447882,{"$f":"IF(N60<=M60,\"Cumple\",\"No cumple\")","v":"No cumple"},2,2,{"$f":"IF(Q60>=2,\"Cumple\",\"No cumple\")","v":"Cumple"},3,3,{"$f":"IF($T60>=3,\"Cumple\",\"No cumple\")","v":"Cumple"},null,null,null,null,null,null,{"$f":"COUNTIF(D60:AA60,\"Cumple\")/6*100","v":50},{"$f":"IF(AB60>=80,\"Favorable\",\"Desfavorable\")","v":"Desfavorable"},"Cumple","Cumple"]
["100608 : MUNICIPALIDAD DISTRITAL DE CASTILLO GRANDE","0101030101","CAF SIMPLIFICADO",null,null,null,null,null,null,null,null,null,null,null,null,null,null,null,null,null,null,0,3.4624447267696352,"No cumple",-120,954.67708999999991,"Cumple",{"$f":"COUNTIF(D61:AA61,\"Cumple\")/2*100","v":50},"Desfavorable","Cumple","Cumple"]
["110101 : MUNICIPALIDAD PROVINCIAL DE ICA","0101030101","CAF COMPLETO",4,5.0425818203256902,{"$f":"IF(E62>D62,\"Cumple\",\"No cumple\")","v":"Cumple"},17.5,13.405377386033326,{"$f":"IF(H62>=G62,\"Cumple\",\"No cumple\")","v":"No cumple"},17,22.580776677753846,{"$f":"IF(K62<=J62,\"Cumple\",\"No cumple\")","v":"No cumple"},166,12.616844864346213,{"$f":"IF(N62<=M62,\"Cumple\",\"No cumple\")","v":"Cumple"},2,0,{"$f":"IF(Q62>=2,\"Cumple\",\"No cumple\")","v":"No cumple"},4,0,{"$f":"IF($T62>=3,\"Cumple\",\"No cumple\")","v":"No cumple"},null,null,null,null,null,null,{"$f":"COUNTIF(D62:AA62,\"Cumple\")/6*100","v":33.333333333333329},"Desfavorable","No Cumple","Cumple"]
["110106 : MUNICIPALIDAD DISTRITAL DE PARCONA","0101030101","CAF COMPLETO",0.3,19.638494993755621,{"$f":"IF(E63>D63,\"Cumple\",\"No cumple\")","v":"Cumple"},15.8,12.47410317675156,{"$f":"IF(H63>=G63,\"Cumple\",\"No cumple\")","v":"No cumple"},23,28.884443196549867,{"$f":"IF(K63<=J63,\"Cumple\",\"No cumple\")","v":"No cumple"},-10.3,561.27602154937915,{"$f":"IF(N63<=M63,\"Cumple\",\"No cumple\")","v":"No cumple"},2,2,{"$f":"IF(Q63>=2,\"Cumple\",\"No cumple\")","v":"Cumple"},4,0,{"$f":"IF($T63>=3,\"Cumple\",\"No cumple\")","v":"No cumple"},null,null,null,null,null,null,{"$f":"COUNTIF(D63:AA63,\"Cumple\")/6*100","v":33.333333333333329},"Desfavorable","No Cumple","Cumple"]
["110211 : MUNICIPALIDAD DISTRITAL DE TAMBO DE MORA","0101030101","CAF SIMPLIFICADO",null,null,null,null,null,null,null,null,null,null,null,null,null,null,null,null,null,null,100,93.286808539019361,"Cumple",0,1152.4828200000002,"Cumple",{"$f":"COUNTIF(D64:AA64,\"Cumple\")/2*100","v":100},"Favorable","Cumple","Cumple"]
["110402 : MUNICIPALIDAD DISTRITAL DE LLIPATA","0101030101","CAF SIMPLIFICADO",null,null,null,null,null,null,null,null,null,null,null,null,null,null,null,null,null,null,110.54,68.500870216901262,"Cumple",0,191.65572999999998,"Cumple",{"$f":"COUNTIF(D65:AA65,\"Cumple\")/2*100","v":100},"Favorable","Cumple","Cumple"]
["110501 : MUNICIPALIDAD PROVINCIAL DE PISCO","0101030101","CAF COMPLETO",4.7,33.764228467648543,{"$f":"IF(E66>D66,\"Cumple\",\"No cumple\")","v":"Cumple"},18,19.940630749821576,{"$f":"IF(H66>=G66,\"Cumple\",\"No cumple\")","v":"Cumple"},20,26.430759021861647,{"$f":"IF(K66<=J66,\"Cumple\",\"No cumple\")","v":"No cumple"},-2.5,4.1120099263157988,{"$f":"IF(N66<=M66,\"Cumple\",\"No cumple\")","v":"No cumple"},2,0,{"$f":"IF(Q66>=2,\"Cumple\",\"No cumple\")","v":"No cumple"},3,1,{"$f":"IF($T66>=3,\"Cumple\",\"No cumple\")","v":"No cumple"},null,null,null,null,null,null,{"$f":"COUNTIF(D66:AA66,\"Cumple\")/6*100","v":33.333333333333329},"Desfavorable","No Cumple","Cumple"]
["110506 : MUNICIPALIDAD DISTRITAL DE SAN ANDRES","0101030101","CAF SIMPLIFICADO",null,null,null,null,null,null,null,null,null,null,null,null,null,null,null,null,null,null,114.94,110.79051795773658,"Cumple",0,1932.3354299999987,"Cumple",{"$f":"COUNTIF(D67:AA67,\"Cumple\")/2*100","v":100},"Favorable","No Cumple","Cumple"]
["120108 : MUNICIPALIDAD DISTRITAL DE CHONGOS ALTO","0101030101","CAF SIMPLIFICADO",null,null,null,null,null,null,null,null,null,null,null,null,null,null,null,null,null,null,null,null,"Omiso",null,null,"Omiso",null,"Omiso","No Cumple","Cumple"]
["120120 : MUNICIPALIDAD DISTRITAL DE HUASICANCHA","0101030101","CAF SIMPLIFICADO",null,null,null,null,null,null,null,null,null,null,null,null,null,null,null,null,null,null,259.17,369.73183543638345,"No cumple",0,185.42752000000002,"Cumple",{"$f":"COUNTIF(D69:AA69,\"Cumple\")/2*100","v":50},{"$f":"IF(AB69>=80,\"Favorable\",\"Desfavorable\")","v":"Desfavorable"},"No Cumple","Cumple"]
["120205 : MUNICIPALIDAD DISTRITAL DE COCHAS","0101030101","CAF SIMPLIFICADO",null,null,null,null,null,null,null,null,null,null,null,null,null,null,null,null,null,null,null,null,"Omiso",null,null,"Omiso",null,"Omiso","Cumple","Cumple"]
["120207 : MUNICIPALIDAD DISTRITAL DE HEROINAS TOLEDO","0101030101","CAF SIMPLIFICADO",null,null,null,null,null,null,null,null,null,null,null,null,null,null,null,null,null,null,100.17,79.673794298130915,"Cumple",0,117.90257000000001,"Cumple",{"$f":"COUNTIF(D71:AA71,\"Cumple\")/2*100","v":100},{"$f":"IF(AB71>=80,\"Favorable\",\"Desfavorable\")","v":"Favorable"},"Cumple","Cumple"]
["120402 : MUNICIPALIDAD DISTRITAL DE ACOLLA","0101030101","CAF SIMPLIFICADO",null,null,null,null,null,null,null,null,null,null,null,null,null,null,null,null,null,null,100,27.535386837126367,"Cumple",0,3274.4835300000009,"Cumple",{"$f":"COUNTIF(D72:AA72,\"Cumple\")/2*100","v":100},"Favorable","Cumple","Cumple"]
["130104 : MUNICIPALIDAD DISTRITAL DE HUANCHACO","0101030101","CAF SIMPLIFICADO",null,null,null,null,null,null,null,null,null,null,null,null,null,null,null,null,null,null,30,54.192055286371399,"No cumple",-1708.17,6093.1326699999963,"Cumple",{"$f":"COUNTIF(D73:AA73,\"Cumple\")/2*100","v":50},"Desfavorable","Cumple","Cumple"]
["130105 : MUNICIPALIDAD DISTRITAL DE LA ESPERANZA","0101030101","CAF COMPLETO",11,11.716975683193853,{"$f":"IF(E74>D74,\"Cumple\",\"No cumple\")","v":"Cumple"},34,38.094996714297444,{"$f":"IF(H74>=G74,\"Cumple\",\"No cumple\")","v":"Cumple"},20,35.988266265466827,{"$f":"IF(K74<=J74,\"Cumple\",\"No cumple\")","v":"No cumple"},-32,-80.414024058628485,{"$f":"IF(N74<=M74,\"Cumple\",\"No cumple\")","v":"Cumple"},2,2,{"$f":"IF(Q74>=2,\"Cumple\",\"No cumple\")","v":"Cumple"},3,3,{"$f":"IF($T74>=3,\"Cumple\",\"No cumple\")","v":"Cumple"},null,null,null,null,null,null,{"$f":"COUNTIF(D74:AA74,\"Cumple\")/6*100","v":83.333333333333343},"Favorable","Cumple","Cumple"]
["130106 : MUNICIPALIDAD DISTRITAL DE LAREDO","0101030101","CAF SIMPLIFICADO",null,null,null,null,null,null,null,null,null,null,null,null,null,null,null,null,null,null,58.4,70.28954611990244,"No cumple",-3000,573.6287500000019,"Cumple",{"$f":"COUNTIF(D75:AA75,\"Cumple\")/2*100","v":50},"Desfavorable","Cumple","Cumple"]
["130207 : MUNICIPALIDAD DISTRITAL DE SANTIAGO DE CAO","0101030101","CAF SIMPLIFICADO",null,null,null,null,null,null,null,null,null,null,null,null,null,null,null,null,null,null,187.22,217.99072756083331,"No cumple",0,2231.8551699999989,"Cumple",{"$f":"COUNTIF(D76:AA76,\"Cumple\")/2*100","v":50},"Desfavorable","No Cumple","Cumple"]
["130702 : MUNICIPALIDAD DISTRITAL DE GUADALUPE","0101030101","CAF COMPLETO",2.4500000000000002,10.68943196104766,{"$f":"IF(E77>D77,\"Cumple\",\"No cumple\")","v":"Cumple"},4.5,5.5318990653877202,{"$f":"IF(H77>=G77,\"Cumple\",\"No cumple\")","v":"Cumple"},20,37.624802414957948,{"$f":"IF(K77<=J77,\"Cumple\",\"No cumple\")","v":"No cumple"},-2.2999999999999998,15.886501525886651,{"$f":"IF(N77<=M77,\"Cumple\",\"No cumple\")","v":"No cumple"},2,2,{"$f":"IF(Q77>=2,\"Cumple\",\"No cumple\")","v":"Cumple"},3,0,{"$f":"IF($T77>=3,\"Cumple\",\"No cumple\")","v":"No cumple"},null,null,null,null,null,null,{"$f":"COUNTIF(D77:AA77,\"Cumple\")/6*100","v":50},"Desfavorable","No Cumple","Cumple"]
["140101 : MUNICIPALIDAD PROVINCIAL DE CHICLAYO","0101030101","CAF COMPLETO",5,12.518884747623616,{"$f":"IF(E78>D78,\"Cumple\",\"No cumple\")","v":"Cumple"},84.15,81.61374235696735,{"$f":"IF(H78>=G78,\"Cumple\",\"No cumple\")","v":"No cumple"},9,14.016604140546537,{"$f":"IF(K78<=J78,\"Cumple\",\"No cumple\")","v":"No cumple"},-3,-51.38166647873441,{"$f":"IF(N78<=M78,\"Cumple\",\"No cumple\")","v":"Cumple"},2,2,{"$f":"IF(Q78>=2,\"Cumple\",\"No cumple\")","v":"Cumple"},3,3,{"$f":"IF($T78>=3,\"Cumple\",\"No cumple\")","v":"Cumple"},null,null,null,null,null,null,{"$f":"COUNTIF(D78:AA78,\"Cumple\")/6*100","v":66.666666666666657},"Desfavorable","No Cumple","Cumple"]
["140104 : MUNICIPALIDAD DISTRITAL DE ETEN PUERTO","0101030101","CAF SIMPLIFICADO",null,null,null,null,null,null,null,null,null,null,null,null,null,null,null,null,null,null,272,287.906237282066,"No cumple",400,70.720570000000066,"No cumple",{"$f":"COUNTIF(D79:AA79,\"Cumple\")/2*100","v":0},"Desfavorable","No Cumple","Cumple"]
["140105 : MUNICIPALIDAD DISTRITAL DE JOSE LEONARDO ORTIZ","0101030101","CAF COMPLETO",10,68.43317522729231,{"$f":"IF(E80>D80,\"Cumple\",\"No cumple\")","v":"Cumple"},23.07,690.30522009443132,{"$f":"IF(H80>=G80,\"Cumple\",\"No cumple\")","v":"Cumple"},6.52,9.3175987353422123,{"$f":"IF(K80<=J80,\"Cumple\",\"No cumple\")","v":"No cumple"},-1,-34.270180331746673,{"$f":"IF(N80<=M80,\"Cumple\",\"No cumple\")","v":"Cumple"},2,2,{"$f":"IF(Q80>=2,\"Cumple\",\"No cumple\")","v":"Cumple"},7,0,{"$f":"IF($T80>=3,\"Cumple\",\"No cumple\")","v":"No cumple"},null,null,null,null,null,null,{"$f":"COUNTIF(D80:AA80,\"Cumple\")/6*100","v":66.666666666666657},"Desfavorable","No Cumple","Cumple"]
["140106 : MUNICIPALIDAD DISTRITAL DE LA VICTORIA","0101030101","CAF COMPLETO",2,16.981016864238274,{"$f":"IF(E81>D81,\"Cumple\",\"No cumple\")","v":"Cumple"},53,42.274956917878875,{"$f":"IF(H81>=G81,\"Cumple\",\"No cumple\")","v":"No cumple"},11.33,20.906680904930507,{"$f":"IF(K81<=J81,\"Cumple\",\"No cumple\")","v":"No cumple"},-24,122.52156575118595,{"$f":"IF(N81<=M81,\"Cumple\",\"No cumple\")","v":"No cumple"},2,0,{"$f":"IF(Q81>=2,\"Cumple\",\"No cumple\")","v":"No cumple"},4,0,{"$f":"IF($T81>=3,\"Cumple\",\"No cumple\")","v":"No cumple"},null,null,null,null,null,null,{"$f":"COUNTIF(D81:AA81,\"Cumple\")/6*100","v":16.666666666666664},"Desfavorable","No Cumple","Cumple"]
["140111 : MUNICIPALIDAD DISTRITAL DE PICSI","0101030101","CAF SIMPLIFICADO",null,null,null,null,null,null,null,null,null,null,null,null,null,null,null,null,null,null,145,123.51545947775018,"Cumple",-220,-85.760800000000515,"Cumple",{"$f":"COUNTIF(D82:AA82,\"Cumple\")/2*100","v":100},"Favorable","No Cumple","No Cumple"]
["140116 : MUNICIPALIDAD DISTRITAL DE CAYALTI","0101030101","CAF SIMPLIFICADO",null,null,null,null,null,null,null,null,null,null,null,null,null,null,null,null,null,null,50,25.069442713422021,"Cumple",227.97,610.22601999999961,"Cumple",{"$f":"COUNTIF(D83:AA83,\"Cumple\")/2*100","v":100},"Favorable","Cumple","Cumple"]
["140118 : MUNICIPALIDAD DISTRITAL DE POMALCA","0101030101","CAF SIMPLIFICADO",null,null,null,null,null,null,null,null,null,null,null,null,null,null,null,null,null,null,19.71,26.584787972655072,"No cumple",1286,41.155419999998998,"No cumple",{"$f":"COUNTIF(D84:AA84,\"Cumple\")/2*100","v":0},"Desfavorable","Cumple","Cumple"]
["140201 : MUNICIPALIDAD PROVINCIAL DE FERREÑAFE","0101030101","CAF COMPLETO",2.5,19.982688180352724,{"$f":"IF(E85>D85,\"Cumple\",\"No cumple\")","v":"Cumple"},13.32,27.934915957357724,{"$f":"IF(H85>=G85,\"Cumple\",\"No cumple\")","v":"Cumple"},13.14,15.472494308716755,{"$f":"IF(K85<=J85,\"Cumple\",\"No cumple\")","v":"No cumple"},-16.3,-57.433794271113086,{"$f":"IF(N85<=M85,\"Cumple\",\"No cumple\")","v":"Cumple"},2,2,{"$f":"IF(Q85>=2,\"Cumple\",\"No cumple\")","v":"Cumple"},3,3,{"$f":"IF($T85>=3,\"Cumple\",\"No cumple\")","v":"Cumple"},null,null,null,null,null,null,{"$f":"COUNTIF(D85:AA85,\"Cumple\")/6*100","v":83.333333333333343},"Favorable","No Cumple","Cumple"]
["140205 : MUNICIPALIDAD DISTRITAL DE PITIPO","0101030101","CAF SIMPLIFICADO",null,null,null,null,null,null,null,null,null,null,null,null,null,null,null,null,null,null,65.56,129.90314250986637,"No cumple",0,1966.7372699999996,"Cumple",{"$f":"COUNTIF(D86:AA86,\"Cumple\")/2*100","v":50},"Desfavorable","No Cumple","Cumple"]
["140310 : MUNICIPALIDAD DISTRITAL DE SALAS","0101030101","CAF SIMPLIFICADO",null,null,null,null,null,null,null,null,null,null,null,null,null,null,null,null,null,null,100,20.504881187853101,"Cumple",1000,1608.8116200000011,"Cumple",{"$f":"COUNTIF(D87:AA87,\"Cumple\")/2*100","v":100},"Favorable","Cumple","Cumple"]
["150102 : MUNICIPALIDAD DISTRITAL DE ANCÓN","0101030101","CAF COMPLETO",0.5,25.116085712972897,{"$f":"IF(E88>D88,\"Cumple\",\"No cumple\")","v":"Cumple"},42,43.45985034182155,{"$f":"IF(H88>=G88,\"Cumple\",\"No cumple\")","v":"Cumple"},36.5,32.04533749745525,{"$f":"IF(K88<=J88,\"Cumple\",\"No cumple\")","v":"Cumple"},-1.2,4.0610532882782513,{"$f":"IF(N88<=M88,\"Cumple\",\"No cumple\")","v":"No cumple"},2,1,{"$f":"IF(Q88>=2,\"Cumple\",\"No cumple\")","v":"No cumple"},6,4,{"$f":"IF($T88>=3,\"Cumple\",\"No cumple\")","v":"Cumple"},null,null,null,null,null,null,{"$f":"COUNTIF(D88:AA88,\"Cumple\")/6*100","v":66.666666666666657},"Desfavorable","No Cumple","Cumple"]
["150104 : MUNICIPALIDAD DISTRITAL DE BARRANCO","0101030101","CAF COMPLETO",1.56,25.257255532901802,{"$f":"IF(E89>D89,\"Cumple\",\"No cumple\")","v":"Cumple"},88.57,101.2366858330447,{"$f":"IF(H89>=G89,\"Cumple\",\"No cumple\")","v":"Cumple"},45,39.572696276331229,{"$f":"IF(K89<=J89,\"Cumple\",\"No cumple\")","v":"Cumple"},-1,-1.611909181394056,{"$f":"IF(N89<=M89,\"Cumple\",\"No cumple\")","v":"Cumple"},2,2,{"$f":"IF(Q89>=2,\"Cumple\",\"No cumple\")","v":"Cumple"},7,7,{"$f":"IF($T89>=3,\"Cumple\",\"No cumple\")","v":"Cumple"},null,null,null,null,null,null,{"$f":"COUNTIF(D89:AA89,\"Cumple\")/6*100","v":100},"Favorable","No Cumple","Cumple"]
["150105 : MUNICIPALIDAD DISTRITAL DE BREÑA","0101030101","CAF COMPLETO",1.9,15.42943075523344,{"$f":"IF(E90>D90,\"Cumple\",\"No cumple\")","v":"Cumple"},110,96.527600900102215,{"$f":"IF(H90>=G90,\"Cumple\",\"No cumple\")","v":"No cumple"},54.49,47.273842655954311,{"$f":"IF(K90<=J90,\"Cumple\",\"No cumple\")","v":"Cumple"},-26.4,2.1476582297316527,{"$f":"IF(N90<=M90,\"Cumple\",\"No cumple\")","v":"No cumple"},2,2,{"$f":"IF(Q90>=2,\"Cumple\",\"No cumple\")","v":"Cumple"},3,3,{"$f":"IF($T90>=3,\"Cumple\",\"No cumple\")","v":"Cumple"},null,null,null,null,null,null,{"$f":"COUNTIF(D90:AA90,\"Cumple\")/6*100","v":66.666666666666657},"Desfavorable","No Cumple","Cumple"]
["150110 : MUNICIPALIDAD DISTRITAL DE COMAS","0101030101","CAF SIMPLIFICADO",null,null,null,null,null,null,null,null,null,null,null,null,null,null,null,null,null,null,99,120.43442072590021,"No cumple",746,9896.5310899999731,"Cumple",{"$f":"COUNTIF(D91:AA91,\"Cumple\")/2*100","v":50},"Desfavorable","No Cumple","Cumple"]
["150111 : MUNICIPALIDAD DISTRITAL DE EL AGUSTINO","0101030101","CAF COMPLETO",2.06,13.614334904272349,{"$f":"IF(E92>D92,\"Cumple\",\"No cumple\")","v":"Cumple"},41,41.280075426612946,{"$f":"IF(H92>=G92,\"Cumple\",\"No cumple\")","v":"Cumple"},23.34,32.782321996139729,{"$f":"IF(K92<=J92,\"Cumple\",\"No cumple\")","v":"No cumple"},-2.5,18.866048393206725,{"$f":"IF(N92<=M92,\"Cumple\",\"No cumple\")","v":"No cumple"},2,1,{"$f":"IF(Q92>=2,\"Cumple\",\"No cumple\")","v":"No cumple"},3,2,{"$f":"IF($T92>=3,\"Cumple\",\"No cumple\")","v":"No cumple"},null,null,null,null,null,null,{"$f":"COUNTIF(D92:AA92,\"Cumple\")/6*100","v":33.333333333333329},"Desfavorable","No Cumple","Cumple"]
["150112 : MUNICIPALIDAD DISTRITAL DE INDEPENDENCIA","0101030101","CAF COMPLETO",3,4.9227020965116557,{"$f":"IF(E93>D93,\"Cumple\",\"No cumple\")","v":"Cumple"},42,67.104100060775323,{"$f":"IF(H93>=G93,\"Cumple\",\"No cumple\")","v":"Cumple"},28,36.595717913370812,{"$f":"IF(K93<=J93,\"Cumple\",\"No cumple\")","v":"No cumple"},-5,76.337931636183555,{"$f":"IF(N93<=M93,\"Cumple\",\"No cumple\")","v":"No cumple"},2,1,{"$f":"IF(Q93>=2,\"Cumple\",\"No cumple\")","v":"No cumple"},3,0,{"$f":"IF($T93>=3,\"Cumple\",\"No cumple\")","v":"No cumple"},null,null,null,null,null,null,{"$f":"COUNTIF(D93:AA93,\"Cumple\")/6*100","v":33.333333333333329},"Desfavorable","No Cumple","Cumple"]
["150115 : MUNICIPALIDAD DISTRITAL DE LA VICTORIA","0101030101","CAF COMPLETO",7.4,29.310677027813309,{"$f":"IF(E94>D94,\"Cumple\",\"No cumple\")","v":"Cumple"},66.599999999999994,73.759306388131392,{"$f":"IF(H94>=G94,\"Cumple\",\"No cumple\")","v":"Cumple"},40.9,36.355735367134137,{"$f":"IF(K94<=J94,\"Cumple\",\"No cumple\")","v":"Cumple"},-13.3,18.691132295188275,{"$f":"IF(N94<=M94,\"Cumple\",\"No cumple\")","v":"No cumple"},2,2,{"$f":"IF(Q94>=2,\"Cumple\",\"No cumple\")","v":"Cumple"},4,4,{"$f":"IF($T94>=3,\"Cumple\",\"No cumple\")","v":"Cumple"},null,null,null,null,null,null,{"$f":"COUNTIF(D94:AA94,\"Cumple\")/6*100","v":83.333333333333343},"Favorable","No Cumple","Cumple"]
["150121 : MUNICIPALIDAD DISTRITAL DE PUEBLO LIBRE","0101030101","CAF COMPLETO",1.82,16.071821586254778,{"$f":"IF(E95>D95,\"Cumple\",\"No cumple\")","v":"Cumple"},102.19,92.172381523039775,{"$f":"IF(H95>=G95,\"Cumple\",\"No cumple\")","v":"No cumple"},46.62,46.348974239160512,{"$f":"IF(K95<=J95,\"Cumple\",\"No cumple\")","v":"Cumple"},-29.2,-33.514501076960954,{"$f":"IF(N95<=M95,\"Cumple\",\"No cumple\")","v":"Cumple"},2,2,{"$f":"IF(Q95>=2,\"Cumple\",\"No cumple\")","v":"Cumple"},3,3,{"$f":"IF($T95>=3,\"Cumple\",\"No cumple\")","v":"Cumple"},null,null,null,null,null,null,{"$f":"COUNTIF(D95:AA95,\"Cumple\")/6*100","v":83.333333333333343},"Favorable","Cumple","Cumple"]
["150128 : MUNICIPALIDAD DISTRITAL DEL RÍMAC","0101030101","CAF SIMPLIFICADO",null,null,null,null,null,null,null,null,null,null,null,null,null,null,null,null,null,null,95.82,86.652335544569553,"Cumple",0,3806.0267599999943,"Cumple",{"$f":"COUNTIF(D96:AA96,\"Cumple\")/2*100","v":100},"Favorable","Cumple","Cumple"]
["150129 : MUNICIPALIDAD DISTRITAL DE SAN BARTOLO","0101030101","CAF SIMPLIFICADO",null,null,null,null,null,null,null,null,null,null,null,null,null,null,null,null,null,null,89.27,76.162776080834206,"Cumple",4640.1996799999997,1421.2404899999974,"No cumple",{"$f":"COUNTIF(D97:AA97,\"Cumple\")/2*100","v":50},"Desfavorable","Cumple","Cumple"]
["150132 : MUNICIPALIDAD DISTRITAL DE SAN JUAN DE LURIGANCHO","0101030101","CAF COMPLETO",2.1,6.0169177468712007,{"$f":"IF(E98>D98,\"Cumple\",\"No cumple\")","v":"Cumple"},42.5,45.291678375812644,{"$f":"IF(H98>=G98,\"Cumple\",\"No cumple\")","v":"Cumple"},29.06,19.613135728537742,{"$f":"IF(K98<=J98,\"Cumple\",\"No cumple\")","v":"Cumple"},-5.84,94.247906238267817,{"$f":"IF(N98<=M98,\"Cumple\",\"No cumple\")","v":"No cumple"},2,0,{"$f":"IF(Q98>=2,\"Cumple\",\"No cumple\")","v":"No cumple"},4,0,{"$f":"IF($T98>=3,\"Cumple\",\"No cumple\")","v":"No cumple"},null,null,null,null,null,null,{"$f":"COUNTIF(D98:AA98,\"Cumple\")/6*100","v":50},"Desfavorable","No Cumple","Cumple"]
["150133 : MUNICIPALIDAD DISTRITAL DE SAN JUAN DE MIRAFLORES","0101030101","CAF COMPLETO",30.44,26.403693181878236,{"$f":"IF(E99>D99,\"Cumple\",\"No cumple\")","v":"No cumple"},73.989999999999995,74.092260543194016,{"$f":"IF(H99>=G99,\"Cumple\",\"No cumple\")","v":"Cumple"},26.62,39.283574101249741,{"$f":"IF(K99<=J99,\"Cumple\",\"No cumple\")","v":"No cumple"},-1.5,-10.621864217478661,{"$f":"IF(N99<=M99,\"Cumple\",\"No cumple\")","v":"Cumple"},2,2,{"$f":"IF(Q99>=2,\"Cumple\",\"No cumple\")","v":"Cumple"},4,4,{"$f":"IF($T99>=3,\"Cumple\",\"No cumple\")","v":"Cumple"},null,null,null,null,null,null,{"$f":"COUNTIF(D99:AA99,\"Cumple\")/6*100","v":66.666666666666657},"Desfavorable","No Cumple","Cumple"]
["150134 : MUNICIPALIDAD DISTRITAL DE SAN LUIS","0101030101","CAF COMPLETO",1.1000000000000001,2.5666888900072302,{"$f":"IF(E100>D100,\"Cumple\",\"No cumple\")","v":"Cumple"},80.5,144.68749870278245,{"$f":"IF(H100>=G100,\"Cumple\",\"No cumple\")","v":"Cumple"},52.7,45.355092217827547,{"$f":"IF(K100<=J100,\"Cumple\",\"No cumple\")","v":"Cumple"},0,65.464622881938794,{"$f":"IF(N100<=M100,\"Cumple\",\"No cumple\")","v":"No cumple"},2,1,{"$f":"IF(Q100>=2,\"Cumple\",\"No cumple\")","v":"No cumple"},6,5,{"$f":"IF($T100>=3,\"Cumple\",\"No cumple\")","v":"Cumple"},null,null,null,null,null,null,{"$f":"COUNTIF(D100:AA100,\"Cumple\")/6*100","v":66.666666666666657},"Desfavorable","No Cumple","Cumple"]
["150135 : MUNICIPALIDAD DISTRITAL DE SAN MARTÍN DE PORRES","0101030101","CAF COMPLETO",0,1.9704763577628106,{"$f":"IF(E101>D101,\"Cumple\",\"No cumple\")","v":"Cumple"},45,46.607585376481545,{"$f":"IF(H101>=G101,\"Cumple\",\"No cumple\")","v":"Cumple"},26,27.475110594323397,{"$f":"IF(K101<=J101,\"Cumple\",\"No cumple\")","v":"No cumple"},-5,-43.618882256258125,{"$f":"IF(N101<=M101,\"Cumple\",\"No cumple\")","v":"Cumple"},2,1,{"$f":"IF(Q101>=2,\"Cumple\",\"No cumple\")","v":"No cumple"},3,0,{"$f":"IF($T101>=3,\"Cumple\",\"No cumple\")","v":"No cumple"},null,null,null,null,null,null,{"$f":"COUNTIF(D101:AA101,\"Cumple\")/6*100","v":50},"Desfavorable","No Cumple","Cumple"]
["150143 : MUNICIPALIDAD DISTRITAL DE VILLA MARIA DEL TRIUNFO","0101030101","CAF COMPLETO",5.57,43.80485627939904,{"$f":"IF(E102>D102,\"Cumple\",\"No cumple\")","v":"Cumple"},49.86,56.472340757289103,{"$f":"IF(H102>=G102,\"Cumple\",\"No cumple\")","v":"Cumple"},44.32,36.030922780321141,{"$f":"IF(K102<=J102,\"Cumple\",\"No cumple\")","v":"Cumple"},-2.5,-32.514789374112574,{"$f":"IF(N102<=M102,\"Cumple\",\"No cumple\")","v":"Cumple"},2,0,{"$f":"IF(Q102>=2,\"Cumple\",\"No cumple\")","v":"No cumple"},3,2,{"$f":"IF($T102>=3,\"Cumple\",\"No cumple\")","v":"No cumple"},null,null,null,null,null,null,{"$f":"COUNTIF(D102:AA102,\"Cumple\")/6*100","v":66.666666666666657},"Desfavorable","No Cumple","Cumple"]
["150201 : MUNICIPALIDAD PROVINCIAL DE BARRANCA","0101030101","CAF SIMPLIFICADO",null,null,null,null,null,null,null,null,null,null,null,null,null,null,null,null,null,null,101.38,97.494791384809616,"Cumple",100,3398.7134999999926,"Cumple",{"$f":"COUNTIF(D103:AA103,\"Cumple\")/2*100","v":100},{"$f":"IF(AB103>=80,\"Favorable\",\"Desfavorable\")","v":"Favorable"},"Cumple","Cumple"]
["150202 : MUNICIPALIDAD DISTRITAL DE PARAMONGA","0101030101","CAF SIMPLIFICADO",null,null,null,null,null,null,null,null,null,null,null,null,null,null,null,null,null,null,100,132.2943993321629,"No cumple",-1307.05,1688.1749899999966,"Cumple",{"$f":"COUNTIF(D104:AA104,\"Cumple\")/2*100","v":50},"Desfavorable","No Cumple","Cumple"]
["150205 : MUNICIPALIDAD DISTRITAL DE SUPE PUERTO","0101030101","CAF SIMPLIFICADO",null,null,null,null,null,null,null,null,null,null,null,null,null,null,null,null,null,null,188.17,186.57588011429368,"Cumple",990,788.98997999999995,"No cumple",{"$f":"COUNTIF(D105:AA105,\"Cumple\")/2*100","v":50},"Desfavorable","No Cumple","Cumple"]
["150510 : MUNICIPALIDAD DISTRITAL DE NUEVO IMPERIAL","0101030101","CAF SIMPLIFICADO",null,null,null,null,null,null,null,null,null,null,null,null,null,null,null,null,null,null,295,77.863730397444499,"Cumple",956.32,4069.3559699999987,"Cumple",{"$f":"COUNTIF(D106:AA106,\"Cumple\")/2*100","v":100},"Favorable","Cumple","Cumple"]
["150601 : MUNICIPALIDAD PROVINCIAL DE HUARAL","0101030101","CAF COMPLETO",7.5,52.856351098631116,{"$f":"IF(E107>D107,\"Cumple\",\"No cumple\")","v":"Cumple"},11,12.225332830789785,{"$f":"IF(H107>=G107,\"Cumple\",\"No cumple\")","v":"Cumple"},38.200000000000003,39.90582419323605,{"$f":"IF(K107<=J107,\"Cumple\",\"No cumple\")","v":"No cumple"},-29.3,3057.7164523616293,{"$f":"IF(N107<=M107,\"Cumple\",\"No cumple\")","v":"No cumple"},2,2,{"$f":"IF(Q107>=2,\"Cumple\",\"No cumple\")","v":"Cumple"},3,3,{"$f":"IF($T107>=3,\"Cumple\",\"No cumple\")","v":"Cumple"},null,null,null,null,null,null,{"$f":"COUNTIF(D107:AA107,\"Cumple\")/6*100","v":66.666666666666657},"Desfavorable","No Cumple","Cumple"]
["150605 : MUNICIPALIDAD DISTRITAL DE CHANCAY","0101030101","CAF COMPLETO",2.6,2.4452490155916458,{"$f":"IF(E108>D108,\"Cumple\",\"No cumple\")","v":"No cumple"},51,52.99513600503105,{"$f":"IF(H108>=G108,\"Cumple\",\"No cumple\")","v":"Cumple"},50,26.954245709411751,{"$f":"IF(K108<=J108,\"Cumple\",\"No cumple\")","v":"Cumple"},-17.37,-42.861742766890899,{"$f":"IF(N108<=M108,\"Cumple\",\"No cumple\")","v":"Cumple"},2,2,{"$f":"IF(Q108>=2,\"Cumple\",\"No cumple\")","v":"Cumple"},3,3,{"$f":"IF($T108>=3,\"Cumple\",\"No cumple\")","v":"Cumple"},null,null,null,null,null,null,{"$f":"COUNTIF(D108:AA108,\"Cumple\")/6*100","v":83.333333333333343},"Favorable","Cumple","Cumple"]
["150712 : MUNICIPALIDAD DISTRITAL DE SAN PEDRO DE LARAOS","0101030101","CAF SIMPLIFICADO",null,null,null,null,null,null,null,null,null,null,null,null,null,null,null,null,null,null,99,1.0943994792257048,"Cumple",-300,1161.4481600000001,"Cumple",{"$f":"COUNTIF(D109:AA109,\"Cumple\")/2*100","v":100},"Favorable","Cumple","Cumple"]
["150716 : MUNICIPALIDAD DISTRITAL DE SAN ANTONIO","0101030101","CAF COMPLETO",14,-14.086810001135373,{"$f":"IF(E110>D110,\"Cumple\",\"No cumple\")","v":"No cumple"},35,106.88427940791728,{"$f":"IF(H110>=G110,\"Cumple\",\"No cumple\")","v":"Cumple"},49,57.483104910581737,{"$f":"IF(K110<=J110,\"Cumple\",\"No cumple\")","v":"No cumple"},-60,-57.313710250651852,{"$f":"IF(N110<=M110,\"Cumple\",\"No cumple\")","v":"No cumple"},2,0,{"$f":"IF(Q110>=2,\"Cumple\",\"No cumple\")","v":"No cumple"},3,0,{"$f":"IF($T110>=3,\"Cumple\",\"No cumple\")","v":"No cumple"},null,null,null,null,null,null,{"$f":"COUNTIF(D110:AA110,\"Cumple\")/6*100","v":16.666666666666664},"Desfavorable","Cumple","Cumple"]
["151009 : MUNICIPALIDAD DISTRITAL DE CHOCOS","0101030101","CAF SIMPLIFICADO",null,null,null,null,null,null,null,null,null,null,null,null,null,null,null,null,null,null,89,25.869402534478443,"Cumple",0,778.55142999999998,"Cumple",{"$f":"COUNTIF(D111:AA111,\"Cumple\")/2*100","v":100},"Favorable","Cumple","Cumple"]
["160301 : MUNICIPALIDAD PROVINCIAL DE LORETO - NAUTA","0101030101","CAF COMPLETO",54.3,11.767298904631064,{"$f":"IF(E112>D112,\"Cumple\",\"No cumple\")","v":"No cumple"},1.2,4.8133875594377766,{"$f":"IF(H112>=G112,\"Cumple\",\"No cumple\")","v":"Cumple"},28,28.699102442174439,{"$f":"IF(K112<=J112,\"Cumple\",\"No cumple\")","v":"No cumple"},-2,6.499142141872829,{"$f":"IF(N112<=M112,\"Cumple\",\"No cumple\")","v":"No cumple"},2,1,{"$f":"IF(Q112>=2,\"Cumple\",\"No cumple\")","v":"No cumple"},3,0,{"$f":"IF($T112>=3,\"Cumple\",\"No cumple\")","v":"No cumple"},null,null,null,null,null,null,{"$f":"COUNTIF(D112:AA112,\"Cumple\")/6*100","v":16.666666666666664},"Desfavorable","No Cumple","Cumple"]
["160302 : MUNICIPALIDAD DISTRITAL DE PARINARI","0101030101","CAF SIMPLIFICADO",null,null,null,null,null,null,null,null,null,null,null,null,null,null,null,null,null,null,107.23,145.47283249348447,"No cumple",308.99,1165.1950999999997,"Cumple",{"$f":"COUNTIF(D113:AA113,\"Cumple\")/2*100","v":50},"Desfavorable","No Cumple","Cumple"]
["160305 : MUNICIPALIDAD DISTRITAL DE URARINAS","0101030101","CAF SIMPLIFICADO",null,null,null,null,null,null,null,null,null,null,null,null,null,null,null,null,null,null,100,56.193581675295654,"Cumple",2711.23,1607.3737699999986,"No cumple",{"$f":"COUNTIF(D114:AA114,\"Cumple\")/2*100","v":50},"Desfavorable","Cumple","Cumple"]
["160502 : MUNICIPALIDAD DISTRITAL DE ALTO TAPICHE","0101030101","CAF SIMPLIFICADO",null,null,null,null,null,null,null,null,null,null,null,null,null,null,null,null,null,null,225.88,253.42527334389987,"No cumple",800,293.86221999999998,"No cumple",{"$f":"COUNTIF(D115:AA115,\"Cumple\")/2*100","v":0},"Desfavorable","No Cumple","Cumple"]
["190103 : MUNICIPALIDAD DISTRITAL DE HUARIACA","0101030101","CAF SIMPLIFICADO",null,null,null,null,null,null,null,null,null,null,null,null,null,null,null,null,null,null,112.03,83.037996242506182,"Cumple",1200,1511.8484100000003,"Cumple",{"$f":"COUNTIF(D116:AA116,\"Cumple\")/2*100","v":100},"Favorable","Cumple","Cumple"]
["190104 : MUNICIPALIDAD DISTRITAL DE HUAYLLAY","0101030101","CAF COMPLETO",11.07,-10.126557252939204,{"$f":"IF(E117>D117,\"Cumple\",\"No cumple\")","v":"No cumple"},0,0,{"$f":"IF(H117>=G117,\"Cumple\",\"No cumple\")","v":"Cumple"},32,36.543750697765475,{"$f":"IF(K117<=J117,\"Cumple\",\"No cumple\")","v":"No cumple"},-19.850000000000001,-8.5568030766569745,{"$f":"IF(N117<=M117,\"Cumple\",\"No cumple\")","v":"No cumple"},2,0,{"$f":"IF(Q117>=2,\"Cumple\",\"No cumple\")","v":"No cumple"},4,0,{"$f":"IF($T117>=3,\"Cumple\",\"No cumple\")","v":"No cumple"},null,null,null,null,null,null,{"$f":"COUNTIF(D117:AA117,\"Cumple\")/6*100","v":16.666666666666664},"Desfavorable","Cumple","Cumple"]
["190110 : MUNICIPALIDAD DISTRITAL DE TICLACAYAN","0101030101","CAF SIMPLIFICADO",null,null,null,null,null,null,null,null,null,null,null,null,null,null,null,null,null,null,155.46,125.41122978692026,"Cumple",5000,4318.2770199999995,"No cumple",{"$f":"COUNTIF(D118:AA118,\"Cumple\")/2*100","v":50},"Desfavorable","No Cumple","Cumple"]
["190111 : MUNICIPALIDAD DISTRITAL DE TINYAHUARCO","0101030101","CAF SIMPLIFICADO",null,null,null,null,null,null,null,null,null,null,null,null,null,null,null,null,null,null,180.66,113.86766871446387,"Cumple",4064.04504,3822.4879600000017,"No cumple",{"$f":"COUNTIF(D119:AA119,\"Cumple\")/2*100","v":50},"Desfavorable","No Cumple","Cumple"]
["190302 : MUNICIPALIDAD DISTRITAL DE CHONTABAMBA","0101030101","CAF SIMPLIFICADO",null,null,null,null,null,null,null,null,null,null,null,null,null,null,null,null,null,null,null,null,"Omiso",null,null,"Omiso",null,"Omiso","Cumple","Cumple"]
["200108 : MUNICIPALIDAD DISTRITAL DE EL TALLAN","0101030101","CAF SIMPLIFICADO",null,null,null,null,null,null,null,null,null,null,null,null,null,null,null,null,null,null,1.1000000000000001,4.0257676626215391,"No cumple",2798.28,477.45691999999991,"No cumple",{"$f":"COUNTIF(D121:AA121,\"Cumple\")/2*100","v":0},{"$f":"IF(AB121>=80,\"Favorable\",\"Desfavorable\")","v":"Desfavorable"},"Cumple","Cumple"]
["200109 : MUNICIPALIDAD DISTRITAL DE LA ARENA","0101030101","CAF SIMPLIFICADO",null,null,null,null,null,null,null,null,null,null,null,null,null,null,null,null,null,null,11.45,5.1498902760093044,"Cumple",550,2587.1312499999981,"Cumple",{"$f":"COUNTIF(D122:AA122,\"Cumple\")/2*100","v":100},{"$f":"IF(AB122>=80,\"Favorable\",\"Desfavorable\")","v":"Favorable"},"Cumple","Cumple"]
["200501 : MUNICIPALIDAD PROVINCIAL DE PAITA","0101030101","CAF COMPLETO",0,4.001372660430782,{"$f":"IF(E123>D123,\"Cumple\",\"No cumple\")","v":"Cumple"},12.18,23.86297515245607,{"$f":"IF(H123>=G123,\"Cumple\",\"No cumple\")","v":"Cumple"},22.98,31.133376688487431,{"$f":"IF(K123<=J123,\"Cumple\",\"No cumple\")","v":"No cumple"},-1,21.166057776954371,{"$f":"IF(N123<=M123,\"Cumple\",\"No cumple\")","v":"No cumple"},2,0,{"$f":"IF(Q123>=2,\"Cumple\",\"No cumple\")","v":"No cumple"},4,0,{"$f":"IF($T123>=3,\"Cumple\",\"No cumple\")","v":"No cumple"},null,null,null,null,null,null,{"$f":"COUNTIF(D123:AA123,\"Cumple\")/6*100","v":33.333333333333329},{"$f":"IF(AB123>=80,\"Favorable\",\"Desfavorable\")","v":"Desfavorable"},"Cumple","Cumple"]
["200602 : MUNICIPALIDAD DISTRITAL DE BELLAVISTA","0101030101","CAF SIMPLIFICADO",null,null,null,null,null,null,null,null,null,null,null,null,null,null,null,null,null,null,249.32,265.34633072100371,"No cumple",3580.25,967.45402000000422,"No cumple",{"$f":"COUNTIF(D124:AA124,\"Cumple\")/2*100","v":0},{"$f":"IF(AB124>=80,\"Favorable\",\"Desfavorable\")","v":"Desfavorable"},"No Cumple","Cumple"]
["200804 : MUNICIPALIDAD DISTRITAL DE CRISTO NOS VALGA","0101030101","CAF SIMPLIFICADO",null,null,null,null,null,null,null,null,null,null,null,null,null,null,null,null,null,null,null,null,"Omiso",null,null,"Omiso",null,"Omiso","Cumple","Cumple"]
["210901 : MUNICIPALIDAD PROVINCIAL DE MOHO","0101030101","CAF SIMPLIFICADO",null,null,null,null,null,null,null,null,null,null,null,null,null,null,null,null,null,null,30,66.656808162436306,"No cumple",1064,5845.8576499999999,"Cumple",{"$f":"COUNTIF(D126:AA126,\"Cumple\")/2*100","v":50},{"$f":"IF(AB126>=80,\"Favorable\",\"Desfavorable\")","v":"Desfavorable"},"Cumple","Cumple"]
["220602 : MUNICIPALIDAD DISTRITAL DE CAMPANILLA","0101030101","CAF SIMPLIFICADO",null,null,null,null,null,null,null,null,null,null,null,null,null,null,null,null,null,null,9.6999999999999993,138.77302735852703,"No cumple",0,891.2713500000001,"Cumple",{"$f":"COUNTIF(D127:AA127,\"Cumple\")/2*100","v":50},"Desfavorable","No Cumple","Cumple"]
["220701 : MUNICIPALIDAD PROVINCIAL DE PICOTA","0101030101","CAF SIMPLIFICADO",null,null,null,null,null,null,null,null,null,null,null,null,null,null,null,null,null,null,22.88,19.495225494828787,"Cumple",650,704.57007000000124,"Cumple",{"$f":"COUNTIF(D128:AA128,\"Cumple\")/2*100","v":100},"Favorable","Cumple","Cumple"]
["220808 : MUNICIPALIDAD DISTRITAL DE YORONGOS","0101030101","CAF SIMPLIFICADO",null,null,null,null,null,null,null,null,null,null,null,null,null,null,null,null,null,null,100,41.192265671390956,"Cumple",100,471.57015999999993,"Cumple",{"$f":"COUNTIF(D129:AA129,\"Cumple\")/2*100","v":100},"Favorable","Cumple","Cumple"]
["230102 : MUNICIPALIDAD DISTRITAL DE ALTO DE LA ALIANZA","0101030101","CAF COMPLETO",0,24.549649842236523,{"$f":"IF(E130>D130,\"Cumple\",\"No cumple\")","v":"Cumple"},4.5999999999999996,14.90062245256089,{"$f":"IF(H130>=G130,\"Cumple\",\"No cumple\")","v":"Cumple"},56.1,46.75898611501075,{"$f":"IF(K130<=J130,\"Cumple\",\"No cumple\")","v":"Cumple"},-4.4000000000000004,30.945996338346085,{"$f":"IF(N130<=M130,\"Cumple\",\"No cumple\")","v":"No cumple"},2,0,{"$f":"IF(Q130>=2,\"Cumple\",\"No cumple\")","v":"No cumple"},6,0,{"$f":"IF($T130>=3,\"Cumple\",\"No cumple\")","v":"No cumple"},null,null,null,null,null,null,{"$f":"COUNTIF(D130:AA130,\"Cumple\")/6*100","v":50},"Desfavorable","No Cumple","Cumple"]
["230104 : MUNICIPALIDAD DISTRITAL DE CIUDAD NUEVA","0101030101","CAF COMPLETO",10,-37.873256426737022,{"$f":"IF(E131>D131,\"Cumple\",\"No cumple\")","v":"No cumple"},12.3,19.54664186855171,{"$f":"IF(H131>=G131,\"Cumple\",\"No cumple\")","v":"Cumple"},20.34,46.337171566246532,{"$f":"IF(K131<=J131,\"Cumple\",\"No cumple\")","v":"No cumple"},0,-16.423081766086128,{"$f":"IF(N131<=M131,\"Cumple\",\"No cumple\")","v":"Cumple"},2,0,{"$f":"IF(Q131>=2,\"Cumple\",\"No cumple\")","v":"No cumple"},3,0,{"$f":"IF($T131>=3,\"Cumple\",\"No cumple\")","v":"No cumple"},null,null,null,null,null,null,{"$f":"COUNTIF(D131:AA131,\"Cumple\")/6*100","v":33.333333333333329},"Desfavorable","Cumple","Cumple"]
["230108 : MUNICIPALIDAD DISTRITAL DE POCOLLAY","0101030101","CAF SIMPLIFICADO",null,null,null,null,null,null,null,null,null,null,null,null,null,null,null,null,null,null,100,87.19355077183819,"Cumple",0,5846.1644599999991,"Cumple",{"$f":"COUNTIF(D132:AA132,\"Cumple\")/2*100","v":100},"Favorable","Cumple","Cumple"]
["230203 : MUNICIPALIDAD DISTRITAL DE CAMILACA","0101030101","CAF SIMPLIFICADO",null,null,null,null,null,null,null,null,null,null,null,null,null,null,null,null,null,null,135.99,91.906670128441718,"Cumple",0,8236.4915400000009,"Cumple",{"$f":"COUNTIF(D133:AA133,\"Cumple\")/2*100","v":100},"Favorable","Cumple","Cumple"]
["230206 : MUNICIPALIDAD DISTRITAL DE QUILAHUANI","0101030101","CAF SIMPLIFICADO",null,null,null,null,null,null,null,null,null,null,null,null,null,null,null,null,null,null,185.95,135.78817780293767,"Cumple",200,2768.0077699999997,"Cumple",{"$f":"COUNTIF(D134:AA134,\"Cumple\")/2*100","v":100},"Favorable","No Cumple","Cumple"]
["230302 : MUNICIPALIDAD DISTRITAL DE ILABAYA","0101030101","CAF COMPLETO",3,-10.497955703048021,{"$f":"IF(E135>D135,\"Cumple\",\"No cumple\")","v":"No cumple"},0,0,{"$f":"IF(H135>=G135,\"Cumple\",\"No cumple\")","v":"Cumple"},120.7,107.8846983598667,{"$f":"IF(K135<=J135,\"Cumple\",\"No cumple\")","v":"Cumple"},100,-75.959255327260465,{"$f":"IF(N135<=M135,\"Cumple\",\"No cumple\")","v":"Cumple"},2,1,{"$f":"IF(Q135>=2,\"Cumple\",\"No cumple\")","v":"No cumple"},3,1,{"$f":"IF($T135>=3,\"Cumple\",\"No cumple\")","v":"No cumple"},null,null,null,null,null,null,{"$f":"COUNTIF(D135:AA135,\"Cumple\")/6*100","v":50},"Desfavorable","No Cumple","Cumple"]
["250105 : MUNICIPALIDAD DISTRITAL DE YARINACOCHA","0101030101","CAF COMPLETO",7.5,-4.7184653961696137,{"$f":"IF(E136>D136,\"Cumple\",\"No cumple\")","v":"No cumple"},14.79,23.998374075401369,{"$f":"IF(H136>=G136,\"Cumple\",\"No cumple\")","v":"Cumple"},40,40.76793518893372,{"$f":"IF(K136<=J136,\"Cumple\",\"No cumple\")","v":"No cumple"},-33.049999999999997,-31.054183285296123,{"$f":"IF(N136<=M136,\"Cumple\",\"No cumple\")","v":"No cumple"},2,0,{"$f":"IF(Q136>=2,\"Cumple\",\"No cumple\")","v":"No cumple"},5,0,{"$f":"IF($T136>=3,\"Cumple\",\"No cumple\")","v":"No cumple"},null,null,null,null,null,null,{"$f":"COUNTIF(D136:AA136,\"Cumple\")/6*100","v":16.666666666666664},"Desfavorable","No Cumple","Cumple"]
["250301 : MUNICIPALIDAD PROVINCIAL DE PADRE ABAD - AGUAITIA","0101030101","CAF SIMPLIFICADO",null,null,null,null,null,null,null,null,null,null,null,null,null,null,null,null,null,null,85,124.54776867110444,"No cumple",9160,2651.6431700000057,"No cumple",{"$f":"COUNTIF(D137:AA137,\"Cumple\")/2*100","v":0},"Desfavorable","No Cumple","Cumple"]
["040000 : GOBIERNO REGIONAL DE AREQUIPA","0101020101","CAF COMPLETO",null,null,null,null,null,null,7.28,6.8230236214562767,{"$f":"IF(K138<=J138,\"Cumple\",\"No cumple\")","v":"Cumple"},-22,-17.017677170604784,{"$f":"IF(N138<=M138,\"Cumple\",\"No cumple\")","v":"No cumple"},2,1,{"$f":"IF(Q138>=2,\"Cumple\",\"No cumple\")","v":"No cumple"},3,3,{"$f":"IF($T138>=3,\"Cumple\",\"No cumple\")","v":"Cumple"},null,null,null,null,null,null,{"$f":"COUNTIF(D138:AA138,\"Cumple\")/4*100","v":50},"Desfavorable","Cumple","Cumple"]
["060000 : GOBIERNO REGIONAL DE CAJAMARCA","0101020101","CAF SIMPLIFICADO",null,null,null,null,null,null,null,null,null,null,null,null,null,null,null,null,null,null,100.3,81.408251413031579,"Cumple",51500,58909.469570002082,"Cumple",{"$f":"COUNTIF(D139:AA139,\"Cumple\")/2*100","v":100},"Favorable","Cumple","Cumple"]
["130000 : GOBIERNO REGIONAL DE LA LIBERTAD","0101020101","CAF SIMPLIFICADO",null,null,null,null,null,null,null,null,null,null,null,null,null,null,null,null,null,null,98,67.086478984246483,"Cumple",127000,128288.47276999569,"Cumple",{"$f":"COUNTIF(D140:AA140,\"Cumple\")/2*100","v":100},"Favorable","Cumple","Cumple"]
["150100 : REGION LIMA METROPOLITANA","0101020101","CAF SIMPLIFICADO",null,null,null,null,null,null,null,null,null,null,null,null,null,null,null,null,null,null,10.83,75.336128903286692,"No cumple",-349.68,5595.7572999999966,"Cumple",{"$f":"COUNTIF(D141:AA141,\"Cumple\")/2*100","v":50},"Desfavorable","Cumple","Cumple"]
["180000 : GOBIERNO REGIONAL DE MOQUEGUA","0101020101","CAF COMPLETO",null,null,null,null,null,null,11.1,11.872918392131687,{"$f":"IF(K142<=J142,\"Cumple\",\"No cumple\")","v":"No cumple"},4.0999999999999996,71.312270057775365,{"$f":"IF(N142<=M142,\"Cumple\",\"No cumple\")","v":"No cumple"},2,1,{"$f":"IF(Q142>=2,\"Cumple\",\"No cumple\")","v":"No cumple"},3,0,{"$f":"IF($T142>=3,\"Cumple\",\"No cumple\")","v":"No cumple"},null,null,null,null,null,null,{"$f":"COUNTIF(D142:AA142,\"Cumple\")/4*100","v":0},"Desfavorable","No Cumple","Cumple"]
["200000 : GOBIERNO REGIONAL DE PIURA","0101020101","CAF COMPLETO",null,null,null,null,null,null,9.5,9.7814608671154932,{"$f":"IF(K143<=J143,\"Cumple\",\"No cumple\")","v":"No cumple"},-12,-49.021622883993409,{"$f":"IF(N143<=M143,\"Cumple\",\"No cumple\")","v":"Cumple"},2,2,{"$f":"IF(Q143>=2,\"Cumple\",\"No cumple\")","v":"Cumple"},7,7,{"$f":"IF($T143>=3,\"Cumple\",\"No cumple\")","v":"Cumple"},null,null,null,null,null,null,{"$f":"COUNTIF(D143:AA143,\"Cumple\")/4*100","v":75},"Desfavorable","No Cumple","Cumple"]
["210000 : GOBIERNO REGIONAL DE PUNO","0101020101","CAF COMPLETO",null,null,null,null,null,null,7.01,6.8873364716595127,{"$f":"IF(K144<=J144,\"Cumple\",\"No cumple\")","v":"Cumple"},-8.5,54.441589350313883,{"$f":"IF(N144<=M144,\"Cumple\",\"No cumple\")","v":"No cumple"},2,0,{"$f":"IF(Q144>=2,\"Cumple\",\"No cumple\")","v":"No cumple"},3,0,{"$f":"IF($T144>=3,\"Cumple\",\"No cumple\")","v":"No cumple"},null,null,null,null,null,null,{"$f":"COUNTIF(D144:AA144,\"Cumple\")/4*100","v":25},"Desfavorable","Cumple","Cumple"]

{"sheet":"TOTAL","index":9,"n_rows":146,"n_cols":16,"rows_kept":146,"cut":false,"hidden":true,"merged":[[2,13,3,13],[2,14,3,14],[2,3,3,3],[2,15,3,15],[2,0,3,0],[2,1,3,1],[2,2,3,2],[2,4,2,11],[2,12,3,12]]}
[]
[]
["UBIGEO","DEPARTAMENTO","MUNICIPALIDAD","Tipo de CAF","CUMPLIMIENTO DE LOS COMPROMISOS DE AJUSTE FISCAL",null,null,null,null,null,null,null,"Logro","Evaluación","Regla Fiscal\nSDT","Regla Fiscal\nACC"]
[null,null,null,null,"CF 1","CF2","CF 3","CF 4","CF 5","CF 6","CF 7","CF 8"]
["010112","AMAZONAS"," MUNICIPALIDAD DISTRITAL DE MAGDALENA","CAF SIMPLIFICADO",null,null,null,null,null,null,"Cumple","Cumple",100,"Favorable","Cumple","Cumple"]
["010120","AMAZONAS"," MUNICIPALIDAD DISTRITAL DE SOLOCO","CAF SIMPLIFICADO",null,null,null,null,null,null,"Cumple","Cumple",100,"Favorable","Cumple","Cumple"]
["010302","AMAZONAS"," MUNICIPALIDAD DISTRITAL DE CHISQUILLA","CAF SIMPLIFICADO",null,null,null,null,null,null,"No cumple","No cumple",0,"Desfavorable","Cumple","Cumple"]
["010503","AMAZONAS"," MUNICIPALIDAD DISTRITAL DE COCABAMBA","CAF SIMPLIFICADO",null,null,null,null,null,null,"No cumple","Cumple",50,"Desfavorable","No Cumple","Cumple"]
["010504","AMAZONAS"," MUNICIPALIDAD DISTRITAL DE COLCAMAR","CAF SIMPLIFICADO",null,null,null,null,null,null,"Cumple","No cumple",50,"Desfavorable","Cumple","Cumple"]
["010522","AMAZONAS"," MUNICIPALIDAD DISTRITAL DE TINGO","CAF SIMPLIFICADO",null,null,null,null,null,null,"Cumple","Cumple",100,"Favorable","Cumple","Cumple"]
["010602","AMAZONAS"," MUNICIPALIDAD DISTRITAL DE CHIRIMOTO","CAF SIMPLIFICADO",null,null,null,null,null,null,"Cumple","Cumple",100,"Favorable","Cumple","Cumple"]
["010605","AMAZONAS"," MUNICIPALIDAD DISTRITAL DE LIMABAMBA","CAF SIMPLIFICADO",null,null,null,null,null,null,"No cumple","Cumple",50,"Desfavorable","No Cumple","Cumple"]
["010606","AMAZONAS"," MUNICIPALIDAD DISTRITAL DE LONGAR","CAF SIMPLIFICADO",null,null,null,null,null,null,"Cumple","Cumple",100,"Favorable","Cumple","Cumple"]
["020513","ANCASH"," MUNICIPALIDAD DISTRITAL DE PACLLON","CAF SIMPLIFICADO",null,null,null,null,null,null,"Cumple","No cumple",50,"Desfavorable","Cumple","Cumple"]
["020515","ANCASH"," MUNICIPALIDAD DISTRITAL DE TICLLOS","CAF SIMPLIFICADO",null,null,null,null,null,null,"Cumple","Cumple",100,"Favorable","Cumple","Cumple"]
["020610","ANCASH"," MUNICIPALIDAD DISTRITAL DE TINCO","CAF SIMPLIFICADO",null,null,null,null,null,null,"Cumple","Cumple",100,"Favorable","Cumple","Cumple"]
["021101","ANCASH"," MUNICIPALIDAD PROVINCIAL DE HUARMEY","CAF SIMPLIFICADO",null,null,null,null,null,null,"No cumple","Cumple",50,"Desfavorable","Cumple","Cumple"]
["021506","ANCASH"," MUNICIPALIDAD DISTRITAL DE LACABAMBA","CAF SIMPLIFICADO",null,null,null,null,null,null,"Cumple","Cumple",100,"Favorable","Cumple","Cumple"]
["021508","ANCASH"," MUNICIPALIDAD DISTRITAL DE PALLASCA","CAF SIMPLIFICADO",null,null,null,null,null,null,"Cumple","Cumple",100,"Favorable","Cumple","Cumple"]
["021803","ANCASH"," MUNICIPALIDAD DISTRITAL DE COISHCO","CAF SIMPLIFICADO",null,null,null,null,null,null,"Cumple","Cumple",100,"Favorable","Cumple","Cumple"]
["021902","ANCASH"," MUNICIPALIDAD DISTRITAL DE ACOBAMBA","CAF SIMPLIFICADO",null,null,null,null,null,null,"Cumple","No cumple",50,"Desfavorable","Cumple","Cumple"]
["030101","APURIMAC"," MUNICIPALIDAD PROVINCIAL DE ABANCAY","CAF COMPLETO","Cumple","Cumple","No cumple","No cumple","No cumple","No cumple",null,null,33.333333333333329,"Desfavorable","No Cumple","Cumple"]
["030106","APURIMAC"," MUNICIPALIDAD DISTRITAL DE LAMBRAMA","CAF SIMPLIFICADO",null,null,null,null,null,null,"Cumple","Cumple",100,"Favorable","Cumple","Cumple"]
["030201","APURIMAC"," MUNICIPALIDAD PROVINCIAL DE ANDAHUAYLAS","CAF COMPLETO","Cumple","No cumple","Cumple","No cumple","No cumple","No cumple",null,null,33.333333333333329,"Desfavorable","No Cumple","Cumple"]
["030402","APURIMAC"," MUNICIPALIDAD DISTRITAL DE CAPAYA","CAF SIMPLIFICADO",null,null,null,null,null,null,"Cumple","No cumple",50,"Desfavorable","Cumple","Cumple"]
["030409","APURIMAC"," MUNICIPALIDAD DISTRITAL DE LUCRE","CAF SIMPLIFICADO",null,null,null,null,null,null,"No cumple","No cumple",0,"Desfavorable","Cumple","Cumple"]
["030413","APURIMAC"," MUNICIPALIDAD DISTRITAL DE SORAYA","CAF SIMPLIFICADO",null,null,null,null,null,null,"No cumple","Cumple",50,"Desfavorable","Cumple","Cumple"]
["030501","APURIMAC"," MUNICIPALIDAD PROVINCIAL DE COTABAMBAS - TAMBOBAMBA","CAF COMPLETO","Cumple","Cumple","No cumple","Cumple","Cumple","Cumple",null,null,83.333333333333343,"Favorable","No Cumple","Cumple"]
["030502","APURIMAC"," MUNICIPALIDAD DISTRITAL DE COTABAMBAS","CAF SIMPLIFICADO",null,null,null,null,null,null,"Cumple","Cumple",100,"Favorable","No Cumple","Cumple"]
["030503","APURIMAC"," MUNICIPALIDAD DISTRITAL DE COYLLURQUI","CAF COMPLETO","No cumple","Cumple","No cumple","Cumple","Cumple","No cumple",null,null,50,"Desfavorable","No Cumple","Cumple"]
["030601","APURIMAC"," MUNICIPALIDAD PROVINCIAL DE CHINCHEROS","CAF SIMPLIFICADO",null,null,null,null,null,null,"No cumple","Cumple",50,"Desfavorable","No Cumple","Cumple"]
["030701","APURIMAC"," MUNICIPALIDAD PROVINCIAL DE GRAU","CAF SIMPLIFICADO",null,null,null,null,null,null,"Cumple","No cumple",50,"Desfavorable","No Cumple","Cumple"]
["030708","APURIMAC"," MUNICIPALIDAD DISTRITAL DE PROGRESO","CAF SIMPLIFICADO",null,null,null,null,null,null,"No cumple","No cumple",0,"Desfavorable","No Cumple","Cumple"]
["040405","AREQUIPA"," MUNICIPALIDAD DISTRITAL DE CHILCAYMARCA","CAF SIMPLIFICADO",null,null,null,null,null,null,"No cumple","Cumple",50,"Desfavorable","Cumple","Cumple"]
["040701","AREQUIPA"," MUNICIPALIDAD PROVINCIAL DE ISLAY - MOLLENDO","CAF COMPLETO","Cumple","Cumple","No cumple","No cumple","No cumple","No cumple",null,null,33.333333333333329,"Desfavorable","No Cumple","Cumple"]
["040802","AREQUIPA"," MUNICIPALIDAD DISTRITAL DE ALCA","CAF SIMPLIFICADO",null,null,null,null,null,null,"Cumple","Cumple",100,"Favorable","Cumple","Cumple"]
["050104","AYACUCHO"," MUNICIPALIDAD DISTRITAL DE CARMEN ALTO","CAF SIMPLIFICADO",null,null,null,null,null,null,"No cumple","No cumple",0,"Desfavorable","Cumple","Cumple"]
["050106","AYACUCHO"," MUNICIPALIDAD DISTRITAL DE OCROS","CAF SIMPLIFICADO",null,null,null,null,null,null,"Cumple","No cumple",50,"Desfavorable","Cumple","Cumple"]
["050201","AYACUCHO"," MUNICIPALIDAD PROVINCIAL DE CANGALLO","CAF SIMPLIFICADO",null,null,null,null,null,null,"Cumple","Cumple",100,"Favorable","Cumple","Cumple"]
["050304","AYACUCHO"," MUNICIPALIDAD DISTRITAL DE SANTIAGO DE LUCANAMARCA","CAF SIMPLIFICADO",null,null,null,null,null,null,"Cumple","Cumple",100,"Favorable","Cumple","Cumple"]
["050405","AYACUCHO"," MUNICIPALIDAD DISTRITAL DE LURICOCHA","CAF SIMPLIFICADO",null,null,null,null,null,null,"No cumple","Cumple",50,"Desfavorable","No Cumple","Cumple"]
["050503","AYACUCHO"," MUNICIPALIDAD DISTRITAL DE AYNA","CAF SIMPLIFICADO",null,null,null,null,null,null,"No cumple","Cumple",50,"Desfavorable","No Cumple","Cumple"]
["050707","AYACUCHO"," MUNICIPALIDAD DISTRITAL DE SAN FRANCISCO DE RAVACAYCO","CAF SIMPLIFICADO",null,null,null,null,null,null,"Cumple","Cumple",100,"Favorable","Cumple","Cumple"]
["051001","AYACUCHO"," MUNICIPALIDAD PROVINCIAL DE VICTOR FAJARDO","CAF SIMPLIFICADO",null,null,null,null,null,null,"Cumple","Cumple",100,"Favorable","No Cumple","Cumple"]
["051108","AYACUCHO"," MUNICIPALIDAD DISTRITAL DE VISCHONGO","CAF SIMPLIFICADO",null,null,null,null,null,null,"No cumple","Cumple",50,"Desfavorable","No Cumple","Cumple"]
["060112","CAJAMARCA"," MUNICIPALIDAD DISTRITAL DE SAN JUAN","CAF SIMPLIFICADO",null,null,null,null,null,null,"No cumple","Cumple",50,"Desfavorable","No Cumple","Cumple"]
["060402","CAJAMARCA"," MUNICIPALIDAD DISTRITAL DE ANGUIA","CAF SIMPLIFICADO",null,null,null,null,null,null,"Cumple","Cumple",100,"Favorable","Cumple","Cumple"]
["060403","CAJAMARCA"," MUNICIPALIDAD DISTRITAL DE CHADIN","CAF SIMPLIFICADO",null,null,null,null,null,null,"Omiso","Omiso",null,"Omiso","No Cumple","Cumple"]
["060406","CAJAMARCA"," MUNICIPALIDAD DISTRITAL DE CHOROPAMPA","CAF SIMPLIFICADO",null,null,null,null,null,null,"No cumple","Cumple",50,"Desfavorable","Cumple","Cumple"]
["060413","CAJAMARCA"," MUNICIPALIDAD DISTRITAL DE PACCHA","CAF SIMPLIFICADO",null,null,null,null,null,null,"Omiso","Omiso",null,"Omiso","No Cumple","Cumple"]
["060414","CAJAMARCA"," MUNICIPALIDAD DISTRITAL DE PION","CAF SIMPLIFICADO",null,null,null,null,null,null,"No cumple","Cumple",50,"Desfavorable","No Cumple","Cumple"]
["061310","CAJAMARCA"," MUNICIPALIDAD DISTRITAL DE UTICYACU","CAF SIMPLIFICADO",null,null,null,null,null,null,"Cumple","No cumple",50,"Desfavorable","No Cumple","Cumple"]
["070101","PROV CONSTIT DEL CALLAO"," MUNICIPALIDAD PROVINCIAL DEL CALLAO","CAF COMPLETO","No cumple","Cumple","No cumple","No cumple","Cumple","Cumple",null,null,50,"Desfavorable","No Cumple","Cumple"]
["070102","PROV CONSTIT DEL CALLAO"," MUNICIPALIDAD DISTRITAL DE BELLAVISTA","CAF COMPLETO","Cumple","No cumple","No cumple","No cumple","No cumple","Cumple",null,null,33.333333333333329,"Desfavorable","No Cumple","Cumple"]
["070103","PROV CONSTIT DEL CALLAO"," MUNICIPALIDAD DISTRITAL DE CARMEN DE LA LEGUA REYNOSO","CAF COMPLETO","Cumple","No cumple","No cumple","No cumple","Cumple","No cumple",null,null,33.333333333333329,"Desfavorable","No Cumple","Cumple"]
["081102","CUSCO"," MUNICIPALIDAD DISTRITAL DE CAICAY","CAF SIMPLIFICADO",null,null,null,null,null,null,"Cumple","Cumple",100,"Favorable","Cumple","Cumple"]
["090202","HUANCAVELICA"," MUNICIPALIDAD DISTRITAL DE ANDABAMBA","CAF SIMPLIFICADO",null,null,null,null,null,null,"No cumple","No cumple",0,"Desfavorable","No Cumple","Cumple"]
["090204","HUANCAVELICA"," MUNICIPALIDAD DISTRITAL DE CAJA","CAF SIMPLIFICADO",null,null,null,null,null,null,"No cumple","No cumple",0,"Desfavorable","No Cumple","Cumple"]
["090302","HUANCAVELICA"," MUNICIPALIDAD DISTRITAL DE ANCHONGA","CAF SIMPLIFICADO",null,null,null,null,null,null,"No cumple","Cumple",50,"Desfavorable","No Cumple","Cumple"]
["090404","HUANCAVELICA"," MUNICIPALIDAD DISTRITAL DE CAPILLAS","CAF SIMPLIFICADO",null,null,null,null,null,null,"Cumple","Cumple",100,"Favorable","Cumple","Cumple"]
["100301","HUANUCO"," MUNICIPALIDAD PROVINCIAL DE DOS DE MAYO","CAF SIMPLIFICADO",null,null,null,null,null,null,"Omiso","Omiso",null,"Omiso","No Cumple","Cumple"]
["100601","HUANUCO"," MUNICIPALIDAD PROVINCIAL DE LEONCIO PRADO - RUPA RUPA","CAF COMPLETO","No cumple","Cumple","No cumple","No cumple","Cumple","Cumple",null,null,50,"Desfavorable","Cumple","Cumple"]
["100608","HUANUCO"," MUNICIPALIDAD DISTRITAL DE CASTILLO GRANDE","CAF SIMPLIFICADO",null,null,null,null,null,null,"No cumple","Cumple",50,"Desfavorable","Cumple","Cumple"]
["110101","ICA"," MUNICIPALIDAD PROVINCIAL DE ICA","CAF COMPLETO","Cumple","No cumple","No cumple","Cumple","No cumple","No cumple",null,null,33.333333333333329,"Desfavorable","No Cumple","Cumple"]
["110106","ICA"," MUNICIPALIDAD DISTRITAL DE PARCONA","CAF COMPLETO","Cumple","No cumple","No cumple","No cumple","Cumple","No cumple",null,null,33.333333333333329,"Desfavorable","No Cumple","Cumple"]
["110211","ICA"," MUNICIPALIDAD DISTRITAL DE TAMBO DE MORA","CAF SIMPLIFICADO",null,null,null,null,null,null,"Cumple","Cumple",100,"Favorable","Cumple","Cumple"]
["110402","ICA"," MUNICIPALIDAD DISTRITAL DE LLIPATA","CAF SIMPLIFICADO",null,null,null,null,null,null,"Cumple","Cumple",100,"Favorable","Cumple","Cumple"]
["110501","ICA"," MUNICIPALIDAD PROVINCIAL DE PISCO","CAF COMPLETO","Cumple","Cumple","No cumple","No cumple","No cumple","No cumple",null,null,33.333333333333329,"Desfavorable","No Cumple","Cumple"]
["110506","ICA"," MUNICIPALIDAD DISTRITAL DE SAN ANDRES","CAF SIMPLIFICADO",null,null,null,null,null,null,"Cumple","Cumple",100,"Favorable","No Cumple","Cumple"]
["120108","JUNIN"," MUNICIPALIDAD DISTRITAL DE CHONGOS ALTO","CAF SIMPLIFICADO",null,null,null,null,null,null,"Omiso","Omiso",null,"Omiso","No Cumple","Cumple"]
["120120","JUNIN"," MUNICIPALIDAD DISTRITAL DE HUASICANCHA","CAF SIMPLIFICADO",null,null,null,null,null,null,"No cumple","Cumple",50,"Desfavorable","No Cumple","Cumple"]
["120205","JUNIN"," MUNICIPALIDAD DISTRITAL DE COCHAS","CAF SIMPLIFICADO",null,null,null,null,null,null,"Omiso","Omiso",null,"Omiso","Cumple","Cumple"]
["120207","JUNIN"," MUNICIPALIDAD DISTRITAL DE HEROINAS TOLEDO","CAF SIMPLIFICADO",null,null,null,null,null,null,"Cumple","Cumple",100,"Favorable","Cumple","Cumple"]
["120402","JUNIN"," MUNICIPALIDAD DISTRITAL DE ACOLLA","CAF SIMPLIFICADO",null,null,null,null,null,null,"Cumple","Cumple",100,"Favorable","Cumple","Cumple"]
["130104","LA LIBERTAD"," MUNICIPALIDAD DISTRITAL DE HUANCHACO","CAF SIMPLIFICADO",null,null,null,null,null,null,"No cumple","Cumple",50,"Desfavorable","Cumple","Cumple"]
["130105","LA LIBERTAD"," MUNICIPALIDAD DISTRITAL DE LA ESPERANZA","CAF COMPLETO","Cumple","Cumple","No cumple","Cumple","Cumple","Cumple",null,null,83.333333333333343,"Favorable","Cumple","Cumple"]
["130106","LA LIBERTAD"," MUNICIPALIDAD DISTRITAL DE LAREDO","CAF SIMPLIFICADO",null,null,null,null,null,null,"No cumple","Cumple",50,"Desfavorable","Cumple","Cumple"]
["130207","LA LIBERTAD"," MUNICIPALIDAD DISTRITAL DE SANTIAGO DE CAO","CAF SIMPLIFICADO",null,null,null,null,null,null,"No cumple","Cumple",50,"Desfavorable","No Cumple","Cumple"]
["130702","LA LIBERTAD"," MUNICIPALIDAD DISTRITAL DE GUADALUPE","CAF COMPLETO","Cumple","Cumple","No cumple","No cumple","Cumple","No cumple",null,null,50,"Desfavorable","No Cumple","Cumple"]
["140101","LAMBAYEQUE"," MUNICIPALIDAD PROVINCIAL DE CHICLAYO","CAF COMPLETO","Cumple","No cumple","No cumple","Cumple","Cumple","Cumple",null,null,66.666666666666657,"Desfavorable","No Cumple","Cumple"]
["140104","LAMBAYEQUE"," MUNICIPALIDAD DISTRITAL DE ETEN PUERTO","CAF SIMPLIFICADO",null,null,null,null,null,null,"No cumple","No cumple",0,"Desfavorable","No Cumple","Cumple"]
["140105","LAMBAYEQUE"," MUNICIPALIDAD DISTRITAL DE JOSE LEONARDO ORTIZ","CAF COMPLETO","Cumple","Cumple","No cumple","Cumple","Cumple","No cumple",null,null,66.666666666666657,"Desfavorable","No Cumple","Cumple"]
["140106","LAMBAYEQUE"," MUNICIPALIDAD DISTRITAL DE LA VICTORIA","CAF COMPLETO","Cumple","No cumple","No cumple","No cumple","No cumple","No cumple",null,null,16.666666666666664,"Desfavorable","No Cumple","Cumple"]
["140111","LAMBAYEQUE"," MUNICIPALIDAD DISTRITAL DE PICSI","CAF SIMPLIFICADO",null,null,null,null,null,null,"Cumple","Cumple",100,"Favorable","No Cumple","No Cumple"]
["140116","LAMBAYEQUE"," MUNICIPALIDAD DISTRITAL DE CAYALTI","CAF SIMPLIFICADO",null,null,null,null,null,null,"Cumple","Cumple",100,"Favorable","Cumple","Cumple"]
["140118","LAMBAYEQUE"," MUNICIPALIDAD DISTRITAL DE POMALCA","CAF SIMPLIFICADO",null,null,null,null,null,null,"No cumple","No cumple",0,"Desfavorable","Cumple","Cumple"]
["140201","LAMBAYEQUE"," MUNICIPALIDAD PROVINCIAL DE FERREÑAFE","CAF COMPLETO","Cumple","Cumple","No cumple","Cumple","Cumple","Cumple",null,null,83.333333333333343,"Favorable","No Cumple","Cumple"]
["140205","LAMBAYEQUE"," MUNICIPALIDAD DISTRITAL DE PITIPO","CAF SIMPLIFICADO",null,null,null,null,null,null,"No cumple","Cumple",50,"Desfavorable","No Cumple","Cumple"]
["140310","LAMBAYEQUE"," MUNICIPALIDAD DISTRITAL DE SALAS","CAF SIMPLIFICADO",null,null,null,null,null,null,"Cumple","Cumple",100,"Favorable","Cumple","Cumple"]
["150102","LIMA"," MUNICIPALIDAD DISTRITAL DE ANCÓN","CAF COMPLETO","Cumple","Cumple","Cumple","No cumple","No cumple","Cumple",null,null,66.666666666666657,"Desfavorable","No Cumple","Cumple"]
["150104","LIMA"," MUNICIPALIDAD DISTRITAL DE BARRANCO","CAF COMPLETO","Cumple","Cumple","Cumple","Cumple","Cumple","Cumple",null,null,100,"Favorable","No Cumple","Cumple"]
["150105","LIMA"," MUNICIPALIDAD DISTRITAL DE BREÑA","CAF COMPLETO","Cumple","No cumple","Cumple","No cumple","Cumple","Cumple",null,null,66.666666666666657,"Desfavorable","No Cumple","Cumple"]
["150110","LIMA"," MUNICIPALIDAD DISTRITAL DE COMAS","CAF SIMPLIFICADO",null,null,null,null,null,null,"No cumple","Cumple",50,"Desfavorable","No Cumple","Cumple"]
["150111","LIMA"," MUNICIPALIDAD DISTRITAL DE EL AGUSTINO","CAF COMPLETO","Cumple","Cumple","No cumple","No cumple","No cumple","No cumple",null,null,33.333333333333329,"Desfavorable","No Cumple","Cumple"]
["150112","LIMA"," MUNICIPALIDAD DISTRITAL DE INDEPENDENCIA","CAF COMPLETO","Cumple","Cumple","No cumple","No cumple","No cumple","No cumple",null,null,33.333333333333329,"Desfavorable","No Cumple","Cumple"]
["150115","LIMA"," MUNICIPALIDAD DISTRITAL DE LA VICTORIA","CAF COMPLETO","Cumple","Cumple","Cumple","No cumple","Cumple","Cumple",null,null,83.333333333333343,"Favorable","No Cumple","Cumple"]
["150121","LIMA"," MUNICIPALIDAD DISTRITAL DE PUEBLO LIBRE","CAF COMPLETO","Cumple","No cumple","Cumple","Cumple","Cumple","Cumple",null,null,83.333333333333343,"Favorable","Cumple","Cumple"]
["150128","LIMA"," MUNICIPALIDAD DISTRITAL DEL RÍMAC","CAF SIMPLIFICADO",null,null,null,null,null,null,"Cumple","Cumple",100,"Favorable","Cumple","Cumple"]
["150129","LIMA"," MUNICIPALIDAD DISTRITAL DE SAN BARTOLO","CAF SIMPLIFICADO",null,null,null,null,null,null,"Cumple","No cumple",50,"Desfavorable","Cumple","Cumple"]
["150132","LIMA"," MUNICIPALIDAD DISTRITAL DE SAN JUAN DE LURIGANCHO","CAF COMPLETO","Cumple","Cumple","Cumple","No cumple","No cumple","No cumple",null,null,50,"Desfavorable","No Cumple","Cumple"]
["150133","LIMA"," MUNICIPALIDAD DISTRITAL DE SAN JUAN DE MIRAFLORES","CAF COMPLETO","No cumple","Cumple","No cumple","Cumple","Cumple","Cumple",null,null,66.666666666666657,"Desfavorable","No Cumple","Cumple"]
["150134","LIMA"," MUNICIPALIDAD DISTRITAL DE SAN LUIS","CAF COMPLETO","Cumple","Cumple","Cumple","No cumple","No cumple","Cumple",null,null,66.666666666666657,"Desfavorable","No Cumple","Cumple"]
["150135","LIMA"," MUNICIPALIDAD DISTRITAL DE SAN MARTÍN DE PORRES","CAF COMPLETO","Cumple","Cumple","No cumple","Cumple","No cumple","No cumple",null,null,50,"Desfavorable","No Cumple","Cumple"]
["150143","LIMA"," MUNICIPALIDAD DISTRITAL DE VILLA MARIA DEL TRIUNFO","CAF COMPLETO","Cumple","Cumple","Cumple","Cumple","No cumple","No cumple",null,null,66.666666666666657,"Desfavorable","No Cumple","Cumple"]
["150201","LIMA"," MUNICIPALIDAD PROVINCIAL DE BARRANCA","CAF SIMPLIFICADO",null,null,null,null,null,null,"Cumple","Cumple",100,"Favorable","Cumple","Cumple"]
["150202","LIMA"," MUNICIPALIDAD DISTRITAL DE PARAMONGA","CAF SIMPLIFICADO",null,null,null,null,null,null,"No cumple","Cumple",50,"Desfavorable","No Cumple","Cumple"]
["150205","LIMA"," MUNICIPALIDAD DISTRITAL DE SUPE PUERTO","CAF SIMPLIFICADO",null,null,null,null,null,null,"Cumple","No cumple",50,"Desfavorable","No Cumple","Cumple"]
["150510","LIMA"," MUNICIPALIDAD DISTRITAL DE NUEVO IMPERIAL","CAF SIMPLIFICADO",null,null,null,null,null,null,"Cumple","Cumple",100,"Favorable","Cumple","Cumple"]
["150601","LIMA"," MUNICIPALIDAD PROVINCIAL DE HUARAL","CAF COMPLETO","Cumple","Cumple","No cumple","No cumple","Cumple","Cumple",null,null,66.666666666666657,"Desfavorable","No Cumple","Cumple"]
["150605","LIMA"," MUNICIPALIDAD DISTRITAL DE CHANCAY","CAF COMPLETO","No cumple","Cumple","Cumple","Cumple","Cumple","Cumple",null,null,83.333333333333343,"Favorable","Cumple","Cumple"]
["150712","LIMA"," MUNICIPALIDAD DISTRITAL DE SAN PEDRO DE LARAOS","CAF SIMPLIFICADO",null,null,null,null,null,null,"Cumple","Cumple",100,"Favorable","Cumple","Cumple"]
["150716","LIMA"," MUNICIPALIDAD DISTRITAL DE SAN ANTONIO","CAF COMPLETO","No cumple","Cumple","No cumple","No cumple","No cumple","No cumple",null,null,16.666666666666664,"Desfavorable","Cumple","Cumple"]
["151009","LIMA"," MUNICIPALIDAD DISTRITAL DE CHOCOS","CAF SIMPLIFICADO",null,null,null,null,null,null,"Cumple","Cumple",100,"Favorable","Cumple","Cumple"]
["160301","LORETO"," MUNICIPALIDAD PROVINCIAL DE LORETO - NAUTA","CAF COMPLETO","No cumple","Cumple","No cumple","No cumple","No cumple","No cumple",null,null,16.666666666666664,"Desfavorable","No Cumple","Cumple"]
["160302","LORETO"," MUNICIPALIDAD DISTRITAL DE PARINARI","CAF SIMPLIFICADO",null,null,null,null,null,null,"No cumple","Cumple",50,"Desfavorable","No Cumple","Cumple"]
["160305","LORETO"," MUNICIPALIDAD DISTRITAL DE URARINAS","CAF SIMPLIFICADO",null,null,null,null,null,null,"Cumple","No cumple",50,"Desfavorable","Cumple","Cumple"]
["160502","LORETO"," MUNICIPALIDAD DISTRITAL DE ALTO TAPICHE","CAF SIMPLIFICADO",null,null,null,null,null,null,"No cumple","No cumple",0,"Desfavorable","No Cumple","Cumple"]
["190103","PASCO"," MUNICIPALIDAD DISTRITAL DE HUARIACA","CAF SIMPLIFICADO",null,null,null,null,null,null,"Cumple","Cumple",100,"Favorable","Cumple","Cumple"]
["190104","PASCO"," MUNICIPALIDAD DISTRITAL DE HUAYLLAY","CAF COMPLETO","No cumple","Cumple","No cumple","No cumple","No cumple","No cumple",null,null,16.666666666666664,"Desfavorable","Cumple","Cumple"]
["190110","PASCO"," MUNICIPALIDAD DISTRITAL DE TICLACAYAN","CAF SIMPLIFICADO",null,null,null,null,null,null,"Cumple","No cumple",50,"Desfavorable","No Cumple","Cumple"]
["190111","PASCO"," MUNICIPALIDAD DISTRITAL DE TINYAHUARCO","CAF SIMPLIFICADO",null,null,null,null,null,null,"Cumple","No cumple",50,"Desfavorable","No Cumple","Cumple"]
["190302","PASCO"," MUNICIPALIDAD DISTRITAL DE CHONTABAMBA","CAF SIMPLIFICADO",null,null,null,null,null,null,"Omiso","Omiso",null,"Omiso","Cumple","Cumple"]
["200108","PIURA"," MUNICIPALIDAD DISTRITAL DE EL TALLAN","CAF SIMPLIFICADO",null,null,null,null,null,null,"No cumple","No cumple",0,"Desfavorable","Cumple","Cumple"]
["200109","PIURA"," MUNICIPALIDAD DISTRITAL DE LA ARENA","CAF SIMPLIFICADO",null,null,null,null,null,null,"Cumple","Cumple",100,"Favorable","Cumple","Cumple"]
["200501","PIURA"," MUNICIPALIDAD PROVINCIAL DE PAITA","CAF COMPLETO","Cumple","Cumple","No cumple","No cumple","No cumple","No cumple",null,null,33.333333333333329,"Desfavorable","Cumple","Cumple"]
["200602","PIURA"," MUNICIPALIDAD DISTRITAL DE BELLAVISTA","CAF SIMPLIFICADO",null,null,null,null,null,null,"No cumple","No cumple",0,"Desfavorable","No Cumple","Cumple"]
["200804","PIURA"," MUNICIPALIDAD DISTRITAL DE CRISTO NOS VALGA","CAF SIMPLIFICADO",null,null,null,null,null,null,"Omiso","Omiso",null,"Omiso","Cumple","Cumple"]
["210901","PUNO"," MUNICIPALIDAD PROVINCIAL DE MOHO","CAF SIMPLIFICADO",null,null,null,null,null,null,"No cumple","Cumple",50,"Desfavorable","Cumple","Cumple"]
["220602","SAN MARTIN"," MUNICIPALIDAD DISTRITAL DE CAMPANILLA","CAF SIMPLIFICADO",null,null,null,null,null,null,"No cumple","Cumple",50,"Desfavorable","No Cumple","Cumple"]
["220701","SAN MARTIN"," MUNICIPALIDAD PROVINCIAL DE PICOTA","CAF SIMPLIFICADO",null,null,null,null,null,null,"Cumple","Cumple",100,"Favorable","Cumple","Cumple"]
["220808","SAN MARTIN"," MUNICIPALIDAD DISTRITAL DE YORONGOS","CAF SIMPLIFICADO",null,null,null,null,null,null,"Cumple","Cumple",100,"Favorable","Cumple","Cumple"]
["230102","TACNA"," MUNICIPALIDAD DISTRITAL DE ALTO DE LA ALIANZA","CAF COMPLETO","Cumple","Cumple","Cumple","No cumple","No cumple","No cumple",null,null,50,"Desfavorable","No Cumple","Cumple"]
["230104","TACNA"," MUNICIPALIDAD DISTRITAL DE CIUDAD NUEVA","CAF COMPLETO","No cumple","Cumple","No cumple","Cumple","No cumple","No cumple",null,null,33.333333333333329,"Desfavorable","Cumple","Cumple"]
["230108","TACNA"," MUNICIPALIDAD DISTRITAL DE POCOLLAY","CAF SIMPLIFICADO",null,null,null,null,null,null,"Cumple","Cumple",100,"Favorable","Cumple","Cumple"]
["230203","TACNA"," MUNICIPALIDAD DISTRITAL DE CAMILACA","CAF SIMPLIFICADO",null,null,null,null,null,null,"Cumple","Cumple",100,"Favorable","Cumple","Cumple"]
["230206","TACNA"," MUNICIPALIDAD DISTRITAL DE QUILAHUANI","CAF SIMPLIFICADO",null,null,null,null,null,null,"Cumple","Cumple",100,"Favorable","No Cumple","Cumple"]
["230302","TACNA"," MUNICIPALIDAD DISTRITAL DE ILABAYA","CAF COMPLETO","No cumple","Cumple","Cumple","Cumple","No cumple","No cumple",null,null,50,"Desfavorable","No Cumple","Cumple"]
["250105","UCAYALI"," MUNICIPALIDAD DISTRITAL DE YARINACOCHA","CAF COMPLETO","No cumple","Cumple","No cumple","No cumple","No cumple","No cumple",null,null,16.666666666666664,"Desfavorable","No Cumple","Cumple"]
["250301","UCAYALI"," MUNICIPALIDAD PROVINCIAL DE PADRE ABAD - AGUAITIA","CAF SIMPLIFICADO",null,null,null,null,null,null,"No cumple","No cumple",0,"Desfavorable","No Cumple","Cumple"]
["040000","AREQUIPA"," GOBIERNO REGIONAL DE AREQUIPA","CAF COMPLETO",null,null,"Cumple","No cumple","No cumple","Cumple",null,null,50,"Desfavorable","Cumple","Cumple"]
["060000","CAJAMARCA"," GOBIERNO REGIONAL DE CAJAMARCA","CAF SIMPLIFICADO",null,null,null,null,null,null,"Cumple","Cumple",100,"Favorable","Cumple","Cumple"]
["130000","LA LIBERTAD"," GOBIERNO REGIONAL DE LA LIBERTAD","CAF SIMPLIFICADO",null,null,null,null,null,null,"Cumple","Cumple",100,"Favorable","Cumple","Cumple"]
["150100","LIMA"," REGION LIMA METROPOLITANA","CAF SIMPLIFICADO",null,null,null,null,null,null,"No cumple","Cumple",50,"Desfavorable","Cumple","Cumple"]
["180000","MOQUEGUA"," GOBIERNO REGIONAL DE MOQUEGUA","CAF COMPLETO",null,null,"No cumple","No cumple","No cumple","No cumple",null,null,0,"Desfavorable","No Cumple","Cumple"]
["200000","PIURA"," GOBIERNO REGIONAL DE PIURA","CAF COMPLETO",null,null,"No cumple","Cumple","Cumple","Cumple",null,null,75,"Desfavorable","No Cumple","Cumple"]
["210000","PUNO"," GOBIERNO REGIONAL DE PUNO","CAF COMPLETO",null,null,"Cumple","No cumple","No cumple","No cumple",null,null,25,"Desfavorable","Cumple","Cumple"]

{"sheet":"ANEXO 1 GL","index":10,"n_rows":124,"n_cols":17,"rows_kept":124,"cut":false,"hidden":false,"merged":[[3,0,3,16],[5,0,6,0],[5,1,6,1],[5,2,6,2],[5,3,6,3],[5,4,6,4],[5,5,5,12],[5,13,6,13],[5,14,6,14],[5,15,6,15],[5,16,6,16]]}
["Anexo N° 1: Cumplimiento de los Compromisos Fiscales contenidos en el documento \"Compromisos de Ajuste Fiscal\" 2022"]
["Gobiernos Locales"]
[]
["CAF Simplificado aplica a los GL del primer grupo (con promedio de Ingresos Corrientes Totales de los últimos 04 años iguales o superiores a 2300 UIT anuales) con incumplimientos Leves y a los GL del segundo grupo (con promedio de Ingresos Corrientes Totales de los últimos 04 años inferiores a 2300 UIT anuales) con incumplimientos Graves o Leves. El resto de GL elabora el CAF General."]
[]
["Nº","UBIGEO","DEPARTAMENTO","MUNICIPALIDAD","VERSIÓN","CUMPLIMIENTO DE LOS COMPROMISOS DE AJUSTE FISCAL",null,null,null,null,null,null,null,"LOGRO 9/\n(%)","EVALUACIÓN","REGLA FISCAL 10/\nSDT","REGLAS FISCAL 11/\nACC"]
[null,null,null,null,null,"CF 1 1/","CF2 2/","CF 3 3/","CF 4 4/","CF 5 5/","CF 6 6/","CF 7 7/","CF 8 8/"]
[1,"030101","APURÍMAC","MUNICIPALIDAD PROVINCIAL DE ABANCAY","Completo","Cumple","No cumple","No cumple","No cumple","No cumple","No cumple","No aplica","No aplica",16.666666666666664,"Desfavorable","No Cumple","Si Cumple"]
[2,"030201","APURÍMAC","MUNICIPALIDAD PROVINCIAL DE ANDAHUAYLAS","Completo","Cumple","No cumple","No cumple","No cumple","No cumple","No cumple","No aplica","No aplica",16.666666666666664,"Desfavorable","No Cumple","Si Cumple"]
[3,"030501","APURÍMAC","MUNICIPALIDAD PROVINCIAL DE COTABAMBAS - TAMBOBAMBA","Completo","Cumple","No cumple","Cumple","Cumple","No cumple","Cumple","No aplica","No aplica",66.666666666666657,"Desfavorable","Si Cumple","Si Cumple"]
[4,"030504","APURÍMAC","MUNICIPALIDAD DISTRITAL DE HAQUIRA","Completo","Cumple","No cumple","No cumple","Cumple","No cumple","No cumple","No aplica","No aplica",33.333333333333329,"Desfavorable","No Cumple","Si Cumple"]
[5,"030601","APURÍMAC","MUNICIPALIDAD PROVINCIAL DE CHINCHEROS","Completo","No cumple","Cumple","No cumple","No cumple","No cumple","No cumple","No aplica","No aplica",16.666666666666664,"Desfavorable","No Cumple","Si Cumple"]
[6,"030701","APURÍMAC","MUNICIPALIDAD PROVINCIAL DE GRAU - CHUQUIBAMBILLA","Completo","Cumple","Cumple","No cumple","No cumple","No cumple","No cumple","No aplica","No aplica",33.333333333333329,"Desfavorable","No Cumple","Si Cumple"]
[7,"070102","CALLAO","MUNICIPALIDAD DISTRITAL DE BELLAVISTA","Completo","No cumple","No cumple","No cumple","No cumple","No cumple","No cumple","No aplica","No aplica",0,"Desfavorable","No Cumple","Si Cumple"]
[8,"070103","CALLAO","MUNICIPALIDAD DISTRITAL DE CARMEN DE LA LEGUA REYNOSO","Completo","Cumple","No cumple","No cumple","Cumple","Cumple","No cumple","No aplica","No aplica",50,"Desfavorable","No Cumple","Si Cumple"]
[9,"110206","ICA","MUNICIPALIDAD DISTRITAL DE GROCIO PRADO","Completo","Cumple","No cumple","Cumple","No cumple","No cumple","No cumple","No aplica","No aplica",33.333333333333329,"Desfavorable","Si Cumple","Si Cumple"]
[10,"130702","LA LIBERTAD","MUNICIPALIDAD DISTRITAL DE GUADALUPE","Completo","Cumple","No cumple","Cumple","Cumple","No cumple","No cumple","No aplica","No aplica",50,"Desfavorable","No Cumple","Si Cumple"]
[11,"140101","LAMBAYEQUE","MUNICIPALIDAD PROVINCIAL DE CHICLAYO","Completo","No cumple","No cumple","No cumple","Cumple","No cumple","No cumple","No aplica","No aplica",16.666666666666664,"Desfavorable","No Cumple","Si Cumple"]
[12,"140106","LAMBAYEQUE","MUNICIPALIDAD DISTRITAL DE LA VICTORIA","Completo","No cumple","No cumple","No cumple","No cumple","No cumple","No cumple","No aplica","No aplica",0,"Desfavorable","No Cumple","Si Cumple"]
[13,"150102","LIMA","MUNICIPALIDAD DISTRITAL DE ANCON","Completo","No cumple","No cumple","No cumple","No cumple","Cumple","Cumple","No aplica","No aplica",33.333333333333329,"Desfavorable","No Cumple","Si Cumple"]
[14,"150104","LIMA","MUNICIPALIDAD DISTRITAL DE BARRANCO","Completo","Cumple","No cumple","Cumple","Cumple","Cumple","Cumple","No aplica","No aplica",83.333333333333343,"Favorable","No Cumple","Si Cumple"]
[15,"150105","LIMA","MUNICIPALIDAD DISTRITAL DE BREÑA","Completo","No cumple","No cumple","No cumple","No cumple","No cumple","Cumple","No aplica","No aplica",16.666666666666664,"Desfavorable","No Cumple","Si Cumple"]
[16,"150110","LIMA","MUNICIPALIDAD DISTRITAL DE COMAS","Completo","Cumple","No cumple","No cumple","Cumple","No cumple","No cumple","No aplica","No aplica",33.333333333333329,"Desfavorable","No Cumple","Si Cumple"]
[17,"150112","LIMA","MUNICIPALIDAD DISTRITAL DE INDEPENDENCIA","Completo","Cumple","No cumple","Cumple","No cumple","No cumple","Cumple","No aplica","No aplica",50,"Desfavorable","Si Cumple","Si Cumple"]
[18,"150115","LIMA","MUNICIPALIDAD DISTRITAL DE LA VICTORIA","Completo","No cumple","No cumple","No cumple","Cumple","Cumple","Cumple","No aplica","No aplica",50,"Desfavorable","No Cumple","Si Cumple"]
[19,"150132","LIMA","MUNICIPALIDAD DISTRITAL DE SAN JUAN DE LURIGANCHO","Completo","No cumple","No cumple","No cumple","Cumple","Cumple","Cumple","No aplica","No aplica",50,"Desfavorable","No Cumple","Si Cumple"]
[20,"150133","LIMA","MUNICIPALIDAD DISTRITAL DE SAN JUAN DE MIRAFLORES","Completo","Cumple","No cumple","No cumple","No cumple","No cumple","No cumple","No aplica","No aplica",16.666666666666664,"Desfavorable","No Cumple","Si Cumple"]
[21,"150134","LIMA","MUNICIPALIDAD DISTRITAL DE SAN LUIS","Completo","No cumple","Cumple","No cumple","Cumple","No cumple","No cumple","No aplica","No aplica",33.333333333333329,"Desfavorable","Si Cumple","Si Cumple"]
[22,"150135","LIMA","MUNICIPALIDAD DISTRITAL DE SAN MARTIN DE PORRES","Completo","Cumple","No cumple","No cumple","Cumple","No cumple","No cumple","No aplica","No aplica",33.333333333333329,"Desfavorable","No Cumple","Si Cumple"]
[23,"150143","LIMA","MUNICIPALIDAD DISTRITAL DE VILLA MARIA DEL TRIUNFO","Completo","No cumple","No cumple","No cumple","No cumple","No cumple","Cumple","No aplica","No aplica",16.666666666666664,"Desfavorable","No Cumple","Si Cumple"]
[24,"160301","LORETO","MUNICIPALIDAD PROVINCIAL DE LORETO - NAUTA","Completo","No cumple","Cumple","No cumple","Cumple","No cumple","No cumple","No aplica","No aplica",33.333333333333329,"Desfavorable","No Cumple","Si Cumple"]
[25,"200602","PIURA","MUNICIPALIDAD DISTRITAL DE BELLAVISTA","Completo","No cumple","No cumple","No cumple","No cumple","No cumple","No cumple","No aplica","No aplica",0,"Desfavorable","No Cumple","Si Cumple"]
[26,"250105","UCAYALI","MUNICIPALIDAD DISTRITAL DE YARINACOCHA","Completo","Cumple","No cumple","No cumple","Cumple","No cumple","No cumple","No aplica","No aplica",33.333333333333329,"Desfavorable","No Cumple","Si Cumple"]
[27,"010120","AMAZONAS","MUNICIPALIDAD DISTRITAL DE SOLOCO","Simplificado","No aplica","No aplica","No aplica","No aplica","No aplica","No aplica","cumple","cumple",100,"Favorable","Si Cumple","Si Cumple"]
[28,"010503","AMAZONAS","MUNICIPALIDAD DISTRITAL DE COCABAMBA","Simplificado","No aplica","No aplica","No aplica","No aplica","No aplica","No aplica","cumple","cumple",100,"Favorable","No Cumple","Si Cumple"]
[29,"010520","AMAZONAS","MUNICIPALIDAD DISTRITAL DE SANTA CATALINA","Simplificado","No aplica","No aplica","No aplica","No aplica","No aplica","No aplica","cumple","cumple",100,"Favorable","Si Cumple","Si Cumple"]
[30,"010605","AMAZONAS","MUNICIPALIDAD DISTRITAL DE LIMABAMBA","Simplificado","No aplica","No aplica","No aplica","No aplica","No aplica","No aplica","No cumple","cumple",50,"Desfavorable","No Cumple","Si Cumple"]
[31,"010611","AMAZONAS","MUNICIPALIDAD DISTRITAL DE TOTORA","Simplificado","No aplica","No aplica","No aplica","No aplica","No aplica","No aplica","No cumple","cumple",50,"Desfavorable","No Cumple","Si Cumple"]
[32,"010612","AMAZONAS","MUNICIPALIDAD DISTRITAL DE VISTA ALEGRE","Simplificado","No aplica","No aplica","No aplica","No aplica","No aplica","No aplica","cumple","cumple",100,"Favorable","Si Cumple","Si Cumple"]
[33,"021505","ANCASH","MUNICIPALIDAD DISTRITAL DE HUANDOVAL","Simplificado","No aplica","No aplica","No aplica","No aplica","No aplica","No aplica","cumple","cumple",100,"Favorable","Si Cumple","Si Cumple"]
[34,"030502","APURÍMAC","MUNICIPALIDAD DISTRITAL DE COTABAMBAS","Simplificado","No aplica","No aplica","No aplica","No aplica","No aplica","No aplica","cumple","cumple",100,"Favorable","No Cumple","Si Cumple"]
[35,"030708","APURÍMAC","MUNICIPALIDAD DISTRITAL DE PROGRESO","Simplificado","No aplica","No aplica","No aplica","No aplica","No aplica","No aplica","cumple","cumple",100,"Favorable","No Cumple","Si Cumple"]
[36,"040201","AREQUIPA","MUNICIPALIDAD PROVINCIAL DE CAMANA","Simplificado","No aplica","No aplica","No aplica","No aplica","No aplica","No aplica","cumple","cumple",100,"Favorable","Si Cumple","Si Cumple"]
[37,"040405","AREQUIPA","MUNICIPALIDAD DISTRITAL DE CHILCAYMARCA","Simplificado","No aplica","No aplica","No aplica","No aplica","No aplica","No aplica","cumple","cumple",100,"Favorable","No Cumple","Si Cumple"]
[38,"040704","AREQUIPA","MUNICIPALIDAD DISTRITAL DE ISLAY","Simplificado","No aplica","No aplica","No aplica","No aplica","No aplica","No aplica","cumple","cumple",100,"Favorable","Si Cumple","Si Cumple"]
[39,"040809","AREQUIPA","MUNICIPALIDAD DISTRITAL DE TAURIA","Simplificado","No aplica","No aplica","No aplica","No aplica","No aplica","No aplica","cumple","cumple",100,"Favorable","Si Cumple","Si Cumple"]
[40,"050503","AYACUCHO","MUNICIPALIDAD DISTRITAL DE AYNA","Simplificado","No aplica","No aplica","No aplica","No aplica","No aplica","No aplica","cumple","cumple",100,"Favorable","Si Cumple","Si Cumple"]
[41,"050505","AYACUCHO","MUNICIPALIDAD DISTRITAL DE CHUNGUI","Simplificado","No aplica","No aplica","No aplica","No aplica","No aplica","No aplica","cumple","cumple",100,"Favorable","Si Cumple","Si Cumple"]
[42,"050605","AYACUCHO","MUNICIPALIDAD DISTRITAL DE CHAVI¥A","Simplificado","No aplica","No aplica","No aplica","No aplica","No aplica","No aplica","cumple","cumple",100,"Favorable","Si Cumple","Si Cumple"]
[43,"050910","AYACUCHO","MUNICIPALIDAD DISTRITAL DE SANTIAGO DE PAUCARAY","Simplificado","No aplica","No aplica","No aplica","No aplica","No aplica","No aplica","cumple","cumple",100,"Favorable","No Cumple","Si Cumple"]
[44,"051008","AYACUCHO","MUNICIPALIDAD DISTRITAL DE HUAMANQUIQUIA","Simplificado","No aplica","No aplica","No aplica","No aplica","No aplica","No aplica","cumple","cumple",100,"Favorable","Si Cumple","Si Cumple"]
[45,"051010","AYACUCHO","MUNICIPALIDAD DISTRITAL DE HUALLA","Simplificado","No aplica","No aplica","No aplica","No aplica","No aplica","No aplica","No cumple","cumple",50,"Desfavorable","Si Cumple","Si Cumple"]
[46,"051108","AYACUCHO","MUNICIPALIDAD DISTRITAL DE VISCHONGO","Simplificado","No aplica","No aplica","No aplica","No aplica","No aplica","No aplica","No cumple","cumple",50,"Desfavorable","No Cumple","Si Cumple"]
[47,"060413","CAJAMARCA","MUNICIPALIDAD DISTRITAL DE PACCHA","Simplificado","No aplica","No aplica","No aplica","No aplica","No aplica","No aplica","cumple","cumple",100,"Favorable","Si Cumple","Si Cumple"]
[48,"060805","CAJAMARCA","MUNICIPALIDAD DISTRITAL DE HUABAL","Simplificado","No aplica","No aplica","No aplica","No aplica","No aplica","No aplica","No cumple","cumple",50,"Desfavorable","No Cumple","Si Cumple"]
[49,"061308","CAJAMARCA","MUNICIPALIDAD DISTRITAL DE SAUCEPAMPA","Simplificado","No aplica","No aplica","No aplica","No aplica","No aplica","No aplica","cumple","cumple",100,"Favorable","Si Cumple","Si Cumple"]
[50,"061310","CAJAMARCA","MUNICIPALIDAD DISTRITAL DE UTICYACU","Simplificado","No aplica","No aplica","No aplica","No aplica","No aplica","No aplica","cumple","cumple",100,"Favorable","Si Cumple","Si Cumple"]
[51,"081001","CUSCO","MUNICIPALIDAD PROVINCIAL DE PARURO","Simplificado","No aplica","No aplica","No aplica","No aplica","No aplica","No aplica","cumple","cumple",100,"Favorable","Si Cumple","Si Cumple"]
[52,"090114","HUANCAVELICA","MUNICIPALIDAD DISTRITAL DE PALCA","Simplificado","No aplica","No aplica","No aplica","No aplica","No aplica","No aplica","cumple","cumple",100,"Favorable","Si Cumple","Si Cumple"]
[53,"090204","HUANCAVELICA","MUNICIPALIDAD DISTRITAL DE CAJA","Simplificado","No aplica","No aplica","No aplica","No aplica","No aplica","No aplica","cumple","cumple",100,"Favorable","No Cumple","Si Cumple"]
[54,"090508","HUANCAVELICA","MUNICIPALIDAD DISTRITAL DE SAN MIGUEL DE MAYOCC","Simplificado","No aplica","No aplica","No aplica","No aplica","No aplica","No aplica","cumple","cumple",100,"Favorable","Si Cumple","Si Cumple"]
[55,"100203","HUÁNUCO","MUNICIPALIDAD DISTRITAL DE COLPAS","Simplificado","No aplica","No aplica","No aplica","No aplica","No aplica","No aplica","No cumple","cumple",50,"Desfavorable","No Cumple","Si Cumple"]
[56,"110101","ICA","MUNICIPALIDAD PROVINCIAL DE ICA","Simplificado","No aplica","No aplica","No aplica","No aplica","No aplica","No aplica","cumple","cumple",100,"Favorable","Si Cumple","Si Cumple"]
[57,"110211","ICA","MUNICIPALIDAD DISTRITAL DE TAMBO DE MORA","Simplificado","No aplica","No aplica","No aplica","No aplica","No aplica","No aplica","cumple","cumple",100,"Favorable","Si Cumple","Si Cumple"]
[58,"110506","ICA","MUNICIPALIDAD DISTRITAL DE SAN ANDRES","Simplificado","No aplica","No aplica","No aplica","No aplica","No aplica","No aplica","cumple","cumple",100,"Favorable","Si Cumple","Si Cumple"]
[59,"120116","JUNÍN","MUNICIPALIDAD DISTRITAL DE HUACRAPUQUIO","Simplificado","No aplica","No aplica","No aplica","No aplica","No aplica","No aplica","No cumple","cumple",50,"Desfavorable","No Cumple","Si Cumple"]
[60,"120136","JUNÍN","MUNICIPALIDAD DISTRITAL DE VIQUES","Simplificado","No aplica","No aplica","No aplica","No aplica","No aplica","No aplica","cumple","cumple",100,"Favorable","Si Cumple","Si Cumple"]
[61,"120407","JUNÍN","MUNICIPALIDAD DISTRITAL DE EL MANTARO","Simplificado","No aplica","No aplica","No aplica","No aplica","No aplica","No aplica","cumple","cumple",100,"Favorable","Si Cumple","Si Cumple"]
[62,"120905","JUNÍN","MUNICIPALIDAD DISTRITAL DE HUAMANCACA CHICO","Simplificado","No aplica","No aplica","No aplica","No aplica","No aplica","No aplica","cumple","cumple",100,"Favorable","Si Cumple","Si Cumple"]
[63,"130207","LA LIBERTAD","MUNICIPALIDAD DISTRITAL DE SANTIAGO DE CAO","Simplificado","No aplica","No aplica","No aplica","No aplica","No aplica","No aplica","No cumple","cumple",50,"Desfavorable","No Cumple","Si Cumple"]
[64,"130604","LA LIBERTAD","MUNICIPALIDAD DISTRITAL DE CHARAT","Simplificado","No aplica","No aplica","No aplica","No aplica","No aplica","No aplica","cumple","cumple",100,"Favorable","Si Cumple","Si Cumple"]
[65,"130704","LA LIBERTAD","MUNICIPALIDAD DISTRITAL DE PACASMAYO","Simplificado","No aplica","No aplica","No aplica","No aplica","No aplica","No aplica","cumple","No cumple",50,"Desfavorable","Si Cumple","No Cumple"]
[66,"140104","LAMBAYEQUE","MUNICIPALIDAD DISTRITAL DE ETEN PUERTO","Simplificado","No aplica","No aplica","No aplica","No aplica","No aplica","No aplica","cumple","cumple",100,"Favorable","No Cumple","Si Cumple"]
[67,"140108","LAMBAYEQUE","MUNICIPALIDAD DISTRITAL DE MONSEFU","Simplificado","No aplica","No aplica","No aplica","No aplica","No aplica","No aplica","No cumple","cumple",50,"Desfavorable","No Cumple","Si Cumple"]
[68,"140205","LAMBAYEQUE","MUNICIPALIDAD DISTRITAL DE PITIPO","Simplificado","No aplica","No aplica","No aplica","No aplica","No aplica","No aplica","No cumple","cumple",50,"Desfavorable","No Cumple","Si Cumple"]
[69,"150111","LIMA","MUNICIPALIDAD DISTRITAL DE EL AGUSTINO","Simplificado","No aplica","No aplica","No aplica","No aplica","No aplica","No aplica","No cumple","cumple",50,"Desfavorable","No Cumple","Si Cumple"]
[70,"150201","LIMA Prov.","MUNICIPALIDAD PROVINCIAL DE BARRANCA","Simplificado","No aplica","No aplica","No aplica","No aplica","No aplica","No aplica","No cumple","cumple",50,"Desfavorable","No Cumple","Si Cumple"]
[71,"150205","LIMA Prov.","MUNICIPALIDAD DISTRITAL DE SUPE PUERTO","Simplificado","No aplica","No aplica","No aplica","No aplica","No aplica","No aplica","cumple","cumple",100,"Favorable","No Cumple","Si Cumple"]
[72,"150402","LIMA Prov.","MUNICIPALIDAD DISTRITAL DE ARAHUAY","Simplificado","No aplica","No aplica","No aplica","No aplica","No aplica","No aplica","cumple","cumple",100,"Favorable","Si Cumple","Si Cumple"]
[73,"150514","LIMA Prov.","MUNICIPALIDAD DISTRITAL DE SAN LUIS","Simplificado","No aplica","No aplica","No aplica","No aplica","No aplica","No aplica","cumple","cumple",100,"Favorable","Si Cumple","Si Cumple"]
[74,"150727","LIMA Prov.","MUNICIPALIDAD DISTRITAL DE SANTA CRUZ DE COCACHACRA","Simplificado","No aplica","No aplica","No aplica","No aplica","No aplica","No aplica","cumple","cumple",100,"Favorable","Si Cumple","Si Cumple"]
[75,"151001","LIMA Prov.","MUNICIPALIDAD PROVINCIAL DE YAUYOS","Simplificado","No aplica","No aplica","No aplica","No aplica","No aplica","No aplica","cumple","cumple",100,"Favorable","Si Cumple","Si Cumple"]
[76,"160502","LORETO","MUNICIPALIDAD DISTRITAL DE ALTO TAPICHE","Simplificado","No aplica","No aplica","No aplica","No aplica","No aplica","No aplica","cumple","cumple",100,"Favorable","No Cumple","Si Cumple"]
[77,"160801","LORETO","MUNICIPALIDAD PROVINCIAL DE PUTUMAYO","Simplificado","No aplica","No aplica","No aplica","No aplica","No aplica","No aplica","cumple","cumple",100,"Favorable","Si Cumple","Si Cumple"]
[78,"190104","PASCO","MUNICIPALIDAD DISTRITAL DE HUAYLLAY","Simplificado","No aplica","No aplica","No aplica","No aplica","No aplica","No aplica","cumple","cumple",100,"Favorable","Si Cumple","Si Cumple"]
[79,"190110","PASCO","MUNICIPALIDAD DISTRITAL DE TICLACAYAN","Simplificado","No aplica","No aplica","No aplica","No aplica","No aplica","No aplica","No cumple","cumple",50,"Desfavorable","No Cumple","Si Cumple"]
[80,"190111","PASCO","MUNICIPALIDAD DISTRITAL DE TINYAHUARCO","Simplificado","No aplica","No aplica","No aplica","No aplica","No aplica","No aplica","No cumple","cumple",50,"Desfavorable","No Cumple","Si Cumple"]
[81,"220103","SAN MARTÍN","MUNICIPALIDAD DISTRITAL DE HABANA","Simplificado","No aplica","No aplica","No aplica","No aplica","No aplica","No aplica","No cumple","No cumple",0,"Desfavorable","Si Cumple","No Cumple"]
[82,"220201","SAN MARTÍN","MUNICIPALIDAD PROVINCIAL DE BELLAVISTA","Simplificado","No aplica","No aplica","No aplica","No aplica","No aplica","No aplica","cumple","cumple",100,"Favorable","Si Cumple","Si Cumple"]
[83,"220401","SAN MARTÍN","MUNICIPALIDAD PROVINCIAL DE HUALLAGA - SAPOSOA","Simplificado","No aplica","No aplica","No aplica","No aplica","No aplica","No aplica","cumple","cumple",100,"Favorable","Si Cumple","Si Cumple"]
[84,"220602","SAN MARTÍN","MUNICIPALIDAD DISTRITAL DE CAMPANILLA","Simplificado","No aplica","No aplica","No aplica","No aplica","No aplica","No aplica","No cumple","cumple",50,"Desfavorable","Si Cumple","Si Cumple"]
[85,"220702","SAN MARTÍN","MUNICIPALIDAD DISTRITAL DE BUENOS AIRES","Simplificado","No aplica","No aplica","No aplica","No aplica","No aplica","No aplica","cumple","cumple",100,"Favorable","Si Cumple","Si Cumple"]
[86,"070101","CALLAO","MUNICIPALIDAD PROVINCIAL DEL CALLAO","Completo","No aplica","No aplica","No aplica","No aplica","No aplica","No aplica","No aplica","No aplica","No aplica","Omiso","No Cumple","Si Cumple"]
[87,"110501","ICA","MUNICIPALIDAD PROVINCIAL DE PISCO","Completo","No aplica","No aplica","No aplica","No aplica","No aplica","No aplica","No aplica","No aplica","No aplica","Omiso","No Cumple","Si Cumple"]
[88,"140105","LAMBAYEQUE","MUNICIPALIDAD DISTRITAL DE JOSE LEONARDO ORTIZ","Completo","No aplica","No aplica","No aplica","No aplica","No aplica","No aplica","No aplica","No aplica","No aplica","Omiso","No Cumple","Si Cumple"]
[89,"150601","LIMA Prov.","MUNICIPALIDAD PROVINCIAL DE HUARAL","Completo","No aplica","No aplica","No aplica","No aplica","No aplica","No aplica","No aplica","No aplica","No aplica","Omiso","No Cumple","Si Cumple"]
[90,"030503","APURÍMAC","MUNICIPALIDAD DISTRITAL DE COYLLURQUI","Simplificado","No aplica","No aplica","No aplica","No aplica","No aplica","No aplica","No aplica","No aplica","No aplica","Omiso","Si Cumple","Si Cumple"]
[91,"050611","AYACUCHO","MUNICIPALIDAD DISTRITAL DE LUCANAS","Simplificado","No aplica","No aplica","No aplica","No aplica","No aplica","No aplica","No aplica","No aplica","No aplica","Omiso","Si Cumple","Si Cumple"]
[92,"050702","AYACUCHO","MUNICIPALIDAD DISTRITAL DE CHUMPI","Simplificado","No aplica","No aplica","No aplica","No aplica","No aplica","No aplica","No aplica","No aplica","No aplica","Omiso","Si Cumple","Si Cumple"]
[93,"050807","AYACUCHO","MUNICIPALIDAD DISTRITAL DE PARARCA","Simplificado","No aplica","No aplica","No aplica","No aplica","No aplica","No aplica","No aplica","No aplica","No aplica","Omiso","Si Cumple","Si Cumple"]
[94,"060403","CAJAMARCA","MUNICIPALIDAD DISTRITAL DE CHADIN","Simplificado","No aplica","No aplica","No aplica","No aplica","No aplica","No aplica","No aplica","No aplica","No aplica","Omiso","No Cumple","Si Cumple"]
[95,"061203","CAJAMARCA","MUNICIPALIDAD DISTRITAL DE SAN LUIS","Simplificado","No aplica","No aplica","No aplica","No aplica","No aplica","No aplica","No aplica","No aplica","No aplica","Omiso","Si Cumple","Si Cumple"]
[96,"100401","HUÁNUCO","MUNICIPALIDAD PROVINCIAL DE HUACAYBAMBA","Simplificado","No aplica","No aplica","No aplica","No aplica","No aplica","No aplica","No aplica","No aplica","No aplica","Omiso","Si Cumple","Si Cumple"]
[97,"120403","JUNÍN","MUNICIPALIDAD DISTRITAL DE APATA","Simplificado","No aplica","No aplica","No aplica","No aplica","No aplica","No aplica","No aplica","No aplica","No aplica","Omiso","No Cumple","Si Cumple"]
[98,"150202","LIMA Prov.","MUNICIPALIDAD DISTRITAL DE PARAMONGA","Simplificado","No aplica","No aplica","No aplica","No aplica","No aplica","No aplica","No aplica","No aplica","No aplica","Omiso","No Cumple","Si Cumple"]
[99,"150203","LIMA Prov.","MUNICIPALIDAD DISTRITAL DE PATIVILCA","Simplificado","No aplica","No aplica","No aplica","No aplica","No aplica","No aplica","No aplica","No aplica","No aplica","Omiso","Si Cumple","Si Cumple"]
[100,"150503","LIMA Prov.","MUNICIPALIDAD DISTRITAL DE CALANGO","Simplificado","No aplica","No aplica","No aplica","No aplica","No aplica","No aplica","No aplica","No aplica","No aplica","Omiso","Si Cumple","Si Cumple"]
[101,"150715","LIMA Prov.","MUNICIPALIDAD DISTRITAL DE SAN ANDRES DE TUPICOCHA","Simplificado","No aplica","No aplica","No aplica","No aplica","No aplica","No aplica","No aplica","No aplica","No aplica","Omiso","Si Cumple","Si Cumple"]
[102,"160302","LORETO","MUNICIPALIDAD DISTRITAL DE PARINARI","Simplificado","No aplica","No aplica","No aplica","No aplica","No aplica","No aplica","No aplica","No aplica","No aplica","Omiso","No Cumple","Si Cumple"]
[103,"210601","PUNO","MUNICIPALIDAD PROVINCIAL DE HUANCANE","Simplificado","No aplica","No aplica","No aplica","No aplica","No aplica","No aplica","No aplica","No aplica","No aplica","Omiso","Si Cumple","Si Cumple"]
[104,"250301","UCAYALI","MUNICIPALIDAD PROVINCIAL DE PADRE ABAD - AGUAITIA","Simplificado","No aplica","No aplica","No aplica","No aplica","No aplica","No aplica","No aplica","No aplica","No aplica","Omiso","No Cumple","Si Cumple"]
[]
["1/ CF 1: Incremento de ingresos de recaudación propia"]
["2/ CF 2: Incremento del procentaje de ingresos por arbitrios de limpieza, parques y jardines y serenazgo que financia el gasto en los mismos rubros"]
["3/ CF 3: Límite del gasto en personal respecto al ingreso corriente"]
["4/ CF 4: Disminución del saldo de pasivos corrientes respecto al año fiscal anterior "]
["5/ CF 5: Evaluación y corrección de errores de registro de pasivos "]
["6/ CF 6: Cumplimiento de las acciones relacionadas al fortalecimiento de la gestión institucional"]
["7/ CF 7: Convergencia de la Regla Fiscal del Saldo de Deuda Total"]
["8/ CF 8: Convergencia de la Regla Fiscal Ahorro en Cuenta Corriente (S/)"]
["9/ Número de compromisos fiscales cumplidos entre el número total de compromisos fiscales a los que la entidad está obligada a cumplir dependiendo de si aplica el CAF General o Simplificado."]
["10/ Cumplimiento de la Regla Fiscal de Saldo de Deuda Total año 2022."]
["11/ Cumplimiento de la Regla Fiscal de Ahorro en Cuenta Corriente año 2022."]
["Fuente: MEF- SICON, Aplicativo Web: https://apps4.mineco.gob.pe/simgf/#."]